Workbook

Sheet PLOT
A1: ProperSort | B1: (All)
A3: Row Labels | B3: ME-OTC | C3: NH | D3: VT | E3: CT | F3: MA | G3: RI | H3: DE | I3: DC | J3: MD | K3: NJ | L3: NY | M3: PA | N3: VA-OTC | O3: OTC | P3: OTC NEAR ROAD
A4: 2015 | B4: 235.9338483 | C4: 176.3289191 | D4: 169.5741005 | E4: 283.0892357 | F4: 250.3806557 | G4: 415.2058309 | H4: 309.7981616 | I4: 416.4124342 | J4: 234.7936701 | K4: 356.7408105 | L4: 247.1162651 | M4: 257.3665861 | N4: 334.6417945 | O4: 272.5144039 | P4: 360.6814952
A5: 2016 | B5: 211.4144806 | C5: 160.617753 | D5: 160.7433329 | E5: 265.0244199 | F5: 243.779127 | G5: 391.0693069 | H5: 257.3895131 | I5: 487.6821683 | J5: 199.3818627 | K5: 312.9879326 | L5: 225.5559815 | M5: 237.2257107 | N5: 311.5144911 | O5: 259.8624072 | P5: 335.5427213
A6: 2017 | B6: 210.610167 | C6: 156.1389421 | D6: 213.7002666 | E6: 267.5425068 | F6: 235.5878374 | G6: 384.5610611 | H6: 263.9239902 | I6: 322.6402334 | J6: 181.6423317 | K6: 292.4369981 | L6: 229.6940562 | M6: 225.234044 | N6: 335.6839812 | O6: 243.3724638 | P6: 344.0953065
A7: 2018 | B7: 168.1397804 | C7: 162.6158518 | D7: 215.1470499 | E7: 267.3752373 | F7: 260.5310647 | G7: 357.2385724 | H7: 234.6172357 | I7: 317.4986239 | J7: 195.9881636 | K7: 312.3560635 | L7: 249.4824947 | M7: 254.1216209 | N7: 318.8983637 | O7: 256.6607276 | P7: 345.4862396
A8: 2019 | B8: 162.1873956 | C8: 151.1622533 | D8: 211.0900865 | E8: 259.5982111 | F8: 244.6293665 | G8: 370.7995546 | H8: 249.9005469 | I8: 316.3980762 | J8: 210.313287 | K8: 307.9034018 | L8: 242.9175873 | M8: 250.2891088 | N8: 329.2197268 | O8: 253.9075218 | P8: 349.4312004
A9: 2020 | B9: 157.1056139 | C9: 149.5384393 | D9: 185.4540243 | E9: 234.0880754 | F9: 230.2844705 | G9: 347.4777843 | H9: 240.8677736 | I9: 303.5353564 | J9: 203.5210957 | K9: 314.0897218 | L9: 221.8319924 | M9: 250.0585345 | N9: 302.0036956 | O9: 242.0778485 | P9: 338.0720196
A10: 2021 | B10: 173.0159437 | C10: 166.5072054 | D10: 192.7815684 | E10: 245.0871109 | F10: 260.0299215 | G10: 350.2793806 | H10: 255.3428292 | I10: 340.9474015 | J10: 205.6363784 | K10: 385.4112139 | L10: 230.0381929 | M10: 283.2944744 | N10: 303.7401575 | O10: 265.4720772 | P10: 350.1890364
A11: Grand Total | B11: 188.3400467 | C11: 160.4184676 | D11: 192.8956762 | E11: 260.3441188 | F11: 246.3918098 | G11: 373.8707317 | H11: 253.0382358 | I11: 357.9117311 | J11: 204.4694045 | K11: 325.980257 | L11: 235.2254244 | M11: 251.078476 | N11: 319.4172095 | O11: 256.2626357 | P11: 346.2066452
O49: 1st day | P49: last day
O50: January 1 | P50: December 31
O51: ="Average Carbon Monoxide (CO) 1-hr Concentrations " &TEXT(O50,"mmm d")&" - " &TEXT(P50,"mmm d")&" (2021 data are preliminary)" -> Average Carbon Monoxide (CO) 1-hr Concentrations Jan 1 - Dec 31 (2021 data are preliminary)
A56: Click on the CALCULATE MACRO to update the % change between years table below:
A57: CALCULATE MACRO
A59: Row Labels | B59: =IF(B68="","",B68) -> ME-OTC | C59: =IF(C68="","",C68) -> NH | D59: VT | E59: CT | F59: MA | G59: RI | H59: DE | I59: DC | J59: MD | K59: NJ | L59: NY | M59: PA | N59: VA-OTC | O59: OTC | P59: OTC NEAR ROAD | Q59: =IF(Q68="","",Q68) -> 
A60: 2021/2015-100% | B60: =IF(B75="","", IF(B69="","",B75/B69-100%)) -> -0.2666760409 | C60: =IF(C75="","", IF(C69="","",C75/C69-100%)) -> -0.05570109411 | D60: 0.1368573844 | E60: -0.1342407975 | F60: 0.03853838371 | G60: -0.1563717209 | H60: -0.1757768094 | I60: -0.1812266554 | J60: -0.1241826138 | K60: 0.08036760164 | L60: -0.06910946234 | M60: 0.1007430245 | N60: -0.0923424315 | O60: -0.0258420346 | P60: -0.02909064926 | Q60: =IF(Q75="","", IF(Q69="","",Q75/Q69-100%)) -> 
A61: 2021/2016-100% | B61: =IF(B75="","", IF(B70="","",B75/B70-100%)) -> -0.1816268063 | C61: =IF(C75="","", IF(C70="","",C75/C70-100%)) -> 0.03666750629 | D61: 0.1993129972 | E61: -0.07522819599 | F61: 0.06666196046 | G61: -0.1043035739 | H61: -0.007951698848 | I61: -0.3008819604 | J61: 0.03136953207 | K61: 0.2313932063 | L61: 0.01987183548 | M61: 0.1941980217 | N61: -0.02495657131 | O61: 0.02158707789 | P61: 0.04364962823 | Q61: =IF(Q75="","", IF(Q70="","",Q75/Q70-100%)) -> 
A62: 2021/2017-100% | B62: =IF(B75="","", IF(B71="","",B75/B71-100%)) -> -0.1785014647 | C62: =IF(C75="","", IF(C71="","",C75/C71-100%)) -> 0.0664040834 | D62: -0.09788803057 | E62: -0.08393206797 | F62: 0.1037493463 | G62: -0.0891449603 | H62: -0.03251375881 | I62: 0.05674173941 | J62: 0.1320950161 | K62: 0.3179290456 | L62: 0.001498239207 | M62: 0.2577782174 | N62: -0.09516040533 | O62: 0.09080572644 | P62: 0.01770942447 | Q62: =IF(Q75="","", IF(Q71="","",Q75/Q71-100%)) -> 
A63: 2021/2018-100% | B63: =IF(B75="","", IF(B72="","",B75/B72-100%)) -> 0.0290006522 | C63: =IF(C75="","", IF(C72="","",C75/C72-100%)) -> 0.02392973101 | D63: -0.1039543952 | E63: -0.08335897759 | F63: -0.001923544659 | G63: -0.01948051632 | H63: 0.08833789853 | I63: 0.07385473764 | J63: 0.04922855883 | K63: 0.2338842073 | L63: -0.0779385416 | M63: 0.1147987858 | N63: -0.04753303223 | O63: 0.03433072782 | P63: 0.01361211029 | Q63: =IF(Q75="","", IF(Q72="","",Q75/Q72-100%)) -> 
A64: 2021/2019-100% | B64: =IF(B75="","", IF(B73="","",B75/B73-100%)) -> 0.0667656575 | C64: =IF(C75="","", IF(C73="","",C75/C73-100%)) -> 0.101513121 | D64: -0.08673319713 | E64: -0.05589830588 | F64: 0.06295464546 | G64: -0.05534034149 | H64: 0.02177779287 | I64: 0.07758999539 | J64: -0.02223781798 | K64: 0.2517276898 | L64: -0.0530196045 | M64: 0.1318689646 | N64: -0.07739381099 | O64: 0.04554632848 | P64: 0.002168770102 | Q64: =IF(Q75="","", IF(Q73="","",Q75/Q73-100%)) -> 
A65: 2021/2020-100% | B65: =IF(B75="","", IF(B74="","",B75/B74-100%)) -> 0.101271555 | C65: =IF(C75="","", IF(C74="","",C75/C74-100%)) -> 0.1134742761 | D65: 0.03951137827 | E65: 0.04698673982 | F65: 0.129168289 | G65: 0.008062663081 | H65: 0.06009544321 | I65: 0.1232543237 | J65: 0.01039343225 | K65: 0.2270736259 | L65: 0.03699286271 | M65: 0.1329126395 | N65: 0.005749803492 | O65: 0.09663927913 | P65: 0.03584152507 | Q65: =IF(Q75="","", IF(Q74="","",Q75/Q74-100%)) -> 
A68: Row Labels | B68: ME-OTC | C68: NH | D68: VT | E68: CT | F68: MA | G68: RI | H68: DE | I68: DC | J68: MD | K68: NJ | L68: NY | M68: PA | N68: VA-OTC | O68: OTC | P68: OTC NEAR ROAD
A69: 2015 | B69: 235.9338483 | C69: 176.3289191 | D69: 169.5741005 | E69: 283.0892357 | F69: 250.3806557 | G69: 415.2058309 | H69: 309.7981616 | I69: 416.4124342 | J69: 234.7936701 | K69: 356.7408105 | L69: 247.1162651 | M69: 257.3665861 | N69: 334.6417945 | O69: 272.5144039 | P69: 360.6814952
A70: 2016 | B70: 211.4144806 | C70: 160.617753 | D70: 160.7433329 | E70: 265.0244199 | F70: 243.779127 | G70: 391.0693069 | H70: 257.3895131 | I70: 487.6821683 | J70: 199.3818627 | K70: 312.9879326 | L70: 225.5559815 | M70: 237.2257107 | N70: 311.5144911 | O70: 259.8624072 | P70: 335.5427213
A71: 2017 | B71: 210.610167 | C71: 156.1389421 | D71: 213.7002666 | E71: 267.5425068 | F71: 235.5878374 | G71: 384.5610611 | H71: 263.9239902 | I71: 322.6402334 | J71: 181.6423317 | K71: 292.4369981 | L71: 229.6940562 | M71: 225.234044 | N71: 335.6839812 | O71: 243.3724638 | P71: 344.0953065
A72: 2018 | B72: 168.1397804 | C72: 162.6158518 | D72: 215.1470499 | E72: 267.3752373 | F72: 260.5310647 | G72: 357.2385724 | H72: 234.6172357 | I72: 317.4986239 | J72: 195.9881636 | K72: 312.3560635 | L72: 249.4824947 | M72: 254.1216209 | N72: 318.8983637 | O72: 256.6607276 | P72: 345.4862396
A73: 2019 | B73: 162.1873956 | C73: 151.1622533 | D73: 211.0900865 | E73: 259.5982111 | F73: 244.6293665 | G73: 370.7995546 | H73: 249.9005469 | I73: 316.3980762 | J73: 210.313287 | K73: 307.9034018 | L73: 242.9175873 | M73: 250.2891088 | N73: 329.2197268 | O73: 253.9075218 | P73: 349.4312004
A74: 2020 | B74: 157.1056139 | C74: 149.5384393 | D74: 185.4540243 | E74: 234.0880754 | F74: 230.2844705 | G74: 347.4777843 | H74: 240.8677736 | I74: 303.5353564 | J74: 203.5210957 | K74: 314.0897218 | L74: 221.8319924 | M74: 250.0585345 | N74: 302.0036956 | O74: 242.0778485 | P74: 338.0720196
A75: 2021 | B75: 173.0159437 | C75: 166.5072054 | D75: 192.7815684 | E75: 245.0871109 | F75: 260.0299215 | G75: 350.2793806 | H75: 255.3428292 | I75: 340.9474015 | J75: 205.6363784 | K75: 385.4112139 | L75: 230.0381929 | M75: 283.2944744 | N75: 303.7401575 | O75: 265.4720772 | P75: 350.1890364

Sheet HOURLY
A1: # data points 2015 | I1: =COUNT(I12:I8771) -> 8739 | J1: 8669 | K1: 8394 | L1: 8395 | M1: 8760 | N1: 8575 | O1: 2611 | P1: 8742 | Q1: 8760 | R1: 8760 | S1: 8760 | T1: 8760 | U1: 8738 | V1: 8760 | W1: =COUNT(W12:W8771) -> 8760 | X1: =COUNT(X12:X8771) -> 7329 | Y1: 8541 | Z1: 8411 | AA1: =COUNT(AA12:AA8771) -> 8630 | AB1: 8630 | AC1: 7418 | AD1: 8185 | AE1: 8249 | AF1: 8303 | AG1: 8175 | AH1: 8287 | AI1: 8305 | AJ1: 8305 | AK1: 7229 | AL1: 8170 | AM1: 8169 | AN1: 0 | AO1: 300 | AP1: 7640 | AQ1: 7920 | AR1: 7473 | AS1: 8323 | AT1: 8438 | AU1: 0 | AV1: 2611 | AW1: =COUNT(AW12:AW8771) -> 8649 | AX1: 0 | AY1: 7775 | AZ1: 4946 | BA1: 8588 | BB1: =COUNT(BB12:BB8771) -> 8461 | BC1: 8101 | BD1: 8444 | BE1: 8536 | BF1: 8522 | BG1: 8627 | BH1: 8683 | BI1: 8595 | BJ1: 8383 | BK1: =COUNT(BK12:BK8771) -> 8467 | BL1: 8691 | BM1: 8607 | BN1: 8640 | BO1: 8670 | BP1: =COUNT(BP12:BP8771) -> 8109 | BQ1: 8360 | BR1: 8513 | BS1: 8405 | BT1: 8497 | BU1: 0 | BV1: =COUNT(BV12:BV8771) -> 8145 | BW1: 0 | BX1: 8655 | BY1: 5107 | BZ1: 8678 | CA1: =COUNT(CA12:CA8771) -> 0 | CB1: 8336 | CC1: 0 | CD1: =COUNT(CD12:CD8771) -> 0 | CE1: 7512 | CF1: 8576 | CG1: 8593 | CH1: 0 | CI1: 0 | CJ1: 7784 | CK1: 7512 | CL1: 8028 | CM1: 0 | CN1: 8549 | CO1: 0 | CP1: 7634 | CQ1: =COUNT(CQ12:CQ8771) -> 8226 | CR1: 0 | CS1: 7520
A2: # data points 2016 | B2: FINAL except for Delaware | I2: =COUNT(I8772:I17555) -> 8760 | J2: 8638 | K2: 8437 | L2: 8418 | M2: 8784 | N2: 8585 | O2: 8277 | P2: 8784 | Q2: 8783 | R2: 8784 | S2: 8784 | T2: 8784 | U2: 8718 | V2: 8784 | W2: =COUNT(W8772:W17555) -> 8784 | X2: =COUNT(X8772:X17555) -> 7298 | Y2: 8633 | Z2: 8280 | AA2: =COUNT(AA8772:AA17555) -> 8374 | AB2: 8365 | AC2: 8275 | AD2: 8268 | AE2: 8282 | AF2: 8184 | AG2: 7947 | AH2: 8304 | AI2: 8239 | AJ2: 8169 | AK2: 8022 | AL2: 8249 | AM2: 8172 | AN2: 0 | AO2: 0 | AP2: 7985 | AQ2: 7971 | AR2: 7326 | AS2: 8468 | AT2: 8486 | AU2: 0 | AV2: 8277 | AW2: =COUNT(AW8772:AW17555) -> 8715 | AX2: 6503 | AY2: 7004 | AZ2: 8419 | BA2: 8625 | BB2: =COUNT(BB8772:BB17555) -> 8148 | BC2: 8355 | BD2: 7951 | BE2: 8047 | BF2: 0 | BG2: 8297 | BH2: 8662 | BI2: 8376 | BJ2: 8514 | BK2: =COUNT(BK8772:BK17555) -> 8721 | BL2: 8659 | BM2: 8408 | BN2: 8706 | BO2: 8298 | BP2: =COUNT(BP8772:BP17555) -> 8070 | BQ2: 8571 | BR2: 8589 | BS2: 8227 | BT2: 8423 | BU2: 0 | BV2: =COUNT(BV8772:BV17555) -> 7927 | BW2: 0 | BX2: 8487 | BY2: 8248 | BZ2: 8738 | CA2: =COUNT(CA8772:CA17555) -> 0 | CB2: 8347 | CC2: 0 | CD2: =COUNT(CD8772:CD17555) -> 0 | CE2: 8263 | CF2: 8584 | CG2: 8593 | CH2: 0 | CI2: 0 | CJ2: 8173 | CK2: 8202 | CL2: 8275 | CM2: 0 | CN2: 0 | CO2: 0 | CP2: 8372 | CQ2: =COUNT(CQ8772:CQ17555) -> 8581 | CR2: 5913 | CS2: 2112
A3: # data points 2017 | B3: AQS DOWNLOAD 5/28/2022 | I3: =COUNT(I17556:I26315) -> 8744 | J3: 8668 | K3: 8626 | L3: 8392 | M3: 8645 | N3: 8557 | O3: 7328 | P3: 8739 | Q3: 8759 | R3: 8759 | S3: 8760 | T3: 8760 | U3: 8721 | V3: 8760 | W3: 8760 | X3: 8209 | Y3: 8632 | Z3: 7980 | AA3: 8191 | AB3: 8585 | AC3: 7836 | AD3: 8140 | AE3: 8096 | AF3: 8264 | AG3: 8296 | AH3: 2026 | AI3: 8190 | AJ3: 8176 | AK3: 7426 | AL3: 8236 | AM3: 8164 | AN3: 0 | AO3: =COUNT(AO17556:AO26315) -> 0 | AP3: 7914 | AQ3: 8102 | AR3: 8251 | AS3: 8312 | AT3: 7834 | AU3: 0 | AV3: 7328 | AW3: 0 | AX3: 0 | AY3: 8421 | AZ3: 8311 | BA3: 8344 | BB3: 8135 | BC3: 7991 | BD3: 7819 | BE3: 8453 | BF3: 0 | BG3: 8463 | BH3: 8643 | BI3: 8312 | BJ3: 8578 | BK3: 8296 | BL3: 8606 | BM3: 8657 | BN3: 8694 | BO3: 8557 | BP3: 8510 | BQ3: 8309 | BR3: 8021 | BS3: 8477 | BT3: 8199 | BU3: =COUNT(BU17556:BU26315) -> 6417 | BV3: =COUNT(BV17556:BV26315) -> 8123 | BW3: 0 | BX3: 8160 | BY3: 8310 | BZ3: 8586 | CA3: 0 | CB3: 8338 | CC3: 0 | CD3: 0 | CE3: 8409 | CF3: 7953 | CG3: 7885 | CH3: 0 | CI3: 0 | CJ3: 2027 | CK3: 8304 | CL3: 8187 | CM3: 6843 | CN3: 0 | CO3: 0 | CP3: 8174 | CQ3: 8101 | CR3: 7978 | CS3: 0
A4: # data points 2018 | I4: =COUNT(I26316:I35075) -> 8743 | J4: 8652 | K4: 8751 | L4: 8428 | M4: 8365 | N4: 8532 | O4: 8436 | P4: 8752 | Q4: 8709 | R4: 8760 | S4: 8760 | T4: 8760 | U4: 8678 | V4: 8760 | W4: =COUNT(W26316:W35075) -> 8760 | X4: =COUNT(X26316:X35075) -> 6259 | Y4: 8472 | Z4: 8480 | AA4: =COUNT(AA26316:AA35075) -> 8122 | AB4: 8429 | AC4: 7854 | AD4: 8118 | AE4: 8368 | AF4: 8036 | AG4: 8233 | AH4: 0 | AI4: 8215 | AJ4: 8247 | AK4: 0 | AL4: 0 | AM4: 2553 | AN4: 1820 | AO4: 0 | AP4: 8217 | AQ4: 6277 | AR4: 7866 | AS4: 7888 | AT4: 8342 | AU4: 0 | AV4: 8436 | AW4: =COUNT(AW26316:AW35075) -> 0 | AX4: 0 | AY4: 8568 | AZ4: 8516 | BA4: 7831 | BB4: =COUNT(BB26316:BB35075) -> 0 | BC4: 7924 | BD4: 8216 | BE4: 8136 | BF4: 0 | BG4: 8583 | BH4: 8397 | BI4: 7981 | BJ4: 8648 | BK4: =COUNT(BK26316:BK35075) -> 8273 | BL4: 8539 | BM4: 8560 | BN4: 8646 | BO4: 8569 | BP4: =COUNT(BP26316:BP35075) -> 8627 | BQ4: 8593 | BR4: 8312 | BS4: 8637 | BT4: 8497 | BU4: 7684 | BV4: =COUNT(BV26316:BV35075) -> 8304 | BW4: 0 | BX4: 8332 | BY4: 8060 | BZ4: 8452 | CA4: =COUNT(CA26316:CA35075) -> 0 | CB4: 8279 | CC4: 0 | CD4: =COUNT(CD26316:CD35075) -> 0 | CE4: 8319 | CF4: 7934 | CG4: 8369 | CH4: 0 | CI4: 0 | CJ4: 0 | CK4: 7159 | CL4: 8168 | CM4: 8244 | CN4: 0 | CO4: 0 | CP4: 872 | CQ4: =COUNT(CQ26316:CQ35075) -> 8368 | CR4: 8188 | CS4: 0
A5: # data points 2019 | I5: =COUNT(I35076:I43835) -> 8739 | J5: 8614 | K5: 8749 | L5: 8413 | M5: 8608 | N5: 8531 | O5: 7863 | P5: 8752 | Q5: 8709 | R5: 8760 | S5: 8760 | T5: 8760 | U5: 8638 | V5: 8760 | W5: =COUNT(W35076:W43835) -> 8760 | X5: =COUNT(X35076:X43835) -> 8055 | Y5: 8117 | Z5: 8517 | AA5: =COUNT(AA35076:AA43835) -> 7729 | AB5: 8536 | AC5: 7905 | AD5: 8250 | AE5: 8258 | AF5: 8339 | AG5: 8348 | AH5: 0 | AI5: 8321 | AJ5: 8295 | AK5: 0 | AL5: 0 | AM5: 0 | AN5: 3095 | AO5: 0 | AP5: 8509 | AQ5: 2059 | AR5: 8055 | AS5: 8303 | AT5: 8160 | AU5: 0 | AV5: 7863 | AW5: =COUNT(AW35076:AW43835) -> 0 | AX5: 0 | AY5: 8529 | AZ5: 8556 | BA5: 8332 | BB5: =COUNT(BB35076:BB43835) -> 0 | BC5: 7375 | BD5: 8391 | BE5: 6818 | BF5: 0 | BG5: 8416 | BH5: 8149 | BI5: 8318 | BJ5: 8676 | BK5: =COUNT(BK35076:BK43835) -> 8322 | BL5: 8687 | BM5: 8125 | BN5: 8649 | BO5: 8605 | BP5: =COUNT(BP35076:BP43835) -> 8603 | BQ5: 8280 | BR5: 8302 | BS5: 8509 | BT5: 8519 | BU5: 8153 | BV5: =COUNT(BV35076:BV43835) -> 8492 | BW5: 0 | BX5: 8119 | BY5: 8299 | BZ5: 8296 | CA5: =COUNT(CA35076:CA43835) -> 0 | CB5: 8313 | CC5: 0 | CD5: =COUNT(CD35076:CD43835) -> 0 | CE5: 8325 | CF5: 8220 | CG5: 8181 | CH5: 0 | CI5: 0 | CJ5: 0 | CK5: 7123 | CL5: 8068 | CM5: 8280 | CN5: 0 | CO5: 0 | CP5: 0 | CQ5: =COUNT(CQ35076:CQ43835) -> 8499 | CR5: 8309 | CS5: 0
A6: # data points 2020 | I6: =COUNT(I43836:I52619) -> 8764 | J6: 8637 | K6: 8780 | L6: 8400 | M6: 8665 | N6: 8530 | O6: 8251 | P6: 8782 | Q6: 8655 | R6: 8784 | S6: 8781 | T6: 8784 | U6: 8659 | V6: 8784 | W6: =COUNT(W43836:W52619) -> 8784 | X6: =COUNT(X43836:X52619) -> 4423 | Y6: 8536 | Z6: 8520 | AA6: =COUNT(AA43836:AA52619) -> 8563 | AB6: 8390 | AC6: 8192 | AD6: 7851 | AE6: 8282 | AF6: 0 | AG6: 7808 | AH6: 0 | AI6: 8181 | AJ6: 7379 | AK6: 0 | AL6: 0 | AM6: 0 | AN6: 126 | AO6: 0 | AP6: 8312 | AQ6: 2378 | AR6: 8485 | AS6: 8100 | AT6: 8115 | AU6: 0 | AV6: 8251 | AW6: =COUNT(AW43836:AW52619) -> 0 | AX6: 0 | AY6: 8656 | AZ6: 8566 | BA6: 8344 | BB6: =COUNT(BB43836:BB52619) -> 0 | BC6: 8618 | BD6: 8050 | BE6: 7080 | BF6: 0 | BG6: 7750 | BH6: 8101 | BI6: 8252 | BJ6: 4503 | BK6: =COUNT(BK43836:BK52619) -> 8284 | BL6: 8241 | BM6: 0 | BN6: 8298 | BO6: 7897 | BP6: =COUNT(BP43836:BP52619) -> 8348 | BQ6: 7980 | BR6: 8621 | BS6: 8585 | BT6: 7977 | BU6: 7893 | BV6: =COUNT(BV43836:BV52619) -> 7822 | BW6: 0 | BX6: 8388 | BY6: 8363 | BZ6: 7005 | CA6: =COUNT(CA43836:CA52619) -> 0 | CB6: 8371 | CC6: 0 | CD6: =COUNT(CD43836:CD52619) -> 0 | CE6: 8165 | CF6: 8132 | CG6: 8360 | CH6: 0 | CI6: 0 | CJ6: 0 | CK6: 8077 | CL6: 8216 | CM6: 8294 | CN6: 0 | CO6: 0 | CP6: 0 | CQ6: =COUNT(CQ43836:CQ52619) -> 8544 | CR6: 8525 | CS6: 0
A7: # data points 2021 | I7: =COUNT(I52620:I61379) -> 8737 | J7: 8563 | K7: 8735 | L7: 8074 | M7: 8643 | N7: 8492 | O7: 7161 | P7: 8755 | Q7: 8708 | R7: 8760 | S7: 8760 | T7: 8760 | U7: 8636 | V7: 8760 | W7: 8760 | X7: 4585 | Y7: 8401 | Z7: 8349 | AA7: 7606 | AB7: 7592 | AC7: 7708 | AD7: 7922 | AE7: 8202 | AF7: 0 | AG7: 6038 | AH7: 0 | AI7: 6406 | AJ7: 6305 | AK7: 0 | AL7: 0 | AM7: 0 | AN7: 0 | AO7: =COUNT(AO52620:AO61379) -> 0 | AP7: 8290 | AQ7: 3935 | AR7: 6548 | AS7: 7479 | AT7: 8099 | AU7: 0 | AV7: 7161 | AW7: 0 | AX7: 0 | AY7: 8592 | AZ7: 8394 | BA7: 8351 | BB7: 0 | BC7: 8518 | BD7: 8170 | BE7: 8419 | BF7: 0 | BG7: 8677 | BH7: 8067 | BI7: 8247 | BJ7: 5456 | BK7: 8328 | BL7: 8610 | BM7: 0 | BN7: 8590 | BO7: 7582 | BP7: 8134 | BQ7: 8371 | BR7: 8533 | BS7: 8336 | BT7: 8453 | BU7: =COUNT(BU52620:BU61379) -> 8012 | BV7: =COUNT(BV52620:BV61379) -> 8602 | BW7: 6312 | BX7: 5051 | BY7: 7853 | BZ7: 0 | CA7: 0 | CB7: 8305 | CC7: 0 | CD7: 0 | CE7: 8068 | CF7: 6039 | CG7: 7876 | CH7: 0 | CI7: 0 | CJ7: 0 | CK7: 8166 | CL7: 8441 | CM7: 8117 | CN7: 0 | CO7: 0 | CP7: 0 | CQ7: 8563 | CR7: 8358 | CS7: 0
S8: PA all sites | T8: =IF(COUNT(BX8:CP8)=0,"",AVERAGE(BX8:CP8)) ->  | V8: =IF(COUNT(Y8:CS8)=0,"",AVERAGE(Y8:CS8)) ->  | X8: 1-HR CO | Y8: 1-HR CO | Z8: 1-HR CO | AA8: 1-HR CO | AB8: 1-HR CO | AC8: 1-HR CO | AD8: 1-HR CO | AE8: 1-HR CO | AF8: 1-HR CO | AG8: 1-HR CO | AH8: 1-HR CO | AI8: 1-HR CO | AJ8: 1-HR CO | AK8: 1-HR CO | AL8: 1-HR CO | AM8: 1-HR CO | AN8: 1-HR CO | AO8: 1-HR CO | AP8: 1-HR CO | AQ8: 1-HR CO | AR8: 1-HR CO | AS8: 1-HR CO | AT8: 1-HR CO | AU8: 1-HR CO | AV8: 1-HR CO | AW8: 1-HR CO | AX8: 1-HR CO | AY8: 1-HR CO | AZ8: 1-HR CO | BA8: 1-HR CO | BB8: 1-HR CO | BC8: 1-HR CO | BD8: 1-HR CO | BE8: 1-HR CO | BF8: 1-HR CO | BG8: 1-HR CO | BH8: 1-HR CO | BI8: 1-HR CO | BJ8: 1-HR CO | BK8: 1-HR CO | BL8: 1-HR CO | BM8: 1-HR CO | BN8: 1-HR CO | BO8: 1-HR CO | BP8: 1-HR CO | BQ8: 1-HR CO | BR8: 1-HR CO | BS8: 1-HR CO | BT8: 1-HR CO | BU8: 1-HR CO | BV8: 1-HR CO | BW8: 1-HR CO | BX8: 1-HR CO | BY8: 1-HR CO | BZ8: 1-HR CO | CA8: 1-HR CO | CB8: 1-HR CO | CC8: 1-HR CO | CD8: 1-HR CO | CE8: 1-HR CO | CF8: 1-HR CO | CG8: 1-HR CO | CH8: 1-HR CO | CI8: 1-HR CO | CJ8: 1-HR CO | CK8: 1-HR CO | CL8: 1-HR CO | CM8: 1-HR CO | CN8: 1-HR CO | CO8: 1-HR CO | CP8: 1-HR CO | CQ8: 1-HR CO | CR8: 1-HR CO | CS8: 1-HR CO
S9: PA 3 sites | T9: =IF(COUNT(CK9:CM9)=0,"",AVERAGE(CK9:CM9)) ->  | V9: =IF(COUNT(Y9:BW9)++COUNT(CK9:CM9)+COUNT(CQ9:CS9)=0,"",AVERAGE(Y9:BW9,CK9:CM9,CQ9:CS9)) ->  | X9: ME-NONOTC | Y9: ME-OTC | Z9: ME-OTC | AA9: NH | AB9: NH | AC9: VT | AD9: VT | AE9: VT | AF9: CT | AG9: CT | AH9: CT | AI9: CT | AJ9: CT | AK9: MA | AL9: MA | AM9: MA | AN9: MA | AO9: MA | AP9: MA | AQ9: MA | AR9: MA | AS9: RI | AT9: RI | AU9: DE | AV9: DE | AW9: DC | AX9: DC | AY9: DC | AZ9: DC | BA9: MD | BB9: MD | BC9: MD | BD9: MD | BE9: MD | BF9: MD | BG9: NJ | BH9: NJ | BI9: NJ | BJ9: NJ | BK9: NJ | BL9: NJ | BM9: NY | BN9: NY | BO9: NY | BP9: NY | BQ9: NY | BR9: NY | BS9: NY | BT9: NY | BU9: NY | BV9: NY | BW9: NY | BX9: PA | BY9: PA3 | BZ9: PA3 | CA9: PA3 | CB9: PA | CC9: PA | CD9: PA | CE9: PA | CF9: PA | CG9: PA | CH9: PA | CI9: PA | CJ9: PA | CK9: PA | CL9: PA | CM9: PA | CN9: PA | CO9: PA | CP9: PA | CQ9: VA | CR9: VA | CS9: VA
I10: ME-OTC | J10: NH | K10: VT | L10: CT | M10: MA | N10: RI | O10: DE | P10: DC | Q10: MD | R10: NJ | S10: NY | T10: PA | U10: VA-OTC | V10: OTC | W10: OTC NEAR ROAD | X10: MICMAC | Y10: Portland - Deering Oaks | Z10: Acadia NP - McFarland | AA10: Miller State Park | AB10: Londonderry - Moose Hill | AC10: Underhill | AD10: Burlington | AE10: RUTLAND | AF10: Bridgeport | AG10: Hartford-Huntley Place NR | AH10: East Hartford | AI10: Cornwall | AJ10: New Haven - Criscuolo Park | AK10: LYNN | AL10: Chicopee | AM10: Springfield | AN10: SPRINGFIELDSP | AO10: BOSTON-KENMORE | AP10: Boston - Roxbury | AQ10: Boston-Von Hillern NR | AR10: Worcester | AS10: Hayes/Park St NR | AT10: E Providence | AU10: Rte 9 Del. City | AV10: MLK | AX10: RIVER_Terrace | AY10: McMillan Reservoir | AZ10: Anacostia Freeway NR | BA10: Essex | BB10: Horn Point | BC10: Piney Run | BD10: Howard County NR | BE10: HU-Beltsville | BF10: Oldtown | BG10: Fort Lee NR | BH10: Camden Spruce St | BI10: Newark Firehouse | BJ10: Jersey City | BK10: Elizabeth | BL10: Elizabeth Trailer | BM10: Loudonville | BN10: Pfizer Lab | BO10: Buffalo | BP10: Buffalo NR | BQ10: Rochester NR | BR10: Rochester | BS10: CCNY | BT10: Queens | BU10: Queens College NR | BV10: Pinnacle State Park | BW10: Flax Pond | BX10: Arendtsville | BY10: Lawrenceville | CB10: Parkway East NR | CC10: Reading Airport | CE10: Johnstown | CF10: Erie | CG10: Scranton | CI10: Freemansburg | CK10: NEW | CL10: Torresdale NR | CM10: Car-Barn Montgomery I-76 NR | CN10: Charleroi | CO10: Houston | CP10: York | CQ10: AURORA HILLS | CR10: Springfield NR | CS10: ALEXANDRIA TRANSPORTATION
A11: DATE | B11: Month Day | C11: ProperDate | D11: ProperSort | E11: MONTH | F11: DAY | G11: YEAR | H11: Hour | I11: ME-OTC CO | J11: NH CO | K11: VT CO | L11: CT CO | M11: MA CO | N11: RI CO | O11: DE CO | P11: DC CO | Q11: MD CO | R11: NJ CO | S11: NY CO | T11: PA CO | U11: VA-OTC CO | V11: OTC CO | W11: OTC NEAR ROAD CO | X11: 230031100 | Y11: 230050029 | Z11: 230090103 | AA11: 330115001 | AB11: 330150018 | AC11: 500070007 | AD11: 500070014 | AE11: 500210002 | AF11: 90010010 | AG11: 90030025 | AH11: 90031003 | AI11: 90050005 | AJ11: 09-009-0027 | AK11: 250092006 | AL11: 250130008 | AM11: 250130016 | AN11: 250130018 | AO11: 250250002 | AP11: 250250042 | AQ11: 25-025-0044 | AR11: 250270023 | AS11: 440070030 | AT11: 440071010 | AU11: 100031008 | AV11: 10-003-2004 | AW11: 110010023 | AX11: 110010041 | AY11: 110010043 | AZ11: 110010051 | BA11: 240053001 | BB11: 240190004 | BC11: 240230002 | BD11: 240270006 | BE11: 240330030 | BF11: 245100040 | BG11: 340030010 | BH11: 340070002 | BI11: 340130003 | BJ11: 340171002 | BK11: 340390003 | BL11: 340390004 | BM11: 360010012 | BN11: 360050133 | BO11: 360290005 | BP11: 360290023 | BQ11: 360550015 | BR11: 360551007 | BS11: 360610135 | BT11: 360810124 | BU11: 360810125 | BV11: 361010003 | BW11: 361030044 | BX11: 420010001 | BY11: 420030008 | BZ11: 420030031 | CA11: 420030038 | CB11: 420031376 | CC11: 420110011 | CD11: 420170012 | CE11: 42-021-0011 | CF11: 420490003 | CG11: 420692006 | CH11: 420730015 | CI11: 420950025 | CJ11: 421010004 | CK11: 421010048 | CL11: 421010075 | CM11: 421010076 | CN11: 42-125-0005 | CO11: 421255200 | CP11: 421330008 | CQ11: 51-013-0020 | CR11: 51-059-0030-0031 | CS11: 51-510-0021
A12: 2015-01-01 | B12: Jan 01 | C12: =DATE(G12,E12,F12) -> 2015-01-01 | D12: =TEXT(E12,"00")&"-"&TEXT(C12,"MMM")&" "&TEXT(F12,"00") -> 01-Jan 01 | E12: 1 | F12: 1 | G12: 2015 | H12: 00:00:00 | I12: =IF(COUNT(Y12:Z12)=0,"",AVERAGE(Y12:Z12)) -> 243.45 | J12: =IF(COUNT(AA12:AB12)=0,"",AVERAGE(AA12:AB12)) -> 236.5 | K12: =IF(COUNT(AC12:AE12)=0,"",AVERAGE(AC12:AE12)) ->  | L12: =IF(COUNT(AF12:AJ12)=0,"",AVERAGE(AF12:AJ12)) -> 342 | M12: =IF(COUNT(AK12:AR12)=0,"",AVERAGE(AK12:AR12)) -> 429.4883333 | N12: =IF(COUNT(AS12:AT12)=0,"",AVERAGE(AS12:AT12)) -> 610 | O12: =IF(COUNT(AU12:AV12)=0,"",AVERAGE(AU12:AV12)) -> 570 | P12: =IF(COUNT(AW12:AZ12)=0,"",AVERAGE(AW12:AZ12)) -> 933.5 | Q12: =IF(COUNT(BA12:BF12)=0,"",AVERAGE(BA12:BF12)) -> 426.8333333 | R12: =IF(COUNT(BG12:BL12)=0,"",AVERAGE(BG12:BL12)) -> 428.3333333 | S12: =IF(COUNT(BM12:BW12)=0,"",AVERAGE(BM12:BW12)) -> 297.5333333 | T12: =IF(COUNT(BX12:CP12)=0,"",AVERAGE(BX12:CP12)) -> 190.9 | U12: =IF(COUNT(CQ12:CS12)=0,"",AVERAGE(CQ12:CS12)) -> 1200 | V12: =IF(COUNT(Y12:CS12)=0,"",AVERAGE(Y12:CS12)) -> 396.6345283 | W12: =IF(COUNT(AG12)+COUNT(AQ12)+COUNT(AS12)+COUNT(AZ12)+COUNT(BD12)+COUNT(BG12)+COUNT(BP12:BQ12)+COUNT(BU12)+COUNT(CB12)+COUNT(CL12:CM12)+COUNT(CR12)=0,"",AVERAGE(AG12,AQ12,AS12,AZ12,BD12,BG12,BP12:BQ12,BU12,CB12,CL12:CM12,CR12)) -> 451.60875 | X12: 183 | Y12: 350.7 | Z12: 136.2 | AA12: 192 | AB12: 281 | AF12: 428 | AG12: 548 | AH12: 286 | AI12: 155 | AJ12: 293 | AK12: 541.89 | AL12: 443.8 | AM12: 300 | AO12: 200 | AP12: 505.17 | AQ12: 586.07 | AS12: 910 | AT12: 310 | AV12: 570 | AW12: 1082 | AY12: 785 | BA12: 609 | BB12: 171 | BC12: 175 | BD12: 432 | BE12: 750 | BF12: 424 | BG12: 300 | BH12: 400 | BI12: 470 | BJ12: 600 | BK12: 500 | BL12: 300 | BM12: 100 | BN12: 300 | BO12: 600 | BP12: 207 | BQ12: 179.8 | BR12: 187.62 | BS12: 710 | BT12: 309.26 | BV12: 84.12 | BX12: 0 | BZ12: 200 | CE12: 200 | CF12: 300 | CG12: 0 | CJ12: 230 | CK12: 429 | CL12: 450 | CN12: 100 | CP12: 0 | CQ12: 1100 | CS12: 1300
A13: 2015-01-01 | B13: Jan 01 | C13: =DATE(G13,E13,F13) -> 2015-01-01 | D13: =TEXT(E13,"00")&"-"&TEXT(C13,"MMM")&" "&TEXT(F13,"00") -> 01-Jan 01 | E13: 1 | F13: 1 | G13: 2015 | H13: 01:00:00 | I13: 239.5 | J13: =IF(COUNT(AA13:AB13)=0,"",AVERAGE(AA13:AB13)) -> 246 | K13: =IF(COUNT(AC13:AE13)=0,"",AVERAGE(AC13:AE13)) -> 93.33333333 | L13: =IF(COUNT(AF13:AJ13)=0,"",AVERAGE(AF13:AJ13)) ->  | M13: =IF(COUNT(AK13:AR13)=0,"",AVERAGE(AK13:AR13)) -> 361.025 | N13: =IF(COUNT(AS13:AT13)=0,"",AVERAGE(AS13:AT13)) -> 565 | O13: =IF(COUNT(AU13:AV13)=0,"",AVERAGE(AU13:AV13)) -> 644 | P13: =IF(COUNT(AW13:AZ13)=0,"",AVERAGE(AW13:AZ13)) -> 880 | Q13: =IF(COUNT(BA13:BF13)=0,"",AVERAGE(BA13:BF13)) -> 401.1666667 | R13: =IF(COUNT(BG13:BL13)=0,"",AVERAGE(BG13:BL13)) -> 468.3333333 | S13: =IF(COUNT(BM13:BW13)=0,"",AVERAGE(BM13:BW13)) -> 304.8355556 | T13: 196.7333333 | U13: =IF(COUNT(CQ13:CS13)=0,"",AVERAGE(CQ13:CS13)) -> 1350 | V13: 376.8390566 | W13: =IF(COUNT(AG13)+COUNT(AQ13)+COUNT(AS13)+COUNT(AZ13)+COUNT(BD13)+COUNT(BG13)+COUNT(BP13:BQ13)+COUNT(BU13)+COUNT(CB13)+COUNT(CL13:CM13)+COUNT(CR13)=0,"",AVERAGE(AG13,AQ13,AS13,AZ13,BD13,BG13,BP13:BQ13,BU13,CB13,CL13:CM13,CR13)) -> 400.735 | X13: 175 | Y13: 335 | Z13: 144 | AA13: 209 | AB13: 283 | AC13: 70 | AD13: 70 | AE13: 140 | AK13: 441.11 | AL13: 376.97 | AM13: 300 | AO13: 100 | AP13: 435.29 | AQ13: 512.78 | AS13: 850 | AT13: 280 | AV13: 644 | AW13: 1007 | AY13: 753 | BA13: 416 | BB13: 167 | BC13: 172 | BD13: 516 | BE13: 789 | BF13: 347 | BG13: 300 | BH13: 400 | BI13: 410 | BJ13: 800 | BK13: 500 | BL13: 400 | BM13: 100 | BN13: 400 | BO13: 600 | BP13: 200.3 | BQ13: 169.6 | BR13: 190.22 | BS13: 680 | BT13: 320.5 | BV13: 82.9 | BX13: 0 | BY13: 191.6 | BZ13: 200 | CB13: 207.2 | CE13: 200 | CF13: 300 | CG13: 0 | CJ13: 260 | CK13: 452 | CL13: 450 | CN13: 100 | CP13: 0 | CQ13: 1200 | CS13: 1500
A14: 2015-01-01 | B14: Jan 01 | C14: 2015-01-01 | D14: 01-Jan 01 | E14: 1 | F14: 1 | G14: 2015 | H14: 02:00:00 | I14: 236.75 | J14: 246.5 | K14: 116.6666667 | L14: 279.6 | M14: 290.8083333 | N14: 470 | O14: 564 | P14: 728 | Q14: 342.6666667 | R14: 455 | S14: 291.4255556 | T14: 186.9666667 | U14: 1300 | V14: 339.1686207 | W14: 361.4788889 | X14: 151 | Y14: 326.7 | Z14: 146.8 | AA14: 221 | AB14: 272 | AC14: 80 | AD14: 130 | AE14: 140 | AF14: 351 | AG14: 432 | AH14: 232 | AI14: 156 | AJ14: 227 | AK14: 352.78 | AL14: 267 | AM14: 200 | AO14: 100 | AP14: 359.86 | AQ14: 465.21 | AS14: 680 | AT14: 260 | AV14: 564 | AW14: 881 | AY14: 575 | BA14: 169 | BB14: 165 | BC14: 169 | BD14: 408 | BE14: 832 | BF14: 313 | BG14: 300 | BH14: 400 | BI14: 430 | BJ14: 800 | BK14: 400 | BL14: 400 | BM14: 100 | BN14: 300 | BO14: 600 | BP14: 189.7 | BQ14: 163.3 | BR14: 175.9 | BS14: 700 | BT14: 314.54 | BV14: 79.39 | BX14: 0 | BY14: 193.5 | BZ14: 200 | CB14: 195.1 | CE14: 200 | CF14: 300 | CG14: 0 | CJ14: 220 | CK14: 415 | CL14: 420 | CN14: 100 | CP14: 0 | CQ14: 1100 | CS14: 1500
A15: 2015-01-01 | B15: Jan 01 | C15: 2015-01-01 | D15: 01-Jan 01 | E15: 1 | F15: 1 | G15: 2015 | H15: 03:00:00 | I15: 225.2 | J15: 255 | K15: 96.66666667 | L15: 257 | M15: 253.4566667 | N15: 300 | O15: 370 | P15: 548.5 | Q15: 389.3333333 | R15: 410 | S15: 287.1755556 | T15: 175.1166667 | U15: 950 | V15: 301.8124138 | W15: 307.3711111 | X15: 131 | Y15: 301 | Z15: 149.4 | AA15: 233 | AB15: 277 | AC15: 60 | AD15: 90 | AE15: 140 | AF15: 309 | AG15: 342 | AH15: 250 | AI15: 166 | AJ15: 218 | AK15: 285.72 | AL15: 256.8 | AM15: 200 | AO15: 100 | AP15: 298.08 | AQ15: 380.14 | AS15: 390 | AT15: 210 | AV15: 370 | AW15: 619 | AY15: 478 | BA15: 226 | BB15: 167 | BC15: 167 | BD15: 462 | BE15: 921 | BF15: 393 | BG15: 300 | BH15: 400 | BI15: 460 | BJ15: 700 | BK15: 300 | BL15: 300 | BM15: 100 | BN15: 300 | BO15: 600 | BP15: 191.8 | BQ15: 133 | BR15: 161.21 | BS15: 750 | BT15: 268.89 | BV15: 79.68 | BX15: 0 | BY15: 169 | BZ15: 200 | CB15: 197.4 | CE15: 200 | CF15: 300 | CG15: 0 | CJ15: 190 | CK15: 375 | CL15: 370 | CN15: 100 | CP15: 0 | CQ15: 700 | CS15: 1200
A16: 2015-01-01 | B16: Jan 01 | C16: 2015-01-01 | D16: 01-Jan 01 | E16: 1 | F16: 1 | G16: 2015 | H16: 04:00:00 | I16: 235.5 | J16: 251 | K16: 105 | L16: 227 | M16: 238.3516667 | N16: 255 | O16: 318 | P16: 436 | Q16: 450.5 | R16: 368 | S16: 282.6533333 | T16: 164.2818182 | U16: 850 | V16: 291.6743636 | W16: 286.33125 | X16: 153 | Y16: 316.9 | Z16: 154.1 | AA16: 230 | AB16: 272 | AD16: 70 | AE16: 140 | AF16: 263 | AG16: 279 | AH16: 204 | AI16: 169 | AJ16: 220 | AK16: 259.56 | AL16: 244.2 | AM16: 200 | AO16: 100 | AP16: 295.8 | AQ16: 330.55 | AS16: 310 | AT16: 200 | AV16: 318 | AW16: 537 | AY16: 335 | BA16: 369 | BB16: 164 | BC16: 170 | BD16: 574 | BE16: 980 | BF16: 446 | BH16: 400 | BI16: 340 | BJ16: 500 | BK16: 300 | BL16: 300 | BM16: 100 | BN16: 400 | BO16: 600 | BP16: 190.1 | BQ16: 119.6 | BR16: 156.27 | BS16: 640 | BT16: 261.54 | BV16: 76.37 | BX16: 0 | BY16: 165.7 | BZ16: 200 | CB16: 167.4 | CE16: 200 | CF16: 300 | CG16: 0 | CK16: 354 | CL16: 320 | CN16: 100 | CP16: 0 | CQ16: 500 | CS16: 1200
A17: 2015-01-01 | B17: Jan 01 | C17: 2015-01-01 | D17: 01-Jan 01 | E17: 1 | F17: 1 | G17: 2015 | H17: 05:00:00 | I17: 245.4 | J17: 239.5 | K17: 110 | L17: 191.2 | M17: 205.7183333 | N17: 220 | O17: 304 | P17: 461 | Q17: 492.5 | R17: 355 | S17: 286.8822222 | T17: 159.225 | U17: 550 | V17: 275.8552632 | W17: 272.1988889 | X17: 162 | Y17: 333.8 | Z17: 157 | AA17: 226 | AB17: 253 | AD17: 70 | AE17: 150 | AF17: 227 | AG17: 212 | AH17: 169 | AI17: 148 | AJ17: 200 | AK17: 250.8 | AL17: 198.66 | AM17: 200 | AO17: 0 | AP17: 280.06 | AQ17: 304.79 | AS17: 250 | AT17: 190 | AV17: 304 | AW17: 577 | AY17: 345 | BA17: 432 | BB17: 161 | BC17: 162 | BD17: 683 | BE17: 899 | BF17: 618 | BG17: 200 | BH17: 400 | BI17: 530 | BJ17: 500 | BK17: 300 | BL17: 200 | BM17: 100 | BN17: 400 | BO17: 610 | BP17: 193.3 | BQ17: 126.7 | BR17: 157.62 | BS17: 640 | BT17: 276.92 | BV17: 77.4 | BX17: 0 | BY17: 168.7 | BZ17: 200 | CB17: 160 | CE17: 200 | CF17: 300 | CG17: 0 | CJ17: 120 | CK17: 342 | CL17: 320 | CN17: 100 | CP17: 0 | CQ17: 500 | CS17: 600
A18: 2015-01-01 | B18: Jan 01 | C18: 2015-01-01 | D18: 01-Jan 01 | E18: 1 | F18: 1 | G18: 2015 | H18: 06:00:00 | I18: 238.35 | J18: 228 | K18: 105 | L18: 203 | M18: 220.2483333 | N18: 255 | O18: 314 | P18: 513.5 | Q18: 510.1666667 | R18: 380 | S18: 286.6988889 | T18: 163.0666667 | U18: 600 | V18: 287.8645614 | W18: 300.2444444 | X18: 162 | Y18: 323.6 | Z18: 153.1 | AA18: 219 | AB18: 237 | AD18: 70 | AE18: 140 | AF18: 250 | AG18: 230 | AH18: 179 | AI18: 155 | AJ18: 201 | AK18: 237.72 | AL18: 194.52 | AM18: 200 | AO18: 100 | AP18: 284.05 | AQ18: 305.2 | AS18: 320 | AT18: 190 | AV18: 314 | AW18: 617 | AY18: 410 | BA18: 495 | BB18: 158 | BC18: 160 | BD18: 797 | BE18: 898 | BF18: 553 | BG18: 200 | BH18: 400 | BI18: 480 | BJ18: 600 | BK18: 300 | BL18: 300 | BM18: 100 | BN18: 300 | BO18: 620 | BP18: 207.1 | BQ18: 138.8 | BR18: 169.01 | BS18: 680 | BT18: 292.18 | BV18: 73.2 | BX18: 0 | BY18: 172.7 | BZ18: 200 | CB18: 164.1 | CE18: 200 | CF18: 300 | CG18: 0 | CJ18: 130 | CK18: 350 | CL18: 340 | CN18: 100 | CP18: 0 | CQ18: 600 | CS18: 600
A19: 2015-01-01 | B19: Jan 01 | C19: 2015-01-01 | D19: 01-Jan 01 | E19: 1 | F19: 1 | G19: 2015 | H19: 07:00:00 | I19: 250.1 | J19: 213.5 | K19: 110 | L19: 223.4 | M19: 195.548 | N19: 255 | O19: 337 | P19: 503 | Q19: 466.6666667 | R19: 358.3333333 | S19: 282.2066667 | T19: 170.1 | U19: 550 | V19: 280.8214286 | W19: 313.4988889 | X19: 160 | Y19: 342.8 | Z19: 157.4 | AA19: 216 | AB19: 211 | AD19: 80 | AE19: 140 | AF19: 271 | AG19: 294 | AH19: 186 | AI19: 154 | AJ19: 212 | AL19: 195.15 | AM19: 100 | AO19: 0 | AP19: 290.9 | AQ19: 391.69 | AS19: 310 | AT19: 200 | AV19: 337 | AW19: 611 | AY19: 395 | BA19: 468 | BB19: 152 | BC19: 158 | BD19: 675 | BE19: 812 | BF19: 535 | BG19: 200 | BH19: 400 | BI19: 450 | BJ19: 500 | BK19: 300 | BL19: 300 | BM19: 100 | BN19: 300 | BO19: 620 | BP19: 203 | BQ19: 148.6 | BR19: 164.66 | BS19: 680 | BT19: 246.76 | BV19: 76.84 | BX19: 0 | BY19: 173 | BZ19: 200 | CB19: 189.2 | CE19: 200 | CF19: 300 | CG19: 0 | CJ19: 120 | CK19: 349 | CL19: 410 | CN19: 100 | CP19: 0 | CQ19: 500 | CS19: 600
A20: 2015-01-01 | B20: Jan 01 | C20: 2015-01-01 | D20: 01-Jan 01 | E20: 1 | F20: 1 | G20: 2015 | H20: 08:00:00 | I20: 236.7 | J20: 198 | K20: 105 | L20: 232.6 | M20: 186.7966667 | N20: 235 | O20: 344 | P20: 426 | Q20: 406 | R20: 336.6666667 | S20: 275.3511111 | T20: 174.1166667 | U20: 400 | V20: 260.574386 | W20: 291.0677778 | X20: 160 | Y20: 331.8 | Z20: 141.6 | AA20: 209 | AB20: 187 | AD20: 80 | AE20: 130 | AF20: 258 | AG20: 332 | AH20: 196 | AI20: 158 | AJ20: 219 | AK20: 225.62 | AL20: 204.38 | AM20: 100 | AO20: 0 | AP20: 268.87 | AQ20: 321.91 | AS20: 280 | AT20: 190 | AV20: 344 | AW20: 541 | AY20: 311 | BA20: 396 | BB20: 149 | BC20: 156 | BD20: 630 | BE20: 756 | BF20: 349 | BG20: 200 | BH20: 400 | BI20: 320 | BJ20: 500 | BK20: 300 | BL20: 300 | BM20: 100 | BN20: 300 | BO20: 610 | BP20: 192.8 | BQ20: 128.9 | BR20: 163.6 | BS20: 670 | BT20: 229.12 | BV20: 83.74 | BX20: 0 | BY20: 182.4 | BZ20: 200 | CB20: 164 | CE20: 200 | CF20: 300 | CG20: 0 | CJ20: 130 | CK20: 343 | CL20: 370 | CN20: 200 | CP20: 0 | CQ20: 400 | CS20: 400
A21: 2015-01-01 | B21: Jan 01 | C21: 2015-01-01 | D21: 01-Jan 01 | E21: 1 | F21: 1 | G21: 2015 | H21: 09:00:00 | I21: 220 | J21: 191.5 | K21: 110 | L21: 207.6 | M21: 171.2383333 | N21: 230 | O21: 313 | P21: 395 | Q21: 321.1666667 | R21: 273.3333333 | S21: 263.9944444 | T21: 157.7416667 | U21: 350 | V21: 231.7066667 | W21: 236.8777778 | X21: 160 | Y21: 293.7 | Z21: 146.3 | AA21: 203 | AB21: 180 | AD21: 90 | AE21: 130 | AF21: 240 | AG21: 276 | AH21: 184 | AI21: 143 | AJ21: 195 | AK21: 198.43 | AL21: 197.88 | AM21: 100 | AO21: 0 | AP21: 233.62 | AQ21: 297.5 | AS21: 280 | AT21: 180 | AV21: 313 | AW21: 515 | AY21: 275 | BA21: 362 | BB21: 143 | BC21: 159 | BD21: 355 | BE21: 586 | BF21: 322 | BG21: 100 | BH21: 400 | BI21: 240 | BJ21: 500 | BK21: 200 | BL21: 200 | BM21: 100 | BN21: 300 | BO21: 610 | BP21: 189.9 | BQ21: 140.5 | BR21: 157.36 | BS21: 590 | BT21: 203.73 | BV21: 84.46 | BX21: 0 | BY21: 182.9 | BZ21: 200 | CB21: 163 | CE21: 200 | CF21: 300 | CG21: 0 | CJ21: 90 | CK21: 327 | CL21: 330 | CN21: 100 | CP21: 0 | CQ21: 300 | CS21: 400
A22: 2015-01-01 | B22: Jan 01 | C22: 2015-01-01 | D22: 01-Jan 01 | E22: 1 | F22: 1 | G22: 2015 | H22: 10:00:00 | I22: 223.45 | J22: 183.5 | K22: 105 | L22: 207.8 | M22: 161.31 | N22: 240 | O22: 310 | P22: 381 | Q22: 242.6666667 | R22: 231.6666667 | S22: 249.5566667 | T22: 162.1833333 | U22: 300 | V22: 214.4029825 | W22: 232.1611111 | X22: 140 | Y22: 285.3 | Z22: 161.6 | AA22: 196 | AB22: 171 | AD22: 80 | AE22: 130 | AF22: 232 | AG22: 300 | AH22: 172 | AI22: 148 | AJ22: 187 | AK22: 179.75 | AL22: 197.96 | AM22: 100 | AO22: 0 | AP22: 210.3 | AQ22: 279.85 | AS22: 300 | AT22: 180 | AV22: 310 | AW22: 496 | AY22: 266 | BA22: 249 | BB22: 136 | BC22: 163 | BD22: 287 | BE22: 280 | BF22: 341 | BG22: 100 | BH22: 300 | BI22: 190 | BJ22: 400 | BK22: 200 | BL22: 200 | BM22: 100 | BN22: 200 | BO22: 620 | BP22: 197 | BQ22: 136.2 | BR22: 156.24 | BS22: 570 | BT22: 187.76 | BV22: 78.81 | BX22: 0 | BY22: 184.8 | BZ22: 200 | CB22: 189.4 | CE22: 200 | CF22: 300 | CG22: 0 | CJ22: 60 | CK22: 312 | CL22: 300 | CN22: 200 | CP22: 0 | CQ22: 300 | CS22: 300
A23: 2015-01-01 | B23: Jan 01 | C23: 2015-01-01 | D23: 01-Jan 01 | E23: 1 | F23: 1 | G23: 2015 | H23: 11:00:00 | I23: 230.5 | J23: 178.5 | K23: 120 | L23: 206.2 | M23: 157.73 | N23: 260 | O23: 290 | P23: 361 | Q23: 216.8333333 | R23: 230 | S23: 246.6666667 | T23: 170.075 | U23: 300 | V23: 212.4435088 | W23: 241.5411111 | X23: 136 | Y23: 292 | Z23: 169 | AA23: 195 | AB23: 162 | AD23: 100 | AE23: 140 | AF23: 245 | AG23: 278 | AH23: 170 | AI23: 160 | AJ23: 178 | AK23: 172.25 | AL23: 189.08 | AM23: 100 | AO23: 0 | AP23: 212.88 | AQ23: 272.17 | AS23: 340 | AT23: 180 | AV23: 290 | AW23: 479 | AY23: 243 | BA23: 244 | BB23: 139 | BC23: 138 | BD23: 275 | BE23: 200 | BF23: 305 | BG23: 100 | BH23: 300 | BI23: 180 | BJ23: 400 | BK23: 200 | BL23: 200 | BM23: 100 | BN23: 200 | BO23: 620 | BP23: 202.4 | BQ23: 150.4 | BR23: 157.27 | BS23: 520 | BT23: 179.25 | BV23: 90.68 | BX23: 0 | BY23: 184 | BZ23: 200 | CB23: 205.9 | CE23: 200 | CF23: 300 | CG23: 0 | CJ23: 80 | CK23: 321 | CL23: 350 | CN23: 200 | CP23: 0 | CQ23: 300 | CS23: 300
A24: 2015-01-01 | B24: Jan 01 | C24: 2015-01-01 | D24: 01-Jan 01 | E24: 1 | F24: 1 | G24: 2015 | H24: 12:00:00 | I24: 211.65 | J24: 179.5 | K24: 120 | L24: 222.2 | M24: 162.7666667 | N24: 280 | O24: 300 | P24: 340.5 | Q24: 179.6666667 | R24: 246.6666667 | S24: 249.8311111 | T24: 168.575 | U24: 300 | V24: 211.9347368 | W24: 247.8577778 | X24: 147 | Y24: 275.2 | Z24: 148.1 | AA24: 197 | AB24: 162 | AD24: 90 | AE24: 150 | AF24: 263 | AG24: 309 | AH24: 181 | AI24: 168 | AJ24: 190 | AK24: 175.09 | AL24: 183.76 | AM24: 100 | AO24: 0 | AP24: 224.53 | AQ24: 293.22 | AS24: 380 | AT24: 180 | AV24: 300 | AW24: 452 | AY24: 229 | BA24: 134 | BB24: 136 | BC24: 137 | BD24: 245 | BE24: 183 | BF24: 243 | BG24: 100 | BH24: 300 | BI24: 180 | BJ24: 500 | BK24: 200 | BL24: 200 | BM24: 100 | BN24: 200 | BO24: 620 | BP24: 199.3 | BQ24: 152.7 | BR24: 161.54 | BS24: 520 | BT24: 173.13 | BV24: 121.81 | BX24: 0 | BY24: 175.4 | BZ24: 200 | CB24: 201.5 | CE24: 200 | CF24: 300 | CG24: 0 | CJ24: 70 | CK24: 326 | CL24: 350 | CN24: 200 | CP24: 0 | CQ24: 300 | CS24: 300
A25: 2015-01-01 | B25: Jan 01 | C25: 2015-01-01 | D25: 01-Jan 01 | E25: 1 | F25: 1 | G25: 2015 | H25: 13:00:00 | I25: 213.15 | J25: 181 | K25: 135 | L25: 229.6 | M25: 166.2566667 | N25: 310 | O25: 299 | P25: 329 | Q25: 159.6666667 | R25: 246.6666667 | S25: 256.7777778 | T25: 171.8916667 | U25: 300 | V25: 213.9042105 | W25: 258.77 | X25: 145 | Y25: 275.6 | Z25: 150.7 | AA25: 194 | AB25: 168 | AD25: 120 | AE25: 150 | AF25: 288 | AG25: 308 | AH25: 188 | AI25: 163 | AJ25: 201 | AK25: 177.82 | AL25: 180.89 | AM25: 100 | AO25: 0 | AP25: 230.7 | AQ25: 308.13 | AS25: 430 | AT25: 190 | AV25: 299 | AW25: 451 | AY25: 207 | BA25: 116 | BB25: 130 | BC25: 138 | BD25: 212 | BE25: 161 | BF25: 201 | BG25: 100 | BH25: 300 | BI25: 180 | BJ25: 500 | BK25: 200 | BL25: 200 | BM25: 100 | BN25: 200 | BO25: 620 | BP25: 207.5 | BQ25: 194.5 | BR25: 171.31 | BS25: 560 | BT25: 170.39 | BV25: 87.3 | BX25: 0 | BY25: 179.9 | BZ25: 200 | CB25: 218.8 | CE25: 200 | CF25: 300 | CG25: 0 | CJ25: 90 | CK25: 324 | CL25: 350 | CN25: 200 | CP25: 0 | CQ25: 300 | CS25: 300
A26: 2015-01-01 | B26: Jan 01 | C26: 2015-01-01 | D26: 01-Jan 01 | E26: 1 | F26: 1 | G26: 2015 | H26: 14:00:00 | I26: 218.35 | J26: 182 | K26: 140 | L26: 244.8 | M26: 170.0933333 | N26: 315 | O26: 314 | P26: 331 | Q26: 157.5 | R26: 230 | S26: 250.2644444 | T26: 170.8416667 | U26: 300 | V26: 213.3112281 | W26: 262.5122222 | X26: 153 | Y26: 275.6 | Z26: 161.1 | AA26: 193 | AB26: 171 | AD26: 130 | AE26: 150 | AF26: 330 | AG26: 331 | AH26: 197 | AI26: 161 | AJ26: 205 | AK26: 179.74 | AL26: 186.07 | AM26: 100 | AO26: 0 | AP26: 248.44 | AQ26: 306.31 | AS26: 430 | AT26: 200 | AV26: 314 | AW26: 449 | AY26: 213 | BA26: 117 | BB26: 129 | BC26: 137 | BD26: 209 | BE26: 148 | BF26: 205 | BG26: 100 | BH26: 300 | BI26: 180 | BJ26: 400 | BK26: 200 | BL26: 200 | BM26: 100 | BN26: 200 | BO26: 630 | BP26: 208.1 | BQ26: 195.2 | BR26: 172.68 | BS26: 490 | BT26: 167.91 | BV26: 88.49 | BX26: 0 | BY26: 171.1 | BZ26: 200 | CB26: 213 | CE26: 200 | CF26: 300 | CG26: 0 | CJ26: 70 | CK26: 326 | CL26: 370 | CN26: 200 | CP26: 0 | CQ26: 300 | CS26: 300
A27: 2015-01-01 | B27: Jan 01 | C27: 2015-01-01 | D27: 01-Jan 01 | E27: 1 | F27: 1 | G27: 2015 | H27: 15:00:00 | I27: 236.9 | J27: 188.5 | K27: 135 | L27: 253.8 | M27: 180.81 | N27: 340 | O27: 304 | P27: 349 | Q27: 156.5 | R27: 248.3333333 | S27: 254.6466667 | T27: 176.8916667 | U27: 300 | V27: 221.0557895 | W27: 276.7588889 | X27: 160 | Y27: 313.5 | Z27: 160.3 | AA27: 202 | AB27: 175 | AD27: 110 | AE27: 160 | AF27: 328 | AG27: 356 | AH27: 215 | AI27: 156 | AJ27: 214 | AK27: 186.52 | AL27: 184.97 | AM27: 100 | AO27: 0 | AP27: 271.44 | AQ27: 341.93 | AS27: 480 | AT27: 200 | AV27: 304 | AW27: 463 | AY27: 235 | BA27: 107 | BB27: 127 | BC27: 142 | BD27: 201 | BE27: 159 | BF27: 203 | BG27: 100 | BH27: 300 | BI27: 190 | BJ27: 500 | BK27: 200 | BL27: 200 | BM27: 100 | BN27: 200 | BO27: 630 | BP27: 210.8 | BQ27: 185.7 | BR27: 170.77 | BS27: 520 | BT27: 186.54 | BV27: 88.01 | BX27: 0 | BY27: 177.3 | BZ27: 200 | CB27: 265.4 | CE27: 200 | CF27: 300 | CG27: 0 | CJ27: 110 | CK27: 320 | CL27: 350 | CN27: 200 | CP27: 0 | CQ27: 300 | CS27: 300
A28: 2015-01-01 | B28: Jan 01 | C28: 2015-01-01 | D28: 01-Jan 01 | E28: 1 | F28: 1 | G28: 2015 | H28: 16:00:00 | I28: 256.05 | J28: 194.5 | K28: 135 | L28: 276.8 | M28: 181.44 | N28: 400 | O28: 327 | P28: 370 | Q28: 180.1666667 | R28: 285 | S28: 281.9933333 | T28: 189.2333333 | U28: 300 | V28: 241.59 | W28: 320.3033333 | X28: 182 | Y28: 349 | Z28: 163.1 | AA28: 207 | AB28: 182 | AD28: 100 | AE28: 170 | AF28: 345 | AG28: 401 | AH28: 241 | AI28: 158 | AJ28: 239 | AK28: 204.74 | AL28: 209.43 | AM28: 100 | AO28: 0 | AQ28: 393.03 | AS28: 580 | AT28: 220 | AV28: 327 | AW28: 476 | AY28: 264 | BA28: 117 | BB28: 124 | BC28: 144 | BD28: 290 | BE28: 171 | BF28: 235 | BG28: 100 | BH28: 300 | BI28: 210 | BJ28: 600 | BK28: 300 | BL28: 200 | BM28: 100 | BN28: 300 | BO28: 630 | BP28: 216.5 | BQ28: 203.3 | BR28: 171.78 | BS28: 600 | BT28: 231.81 | BV28: 84.55 | BX28: 0 | BY28: 175.9 | BZ28: 200 | CB28: 228.9 | CE28: 200 | CF28: 300 | CG28: 0 | CJ28: 150 | CK28: 346 | CL28: 470 | CN28: 200 | CP28: 0 | CQ28: 300 | CS28: 300
A29: 2015-01-01 | B29: Jan 01 | C29: 2015-01-01 | D29: 01-Jan 01 | E29: 1 | F29: 1 | G29: 2015 | H29: 17:00:00 | I29: 257.7 | J29: 198.5 | K29: 135 | L29: 270.4 | M29: 182.026 | N29: 515 | O29: 332 | P29: 396 | Q29: 209.6666667 | R29: 306.6666667 | S29: 289.4344444 | T29: 185.6083333 | U29: 300 | V29: 252.2989286 | W29: 358.7688889 | X29: 182 | Y29: 342.8 | Z29: 172.6 | AA29: 209 | AB29: 188 | AD29: 90 | AE29: 180 | AF29: 344 | AG29: 389 | AH29: 222 | AI29: 152 | AJ29: 245 | AK29: 207.96 | AL29: 221.05 | AM29: 100 | AO29: 0 | AQ29: 381.12 | AS29: 790 | AT29: 240 | AV29: 332 | AW29: 512 | AY29: 280 | BA29: 152 | BB29: 125 | BC29: 124 | BD29: 424 | BE29: 190 | BF29: 243 | BG29: 100 | BH29: 300 | BI29: 240 | BJ29: 700 | BK29: 300 | BL29: 200 | BM29: 100 | BN29: 300 | BO29: 630 | BP29: 217.6 | BQ29: 176 | BR29: 174.49 | BS29: 670 | BT29: 253.37 | BV29: 83.45 | BX29: 0 | BY29: 184.1 | BZ29: 200 | CB29: 181.2 | CE29: 200 | CF29: 300 | CG29: 0 | CJ29: 150 | CK29: 342 | CL29: 570 | CN29: 100 | CP29: 0 | CQ29: 300 | CS29: 300
A30: 2015-01-01 | B30: Jan 01 | C30: 2015-01-01 | D30: 01-Jan 01 | E30: 1 | F30: 1 | G30: 2015 | H30: 18:00:00 | I30: 267.55 | J30: 206 | K30: 170 | L30: 323.6 | M30: 236.685 | N30: 545 | O30: 346 | P30: 418.5 | Q30: 230.8333333 | R30: 290 | S30: 284.8988889 | T30: 234.0545455 | U30: 400 | V30: 279.6767857 | W30: 347.71625 | X30: 157 | Y30: 357.2 | Z30: 177.9 | AA30: 210 | AB30: 202 | AD30: 90 | AE30: 250 | AF30: 491 | AG30: 448 | AH30: 231 | AI30: 160 | AJ30: 288 | AK30: 206.98 | AL30: 237.32 | AM30: 200 | AO30: 100 | AP30: 323.98 | AQ30: 351.83 | AS30: 830 | AT30: 260 | AV30: 346 | AW30: 522 | AY30: 315 | BA30: 143 | BB30: 132 | BC30: 131 | BD30: 462 | BE30: 237 | BF30: 280 | BG30: 100 | BH30: 300 | BI30: 240 | BJ30: 600 | BK30: 300 | BL30: 200 | BM30: 100 | BN30: 300 | BO30: 640 | BP30: 219.8 | BQ30: 194.3 | BR30: 180.42 | BS30: 600 | BT30: 243.58 | BV30: 85.99 | BX30: 0 | BY30: 189.8 | BZ30: 200 | CB30: 175.8 | CE30: 200 | CF30: 300 | CG30: 0 | CJ30: 160 | CK30: 1249 | CN30: 100 | CP30: 0 | CQ30: 400 | CS30: 400
A31: 2015-01-01 | B31: Jan 01 | C31: 2015-01-01 | D31: 01-Jan 01 | E31: 1 | F31: 1 | G31: 2015 | H31: 19:00:00 | I31: 259.6 | J31: 213.5 | K31: 280 | L31: 286.8 | M31: 255.38 | N31: 595 | O31: 361 | P31: 438 | Q31: 243 | R31: 315 | S31: 299.4777778 | T31: 154.6545455 | U31: 400 | V31: 276.1563636 | W31: 358.33 | X31: 158 | Y31: 339.6 | Z31: 179.6 | AA31: 214 | AB31: 213 | AD31: 90 | AE31: 470 | AF31: 342 | AG31: 421 | AH31: 260 | AI31: 173 | AJ31: 238 | AL31: 269.66 | AM31: 200 | AO31: 100 | AP31: 318 | AQ31: 389.24 | AS31: 870 | AT31: 320 | AV31: 361 | AW31: 549 | AY31: 327 | BA31: 159 | BB31: 136 | BC31: 126 | BD31: 488 | BE31: 252 | BF31: 297 | BG31: 100 | BH31: 300 | BI31: 290 | BJ31: 600 | BK31: 300 | BL31: 300 | BM31: 200 | BN31: 300 | BO31: 650 | BP31: 212.4 | BQ31: 179.6 | BR31: 184 | BS31: 640 | BT31: 243.07 | BV31: 86.23 | BX31: 0 | BY31: 207.8 | BZ31: 200 | CB31: 206.4 | CE31: 200 | CF31: 300 | CG31: 0 | CJ31: 150 | CK31: 337 | CN31: 100 | CP31: 0 | CQ31: 400 | CS31: 400
A32: 2015-01-01 | B32: Jan 01 | C32: 2015-01-01 | D32: 01-Jan 01 | E32: 1 | F32: 1 | G32: 2015 | H32: 20:00:00 | I32: 247 | J32: 216 | K32: 275 | L32: 292.6 | M32: 256.568 | N32: 595 | O32: 378 | P32: 431 | Q32: 222.5 | R32: 303.3333333 | S32: 294.5711111 | T32: 174.2 | U32: 400 | V32: 274.0782143 | W32: 351.7411111 | X32: 172 | Y32: 320.7 | Z32: 173.3 | AA32: 215 | AB32: 217 | AD32: 100 | AE32: 450 | AF32: 344 | AG32: 434 | AH32: 277 | AI32: 180 | AJ32: 228 | AK32: 238.25 | AM32: 200 | AO32: 100 | AP32: 357.92 | AQ32: 386.67 | AS32: 820 | AT32: 370 | AV32: 378 | AW32: 527 | AY32: 335 | BA32: 150 | BB32: 135 | BC32: 128 | BD32: 391 | BE32: 234 | BF32: 297 | BG32: 100 | BH32: 300 | BI32: 320 | BJ32: 600 | BK32: 300 | BL32: 200 | BM32: 200 | BN32: 300 | BO32: 640 | BP32: 206 | BQ32: 178 | BR32: 186.26 | BS32: 640 | BT32: 222.71 | BV32: 78.17 | BX32: 0 | BY32: 207.4 | BZ32: 200 | CB32: 220 | CE32: 100 | CF32: 300 | CG32: 0 | CJ32: 190 | CK32: 343 | CL32: 430 | CN32: 100 | CP32: 0 | CQ32: 400 | CS32: 400
A33: 2015-01-01 | B33: Jan 01 | C33: 2015-01-01 | D33: 01-Jan 01 | E33: 1 | F33: 1 | G33: 2015 | H33: 21:00:00 | I33: 258.55 | J33: 225.5 | K33: 160 | L33: 284.8 | M33: 262.9316667 | N33: 570 | O33: 452 | P33: 447 | Q33: 220.8333333 | R33: 321.6666667 | S33: 300.3833333 | T33: 169.8083333 | U33: 350 | V33: 271.4357895 | W33: 353.5322222 | X33: 175 | Y33: 342.3 | Z33: 174.8 | AA33: 223 | AB33: 228 | AD33: 100 | AE33: 220 | AF33: 306 | AG33: 465 | AH33: 264 | AI33: 160 | AJ33: 229 | AK33: 248.48 | AL33: 276.67 | AM33: 200 | AO33: 100 | AP33: 346.15 | AQ33: 406.29 | AS33: 800 | AT33: 340 | AV33: 452 | AW33: 532 | AY33: 362 | BA33: 171 | BB33: 133 | BC33: 129 | BD33: 369 | BE33: 232 | BF33: 291 | BG33: 100 | BH33: 300 | BI33: 330 | BJ33: 600 | BK33: 300 | BL33: 300 | BM33: 200 | BN33: 300 | BO33: 650 | BP33: 208.2 | BQ33: 189.7 | BR33: 192.31 | BS33: 630 | BT33: 252.86 | BV33: 80.38 | BX33: 0 | BY33: 185.1 | BZ33: 200 | CB33: 213.6 | CE33: 100 | CF33: 300 | CG33: 0 | CJ33: 130 | CK33: 379 | CL33: 430 | CN33: 100 | CP33: 0 | CQ33: 300 | CS33: 400
A34: 2015-01-01 | B34: Jan 01 | C34: 2015-01-01 | D34: 01-Jan 01 | E34: 1 | F34: 1 | G34: 2015 | H34: 22:00:00 | I34: 261 | J34: 229 | K34: 120 | L34: 283.8 | M34: 293.55 | N34: 425 | O34: 633 | P34: 449 | Q34: 278.3333333 | R34: 321.6666667 | S34: 299.5233333 | T34: 194.725 | U34: 350 | V34: 282.0937037 | W34: 331.15 | X34: 163 | Y34: 351.7 | Z34: 170.3 | AA34: 225 | AB34: 233 | AD34: 100 | AE34: 140 | AF34: 311 | AG34: 408 | AH34: 268 | AI34: 166 | AJ34: 266 | AK34: 252.79 | AL34: 263.94 | AP34: 363.92 | AS34: 580 | AT34: 270 | AV34: 633 | AW34: 519 | AY34: 379 | BA34: 339 | BB34: 138 | BC34: 132 | BD34: 410 | BE34: 247 | BF34: 404 | BG34: 100 | BH34: 300 | BI34: 330 | BJ34: 600 | BK34: 300 | BL34: 300 | BM34: 200 | BN34: 300 | BO34: 640 | BP34: 210.3 | BQ34: 200.8 | BR34: 183.34 | BS34: 620 | BT34: 258.57 | BV34: 82.7 | BX34: 0 | BY34: 177.6 | BZ34: 200 | CB34: 200.1 | CE34: 200 | CF34: 300 | CG34: 0 | CJ34: 200 | CK34: 419 | CL34: 540 | CN34: 100 | CP34: 0 | CQ34: 300 | CS34: 400
A35: 2015-01-01 | B35: Jan 01 | C35: 2015-01-01 | D35: 01-Jan 01 | E35: 1 | F35: 1 | G35: 2015 | H35: 23:00:00 | I35: 264.4 | J35: 234 | K35: 115 | L35: 265.4 | M35: 251.1216667 | N35: 290 | O35: 694 | P35: 484.5 | Q35: 294.4 | R35: 318.3333333 | S35: 290.6144444 | T35: 204.9833333 | U35: 450 | V35: 279.6582143 | W35: 299.93375 | X35: 167 | Y35: 357.5 | Z35: 171.3 | AA35: 231 | AB35: 237 | AD35: 100 | AE35: 130 | AF35: 290 | AG35: 382 | AH35: 242 | AI35: 162 | AJ35: 251 | AK35: 236.88 | AL35: 245.98 | AM35: 200 | AO35: 100 | AP35: 344.7 | AQ35: 379.17 | AS35: 410 | AT35: 170 | AV35: 694 | AW35: 576 | AY35: 393 | BA35: 468 | BB35: 147 | BC35: 147 | BE35: 332 | BF35: 378 | BG35: 100 | BH35: 400 | BI35: 310 | BJ35: 500 | BK35: 300 | BL35: 300 | BM35: 200 | BN35: 300 | BO35: 640 | BP35: 204.6 | BQ35: 156.8 | BR35: 172.51 | BS35: 600 | BT35: 256.58 | BV35: 85.04 | BX35: 0 | BY35: 181.9 | BZ35: 200 | CB35: 196.9 | CE35: 200 | CF35: 300 | CG35: 0 | CJ35: 270 | CK35: 441 | CL35: 570 | CN35: 100 | CP35: 0 | CQ35: 400 | CS35: 500
A36: 2015-01-02 | B36: Jan 02 | C36: 2015-01-02 | D36: 01-Jan 02 | E36: 1 | F36: 2 | G36: 2015 | H36: 00:00:00 | I36: 264.9 | J36: 236 | L36: 252.6 | M36: 232.1066667 | O36: 749 | P36: 432.5 | Q36: 285.5 | R36: 333.3333333 | S36: 277.0955556 | T36: 211.2 | U36: 400 | V36: 282.1627451 | W36: 270.3542857 | X36: 186 | Y36: 357.1 | Z36: 172.7 | AA36: 232 | AB36: 240 | AF36: 284 | AG36: 338 | AH36: 241 | AI36: 163 | AJ36: 237 | AK36: 221.64 | AL36: 240.56 | AM36: 200 | AO36: 100 | AP36: 309.06 | AQ36: 321.38 | AV36: 749 | AW36: 622 | AY36: 243 | BA36: 520 | BB36: 150 | BC36: 165 | BD36: 233 | BE36: 267 | BF36: 378 | BG36: 100 | BH36: 500 | BI36: 300 | BJ36: 500 | BK36: 300 | BL36: 300 | BM36: 100 | BN36: 300 | BO36: 640 | BP36: 202.6 | BQ36: 147.5 | BR36: 165.28 | BS36: 610 | BT36: 245.35 | BV36: 83.13 | BX36: 0 | BZ36: 200 | CE36: 200 | CF36: 300 | CG36: 0 | CJ36: 290 | CK36: 472 | CL36: 550 | CN36: 100 | CP36: 0 | CQ36: 300 | CS36: 500
A37: 2015-01-02 | B37: Jan 02 | C37: 2015-01-02 | D37: 01-Jan 02 | E37: 1 | F37: 2 | G37: 2015 | H37: 01:00:00 | I37: 270.3 | J37: 229 | K37: 110 | M37: 230.545 | O37: 791 | P37: 487 | Q37: 321.3333333 | R37: 295 | S37: 279.5155556 | T37: 214.5583333 | U37: 550 | V37: 281.6707843 | W37: 248.6028571 | X37: 186 | Y37: 366.9 | Z37: 173.7 | AA37: 226 | AB37: 232 | AC37: 110 | AD37: 80 | AE37: 140 | AK37: 214.85 | AL37: 237.46 | AM37: 200 | AO37: 100 | AP37: 313.24 | AQ37: 317.72 | AV37: 791 | AW37: 687 | AY37: 287 | BA37: 534 | BB37: 148 | BC37: 167 | BD37: 241 | BE37: 248 | BF37: 590 | BG37: 100 | BH37: 400 | BI37: 270 | BJ37: 500 | BK37: 300 | BL37: 200 | BM37: 200 | BN37: 300 | BO37: 640 | BP37: 202.4 | BQ37: 133.5 | BR37: 158.48 | BS37: 570 | BT37: 225.37 | BV37: 85.89 | BX37: 0 | BY37: 180.1 | BZ37: 200 | CB37: 175.6 | CE37: 200 | CF37: 300 | CG37: 0 | CJ37: 350 | CK37: 499 | CL37: 570 | CN37: 100 | CP37: 0 | CQ37: 400 | CS37: 700
A38: 2015-01-02 | B38: Jan 02 | C38: 2015-01-02 | D38: 01-Jan 02 | E38: 1 | F38: 2 | G38: 2015 | H38: 02:00:00 | I38: 259.4 | K38: 120 | L38: 237.8 | M38: 233.045 | O38: 597 | P38: 532 | Q38: 268.1666667 | R38: 330 | S38: 276.6866667 | T38: 213.925 | U38: 550 | V38: 275.4324074 | W38: 239.66125 | X38: 165 | Y38: 360.9 | Z38: 157.9 | AC38: 140 | AD38: 80 | AE38: 140 | AF38: 252 | AG38: 298 | AH38: 231 | AI38: 171 | AJ38: 237 | AK38: 214.84 | AL38: 245.93 | AM38: 200 | AO38: 100 | AP38: 319.21 | AQ38: 318.29 | AV38: 597 | AW38: 767 | AY38: 297 | BA38: 443 | BB38: 143 | BC38: 169 | BD38: 206 | BE38: 237 | BF38: 411 | BG38: 100 | BH38: 500 | BI38: 280 | BJ38: 600 | BK38: 300 | BL38: 200 | BM38: 200 | BN38: 300 | BO38: 640 | BP38: 200 | BQ38: 128.2 | BR38: 163.71 | BS38: 580 | BT38: 196.19 | BV38: 82.08 | BX38: 0 | BY38: 174.3 | BZ38: 200 | CB38: 176.8 | CE38: 200 | CF38: 300 | CG38: 0 | CJ38: 310 | CK38: 516 | CL38: 490 | CN38: 200 | CP38: 0 | CQ38: 400 | CS38: 700
A39: 2015-01-02 | B39: Jan 02 | C39: 2015-01-02 | D39: 01-Jan 02 | E39: 1 | F39: 2 | G39: 2015 | H39: 03:00:00 | I39: 268.8 | J39: 212 | K39: 123.3333333 | L39: 228.6 | M39: 226.0333333 | N39: 280 | O39: 431 | P39: 431.5 | Q39: 224.8333333 | R39: 310 | S39: 276.2188889 | T39: 200.7333333 | U39: 600 | V39: 258.4236207 | W39: 242.5944444 | X39: 166 | Y39: 372.4 | Z39: 165.2 | AA39: 219 | AB39: 205 | AC39: 150 | AD39: 90 | AE39: 130 | AF39: 236 | AG39: 281 | AH39: 238 | AI39: 164 | AJ39: 224 | AK39: 207.61 | AL39: 242.26 | AM39: 200 | AO39: 100 | AP39: 283.28 | AQ39: 323.05 | AS39: 330 | AT39: 230 | AV39: 431 | AW39: 659 | AY39: 204 | BA39: 274 | BB39: 141 | BC39: 171 | BD39: 234 | BE39: 213 | BF39: 316 | BG39: 100 | BH39: 500 | BI39: 260 | BJ39: 500 | BK39: 300 | BL39: 200 | BM39: 200 | BN39: 300 | BO39: 640 | BP39: 201.9 | BQ39: 135.9 | BR39: 172.49 | BS39: 560 | BT39: 197.27 | BV39: 78.41 | BX39: 0 | BY39: 174.3 | BZ39: 200 | CB39: 177.5 | CE39: 200 | CF39: 300 | CG39: 0 | CJ39: 270 | CK39: 487 | CL39: 400 | CN39: 200 | CP39: 0 | CQ39: 500 | CS39: 700
A40: 2015-01-02 | B40: Jan 02 | C40: 2015-01-02 | D40: 01-Jan 02 | E40: 1 | F40: 2 | G40: 2015 | H40: 04:00:00 | I40: 272.7 | J40: 211.5 | K40: 126.6666667 | L40: 238.8 | M40: 228.7816667 | N40: 395 | O40: 527 | P40: 349 | Q40: 201.6666667 | R40: 343.3333333 | S40: 275.8533333 | T40: 184.1181818 | U40: 650 | V40: 263.2994737 | W40: 262.3977778 | X40: 172 | Y40: 363.3 | Z40: 182.1 | AA40: 211 | AB40: 212 | AC40: 170 | AD40: 80 | AE40: 130 | AF40: 253 | AG40: 306 | AH40: 242 | AI40: 168 | AJ40: 225 | AK40: 206.89 | AL40: 237.07 | AM40: 200 | AO40: 100 | AP40: 312.15 | AQ40: 316.58 | AS40: 480 | AT40: 310 | AV40: 527 | AW40: 564 | AY40: 134 | BA40: 267 | BB40: 151 | BC40: 181 | BD40: 170 | BE40: 193 | BF40: 248 | BG40: 200 | BH40: 500 | BI40: 260 | BJ40: 500 | BK40: 300 | BL40: 300 | BM40: 100 | BN40: 300 | BO40: 660 | BP40: 212.1 | BQ40: 138.9 | BR40: 171.71 | BS40: 580 | BT40: 242.09 | BV40: 77.88 | BX40: 0 | BY40: 182.3 | BZ40: 200 | CB40: 178 | CE40: 200 | CF40: 300 | CG40: 0 | CK40: 405 | CL40: 360 | CN40: 200 | CP40: 0 | CQ40: 500 | CS40: 800
A41: 2015-01-02 | B41: Jan 02 | C41: 2015-01-02 | D41: 01-Jan 02 | E41: 1 | F41: 2 | G41: 2015 | H41: 05:00:00 | I41: 274.15 | J41: 204.5 | K41: 130 | L41: 259.2 | M41: 215.3333333 | N41: 495 | O41: 483 | P41: 353.5 | Q41: 215 | R41: 365 | S41: 283.2355556 | T41: 201.2666667 | U41: 650 | V41: 273.4417241 | W41: 317.0677778 | X41: 175 | Y41: 356.9 | Z41: 191.4 | AA41: 203 | AB41: 206 | AC41: 180 | AD41: 80 | AE41: 130 | AF41: 276 | AG41: 393 | AH41: 237 | AI41: 159 | AJ41: 231 | AK41: 205.65 | AL41: 235.44 | AM41: 200 | AO41: 0 | AP41: 306 | AQ41: 344.91 | AS41: 680 | AT41: 310 | AV41: 483 | AW41: 566 | AY41: 141 | BA41: 176 | BB41: 159 | BC41: 160 | BD41: 240 | BE41: 193 | BF41: 362 | BG41: 200 | BH41: 500 | BI41: 290 | BJ41: 600 | BK41: 300 | BL41: 300 | BM41: 100 | BN41: 300 | BO41: 670 | BP41: 212.1 | BQ41: 151.7 | BR41: 172.17 | BS41: 620 | BT41: 249.19 | BV41: 73.96 | BX41: 0 | BY41: 195.3 | BZ41: 200 | CB41: 201.9 | CE41: 200 | CF41: 300 | CG41: 0 | CJ41: 290 | CK41: 398 | CL41: 430 | CN41: 200 | CP41: 0 | CQ41: 600 | CS41: 700
A42: 2015-01-02 | B42: Jan 02 | C42: 2015-01-02 | D42: 01-Jan 02 | E42: 1 | F42: 2 | G42: 2015 | H42: 06:00:00 | I42: 261.1 | J42: 199.5 | K42: 136.6666667 | L42: 298 | M42: 238.755 | N42: 440 | O42: 646 | P42: 494.5 | Q42: 197.3333333 | R42: 408.3333333 | S42: 308.9177778 | T42: 213.175 | U42: 800 | V42: 298.9843103 | W42: 340.4444444 | X42: 184 | Y42: 338 | Z42: 184.2 | AA42: 190 | AB42: 209 | AC42: 190 | AD42: 90 | AE42: 130 | AF42: 344 | AG42: 473 | AH42: 269 | AI42: 162 | AJ42: 242 | AK42: 213.62 | AL42: 232.95 | AM42: 200 | AO42: 100 | AP42: 304.76 | AQ42: 381.2 | AS42: 630 | AT42: 250 | AV42: 646 | AW42: 711 | AY42: 278 | BA42: 122 | BB42: 153 | BC42: 166 | BD42: 203 | BE42: 218 | BF42: 322 | BG42: 200 | BH42: 500 | BI42: 350 | BJ42: 800 | BK42: 300 | BL42: 300 | BM42: 200 | BN42: 300 | BO42: 680 | BP42: 236.8 | BQ42: 195.6 | BR42: 178.58 | BS42: 650 | BT42: 263.62 | BV42: 75.66 | BX42: 0 | BY42: 207.7 | BZ42: 200 | CB42: 274.4 | CE42: 200 | CF42: 300 | CG42: 0 | CJ42: 250 | CK42: 456 | CL42: 470 | CN42: 200 | CP42: 0 | CQ42: 600 | CS42: 1000
A43: 2015-01-02 | B43: Jan 02 | C43: 2015-01-02 | D43: 01-Jan 02 | E43: 1 | F43: 2 | G43: 2015 | H43: 07:00:00 | I43: 268 | J43: 201.5 | K43: 150 | L43: 303.4 | M43: 257.744 | N43: 425 | O43: 927 | P43: 676.5 | Q43: 216 | R43: 423.3333333 | S43: 310.1011111 | T43: 257.125 | U43: 950 | V43: 332.2303509 | W43: 387.1566667 | X43: 198 | Y43: 341.4 | Z43: 194.6 | AA43: 181 | AB43: 222 | AC43: 200 | AD43: 90 | AE43: 160 | AF43: 374 | AG43: 456 | AH43: 288 | AI43: 152 | AJ43: 247 | AL43: 243.7 | AM43: 200 | AO43: 100 | AP43: 325.21 | AQ43: 419.81 | AS43: 600 | AT43: 250 | AV43: 927 | AW43: 879 | AY43: 474 | BA43: 133 | BB43: 146 | BC43: 166 | BD43: 260 | BE43: 219 | BF43: 372 | BG43: 300 | BH43: 400 | BI43: 340 | BJ43: 800 | BK43: 400 | BL43: 300 | BM43: 100 | BN43: 300 | BO43: 700 | BP43: 262.9 | BQ43: 220.3 | BR43: 180.33 | BS43: 680 | BT43: 274.63 | BV43: 72.75 | BX43: 0 | BY43: 226.1 | BZ43: 300 | CB43: 435.4 | CE43: 200 | CF43: 400 | CG43: 0 | CJ43: 290 | CK43: 504 | CL43: 530 | CN43: 200 | CP43: 0 | CQ43: 800 | CS43: 1100
A44: 2015-01-02 | B44: Jan 02 | C44: 2015-01-02 | D44: 01-Jan 02 | E44: 1 | F44: 2 | G44: 2015 | H44: 08:00:00 | I44: 269.45 | J44: 196 | K44: 170 | L44: 325.4 | M44: 246.9833333 | N44: 410 | O44: 792 | P44: 590 | Q44: 197.3333333 | R44: 418.3333333 | S44: 304.8511111 | T44: 279.6166667 | U44: 1250 | V44: 338.532069 | W44: 396.85 | X44: 167 | Y44: 346.8 | Z44: 192.1 | AA44: 182 | AB44: 210 | AC44: 200 | AD44: 100 | AE44: 210 | AF44: 403 | AG44: 514 | AH44: 291 | AI44: 155 | AJ44: 264 | AK44: 237.73 | AL44: 244.84 | AM44: 200 | AO44: 100 | AP44: 287.38 | AQ44: 411.95 | AS44: 570 | AT44: 250 | AV44: 792 | AW44: 852 | AY44: 328 | BA44: 132 | BB44: 155 | BC44: 156 | BD44: 275 | BE44: 225 | BF44: 241 | BG44: 300 | BH44: 500 | BI44: 310 | BJ44: 700 | BK44: 400 | BL44: 300 | BM44: 100 | BN44: 300 | BO44: 700 | BP44: 249 | BQ44: 179.7 | BR44: 197.77 | BS44: 670 | BT44: 261.25 | BV44: 85.94 | BX44: 0 | BY44: 233.4 | BZ44: 300 | CB44: 502 | CE44: 200 | CF44: 400 | CG44: 0 | CJ44: 250 | CK44: 500 | CL44: 570 | CN44: 400 | CP44: 0 | CQ44: 1000 | CS44: 1500
A45: 2015-01-02 | B45: Jan 02 | C45: 2015-01-02 | D45: 01-Jan 02 | E45: 1 | F45: 2 | G45: 2015 | H45: 09:00:00 | I45: 257.15 | J45: 183.5 | K45: 166.6666667 | L45: 321.8 | M45: 231.5383333 | N45: 390 | O45: 711 | P45: 450 | Q45: 213.1666667 | R45: 400 | S45: 293.7188889 | T45: 235.6583333 | U45: 1050 | V45: 310.7051724 | W45: 351.4688889 | X45: 155 | Y45: 322.9 | Z45: 191.4 | AA45: 181 | AB45: 186 | AC45: 210 | AD45: 80 | AE45: 210 | AF45: 362 | AG45: 567 | AH45: 270 | AI45: 167 | AJ45: 243 | AK45: 214.62 | AL45: 230.96 | AM45: 200 | AO45: 100 | AP45: 266.33 | AQ45: 377.32 | AS45: 540 | AT45: 240 | AV45: 711 | AW45: 710 | AY45: 190 | BA45: 139 | BB45: 168 | BC45: 155 | BD45: 197 | BE45: 399 | BF45: 221 | BG45: 200 | BH45: 400 | BI45: 300 | BJ45: 800 | BK45: 400 | BL45: 300 | BM45: 100 | BN45: 300 | BO45: 690 | BP45: 247.4 | BQ45: 186.9 | BR45: 198.06 | BS45: 600 | BT45: 236.9 | BV45: 84.21 | BX45: 0 | BY45: 220.3 | BZ45: 300 | CB45: 397.6 | CE45: 200 | CF45: 400 | CG45: 0 | CJ45: 200 | CK45: 460 | CL45: 450 | CN45: 200 | CP45: 0 | CQ45: 700 | CS45: 1400
A46: 2015-01-02 | B46: Jan 02 | C46: 2015-01-02 | D46: 01-Jan 02 | E46: 1 | F46: 2 | G46: 2015 | H46: 10:00:00 | I46: 236.3 | J46: 170 | K46: 153.3333333 | L46: 291.6 | M46: 210.7366667 | N46: 325 | O46: 397 | P46: 372.5 | Q46: 176.8333333 | R46: 338.3333333 | S46: 280.0233333 | T46: 218.5916667 | U46: 450 | V46: 257.2643103 | W46: 318.2655556 | X46: 152 | Y46: 297.7 | Z46: 174.9 | AA46: 174 | AB46: 166 | AC46: 220 | AD46: 90 | AE46: 150 | AF46: 356 | AG46: 483 | AH46: 213 | AI46: 171 | AJ46: 235 | AK46: 188.36 | AL46: 207.16 | AM46: 200 | AO46: 100 | AP46: 252.01 | AQ46: 316.89 | AS46: 450 | AT46: 200 | AV46: 397 | AW46: 604 | AY46: 141 | BA46: 119 | BB46: 154 | BC46: 161 | BD46: 181 | BE46: 262 | BF46: 184 | BG46: 200 | BH46: 400 | BI46: 230 | BJ46: 600 | BK46: 300 | BL46: 300 | BM46: 100 | BN46: 200 | BO46: 680 | BP46: 253.6 | BQ46: 193.5 | BR46: 206.54 | BS46: 570 | BT46: 232.37 | BV46: 84.2 | BX46: 0 | BY46: 196.7 | BZ46: 300 | CB46: 396.4 | CE46: 200 | CF46: 400 | CG46: 0 | CJ46: 140 | CK46: 400 | CL46: 390 | CN46: 200 | CP46: 0 | CQ46: 300 | CS46: 600
A47: 2015-01-02 | B47: Jan 02 | C47: 2015-01-02 | D47: 01-Jan 02 | E47: 1 | F47: 2 | G47: 2015 | H47: 11:00:00 | I47: 226.35 | J47: 169.5 | K47: 150 | L47: 230 | M47: 191.225 | N47: 305 | O47: 355 | P47: 370.5 | Q47: 164.5 | R47: 285 | S47: 267.9577778 | T47: 222.65 | U47: 350 | V47: 236.6460345 | W47: 307.09 | X47: 150 | Y47: 285.6 | Z47: 167.1 | AA47: 180 | AB47: 159 | AC47: 230 | AD47: 90 | AE47: 130 | AF47: 250 | AG47: 359 | AH47: 178 | AI47: 160 | AJ47: 203 | AK47: 200.54 | AL47: 186.21 | AM47: 200 | AO47: 0 | AP47: 266.49 | AQ47: 294.11 | AS47: 430 | AT47: 180 | AV47: 355 | AW47: 585 | AY47: 156 | BA47: 97 | BB47: 155 | BC47: 192 | BD47: 181 | BE47: 181 | BF47: 181 | BG47: 200 | BH47: 300 | BI47: 210 | BJ47: 500 | BK47: 300 | BL47: 200 | BM47: 100 | BN47: 200 | BO47: 670 | BP47: 240 | BQ47: 180.9 | BR47: 203.16 | BS47: 520 | BT47: 208.81 | BV47: 88.75 | BX47: 0 | BY47: 192 | BZ47: 300 | CB47: 508.8 | CE47: 200 | CF47: 400 | CG47: 0 | CJ47: 130 | CK47: 371 | CL47: 370 | CN47: 200 | CP47: 0 | CQ47: 300 | CS47: 400
A48: 2015-01-02 | B48: Jan 02 | C48: 2015-01-02 | D48: 01-Jan 02 | E48: 1 | F48: 2 | G48: 2015 | H48: 12:00:00 | I48: 203 | J48: 168.5 | K48: 156.6666667 | L48: 212.6 | M48: 213.5416667 | N48: 310 | O48: 385 | P48: 373 | Q48: 176.1666667 | R48: 251.6666667 | S48: 255.6122222 | T48: 224.9666667 | U48: 400 | V48: 235.782069 | W48: 288.9722222 | X48: 144 | Y48: 258.9 | Z48: 147.1 | AA48: 175 | AB48: 162 | AC48: 230 | AD48: 90 | AE48: 150 | AF48: 227 | AG48: 288 | AH48: 189 | AI48: 162 | AJ48: 197 | AK48: 190.36 | AL48: 171.18 | AM48: 200 | AO48: 100 | AP48: 291.66 | AQ48: 328.05 | AS48: 450 | AT48: 170 | AV48: 385 | AW48: 591 | AY48: 155 | BA48: 119 | BB48: 165 | BC48: 189 | BD48: 201 | BE48: 192 | BF48: 191 | BG48: 100 | BH48: 300 | BI48: 210 | BJ48: 400 | BK48: 300 | BL48: 200 | BM48: 100 | BN48: 200 | BO48: 660 | BP48: 216.9 | BQ48: 179.4 | BR48: 184.82 | BS48: 490 | BT48: 179.95 | BV48: 89.44 | BX48: 100 | BY48: 182.2 | BZ48: 300 | CB48: 447.4 | CE48: 200 | CF48: 400 | CG48: 0 | CJ48: 120 | CK48: 360 | CL48: 390 | CN48: 200 | CP48: 0 | CQ48: 300 | CS48: 500
A49: 2015-01-02 | B49: Jan 02 | C49: 2015-01-02 | D49: 01-Jan 02 | E49: 1 | F49: 2 | G49: 2015 | H49: 13:00:00 | I49: 199.55 | J49: 167.5 | K49: 153.3333333 | L49: 204.6 | M49: 195.7716667 | N49: 305 | O49: 397 | P49: 346 | Q49: 172 | R49: 268.3333333 | S49: 260.6844444 | T49: 203.95 | U49: 350 | V49: 228.0394828 | W49: 288.3477778 | X49: 142 | Y49: 255.1 | Z49: 144 | AA49: 174 | AB49: 161 | AC49: 240 | AD49: 90 | AE49: 130 | AF49: 237 | AG49: 249 | AH49: 188 | AI49: 147 | AJ49: 202 | AK49: 194.58 | AL49: 176.57 | AM49: 200 | AO49: 0 | AP49: 286.45 | AQ49: 317.03 | AS49: 440 | AT49: 170 | AV49: 397 | AW49: 555 | AY49: 137 | BA49: 110 | BB49: 176 | BC49: 180 | BD49: 186 | BE49: 197 | BF49: 183 | BG49: 200 | BH49: 300 | BI49: 210 | BJ49: 400 | BK49: 300 | BL49: 200 | BM49: 100 | BN49: 200 | BO49: 660 | BP49: 233.2 | BQ49: 207.7 | BR49: 197.69 | BS49: 480 | BT49: 176.3 | BV49: 91.27 | BX49: 100 | BY49: 182.2 | BZ49: 300 | CB49: 342.2 | CE49: 200 | CF49: 300 | CG49: 0 | CJ49: 140 | CK49: 363 | CL49: 420 | CN49: 100 | CP49: 0 | CQ49: 300 | CS49: 400
A50: 2015-01-02 | B50: Jan 02 | C50: 2015-01-02 | D50: 01-Jan 02 | E50: 1 | F50: 2 | G50: 2015 | H50: 14:00:00 | I50: 207.4 | J50: 165 | K50: 166.6666667 | L50: 209.6 | M50: 210.78 | N50: 345 | O50: 424 | P50: 388 | Q50: 180 | R50: 283.3333333 | S50: 272.9488889 | T50: 234.3666667 | U50: 350 | V50: 244.7658621 | W50: 329.4755556 | X50: 175 | Y50: 272.1 | Z50: 142.7 | AA50: 173 | AB50: 157 | AC50: 240 | AD50: 100 | AE50: 160 | AF50: 258 | AG50: 249 | AH50: 193 | AI50: 145 | AJ50: 203 | AK50: 193.92 | AL50: 171.03 | AM50: 200 | AO50: 100 | AP50: 276.15 | AQ50: 323.58 | AS50: 520 | AT50: 170 | AV50: 424 | AW50: 634 | AY50: 142 | BA50: 126 | BB50: 192 | BC50: 183 | BD50: 189 | BE50: 180 | BF50: 210 | BG50: 200 | BH50: 300 | BI50: 200 | BJ50: 400 | BK50: 300 | BL50: 300 | BM50: 100 | BN50: 300 | BO50: 670 | BP50: 235.2 | BQ50: 231.4 | BR50: 188.78 | BS50: 460 | BT50: 178.62 | BV50: 92.54 | BX50: 200 | BY50: 184.3 | BZ50: 300 | CB50: 567.1 | CE50: 200 | CF50: 300 | CG50: 0 | CJ50: 130 | CK50: 381 | CL50: 450 | CN50: 100 | CP50: 0 | CQ50: 300 | CS50: 400
A51: 2015-01-02 | B51: Jan 02 | C51: 2015-01-02 | D51: 01-Jan 02 | E51: 1 | F51: 2 | G51: 2015 | H51: 15:00:00 | I51: 194.25 | J51: 158 | K51: 176.6666667 | L51: 211.2 | M51: 191.5866667 | N51: 385 | O51: 448 | P51: 394.5 | Q51: 190.1666667 | R51: 270 | S51: 267.7855556 | T51: 245.5166667 | U51: 400 | V51: 247.6601724 | W51: 347.8888889 | X51: 137 | Y51: 250.7 | Z51: 137.8 | AA51: 164 | AB51: 152 | AC51: 250 | AD51: 130 | AE51: 150 | AF51: 215 | AG51: 290 | AH51: 192 | AI51: 160 | AJ51: 199 | AK51: 199.22 | AL51: 170.87 | AM51: 200 | AO51: 0 | AP51: 266.93 | AQ51: 312.5 | AS51: 600 | AT51: 170 | AV51: 448 | AW51: 643 | AY51: 146 | BA51: 129 | BB51: 192 | BC51: 189 | BD51: 195 | BE51: 189 | BF51: 247 | BG51: 200 | BH51: 300 | BI51: 220 | BJ51: 400 | BK51: 300 | BL51: 200 | BM51: 100 | BN51: 300 | BO51: 650 | BP51: 252.2 | BQ51: 179.5 | BR51: 191.88 | BS51: 460 | BT51: 182.94 | BV51: 93.55 | BX51: 200 | BY51: 201.4 | BZ51: 300 | CB51: 651.8 | CE51: 200 | CF51: 300 | CG51: 0 | CJ51: 160 | CK51: 383 | CL51: 450 | CN51: 100 | CP51: 0 | CQ51: 300 | CS51: 500
A52: 2015-01-02 | B52: Jan 02 | C52: 2015-01-02 | D52: 01-Jan 02 | E52: 1 | F52: 2 | G52: 2015 | H52: 16:00:00 | I52: 196.35 | J52: 155 | K52: 176.6666667 | L52: 260.4 | M52: 210.3433333 | N52: 525 | O52: 578 | P52: 403.5 | Q52: 235.5 | R52: 345 | S52: 304.7766667 | T52: 393.35 | U52: 450 | V52: 311.6887931 | W52: 449.8655556 | X52: 166 | Y52: 263.7 | Z52: 129 | AA52: 160 | AB52: 150 | AC52: 260 | AD52: 120 | AE52: 150 | AF52: 270 | AG52: 393 | AH52: 212 | AI52: 171 | AJ52: 256 | AK52: 191.54 | AL52: 179.76 | AM52: 200 | AO52: 100 | AQ52: 325.09 | AR52: 265.67 | AS52: 870 | AT52: 180 | AV52: 578 | AW52: 659 | AY52: 148 | BA52: 243 | BB52: 191 | BC52: 203 | BD52: 263 | BE52: 225 | BF52: 288 | BG52: 200 | BH52: 400 | BI52: 270 | BJ52: 600 | BK52: 400 | BL52: 200 | BM52: 100 | BN52: 400 | BO52: 660 | BP52: 258.4 | BQ52: 296 | BR52: 227.02 | BS52: 480 | BT52: 216.59 | BV52: 104.98 | BX52: 100 | BY52: 210.9 | BZ52: 300 | CB52: 883.3 | CE52: 200 | CF52: 400 | CG52: 0 | CJ52: 210 | CK52: 1756 | CL52: 560 | CN52: 100 | CP52: 0 | CQ52: 400 | CS52: 500
A53: 2015-01-02 | B53: Jan 02 | C53: 2015-01-02 | D53: 01-Jan 02 | E53: 1 | F53: 2 | G53: 2015 | H53: 17:00:00 | I53: 211.95 | J53: 154.5 | K53: 180 | L53: 286.2 | M53: 224.2516667 | N53: 750 | O53: 685 | P53: 425 | Q53: 296.6666667 | R53: 425 | S53: 318.4533333 | T53: 347.4666667 | U53: 650 | V53: 340.5187931 | W53: 537.2644444 | X53: 140 | Y53: 293.7 | Z53: 130.2 | AA53: 158 | AB53: 151 | AC53: 260 | AD53: 150 | AE53: 130 | AF53: 270 | AG53: 479 | AH53: 277 | AI53: 155 | AJ53: 250 | AK53: 167.63 | AL53: 196.93 | AM53: 200 | AO53: 100 | AQ53: 351.88 | AR53: 329.07 | AS53: 1280 | AT53: 220 | AV53: 685 | AW53: 667 | AY53: 183 | BA53: 431 | BB53: 185 | BC53: 173 | BD53: 384 | BE53: 264 | BF53: 343 | BG53: 200 | BH53: 400 | BI53: 350 | BJ53: 800 | BK53: 500 | BL53: 300 | BM53: 100 | BN53: 300 | BO53: 680 | BP53: 279.2 | BQ53: 356.9 | BR53: 221.41 | BS53: 570 | BT53: 256.1 | BV53: 102.47 | BX53: 100 | BY53: 254.2 | BZ53: 300 | CB53: 954.4 | CE53: 400 | CF53: 400 | CG53: 0 | CJ53: 390 | CK53: 621 | CL53: 550 | CN53: 200 | CP53: 0 | CQ53: 400 | CS53: 900
A54: 2015-01-02 | B54: Jan 02 | C54: 2015-01-02 | D54: 01-Jan 02 | E54: 1 | F54: 2 | G54: 2015 | H54: 18:00:00 | I54: 224.75 | J54: 157.5 | K54: 173.3333333 | L54: 314.6 | M54: 222.6357143 | N54: 720 | O54: 828 | P54: 589 | Q54: 365.1666667 | R54: 458.3333333 | S54: 336.1522222 | T54: 451.4416667 | U54: 950 | V54: 392.2986441 | W54: 602.0155556 | X54: 140 | Y54: 311.9 | Z54: 137.6 | AA54: 158 | AB54: 157 | AC54: 270 | AD54: 120 | AE54: 130 | AF54: 303 | AG54: 600 | AH54: 276 | AI54: 161 | AJ54: 233 | AK54: 177.03 | AL54: 199.85 | AM54: 200 | AO54: 100 | AP54: 279.78 | AQ54: 344.14 | AR54: 257.65 | AS54: 1200 | AT54: 240 | AV54: 828 | AW54: 744 | AY54: 434 | BA54: 762 | BB54: 188 | BC54: 188 | BD54: 278 | BE54: 309 | BF54: 466 | BG54: 200 | BH54: 500 | BI54: 350 | BJ54: 800 | BK54: 500 | BL54: 400 | BM54: 100 | BN54: 300 | BO54: 710 | BP54: 403.4 | BQ54: 345.2 | BR54: 200.51 | BS54: 580 | BT54: 284.44 | BV54: 101.82 | BX54: 100 | BY54: 368.9 | BZ54: 300 | CB54: 1097.4 | CE54: 600 | CF54: 500 | CG54: 0 | CJ54: 510 | CK54: 491 | CL54: 950 | CN54: 300 | CP54: 200 | CQ54: 700 | CS54: 1200
A55: 2015-01-02 | B55: Jan 02 | C55: 2015-01-02 | D55: 01-Jan 02 | E55: 1 | F55: 2 | G55: 2015 | H55: 19:00:00 | I55: 221.95 | J55: 161 | K55: 170 | L55: 265.8 | M55: 259.825 | N55: 705 | O55: 1197 | P55: 880 | Q55: 479.3333333 | R55: 473.3333333 | S55: 334.1211111 | T55: 553.5416667 | U55: 1100 | V55: 449.9386207 | W55: 582.8333333 | X55: 146 | Y55: 300.8 | Z55: 143.1 | AA55: 161 | AB55: 161 | AC55: 270 | AD55: 100 | AE55: 140 | AF55: 327 | AG55: 376 | AH55: 266 | AI55: 155 | AJ55: 205 | AL55: 204.97 | AM55: 300 | AO55: 100 | AP55: 321.84 | AQ55: 377.5 | AR55: 254.64 | AS55: 1150 | AT55: 260 | AV55: 1197 | AW55: 1123 | AY55: 637 | BA55: 897 | BB55: 189 | BC55: 200 | BD55: 238 | BE55: 304 | BF55: 1048 | BG55: 300 | BH55: 600 | BI55: 440 | BJ55: 600 | BK55: 600 | BL55: 300 | BM55: 100 | BN55: 300 | BO55: 730 | BP55: 382.4 | BQ55: 319.3 | BR55: 212.11 | BS55: 560 | BT55: 303.63 | BV55: 99.65 | BX55: 100 | BY55: 513.2 | BZ55: 500 | CB55: 1222.3 | CE55: 700 | CF55: 500 | CG55: 0 | CJ55: 570 | CK55: 757 | CL55: 880 | CN55: 300 | CP55: 600 | CQ55: 900 | CS55: 1300
A56: 2015-01-02 | B56: Jan 02 | C56: 2015-01-02 | D56: 01-Jan 02 | E56: 1 | F56: 2 | G56: 2015 | H56: 20:00:00 | I56: 219.75 | J56: 157 | K56: 176.6666667 | L56: 265.6 | M56: 193.3616667 | N56: 635 | O56: 1534 | P56: 1064 | Q56: 601.3333333 | R56: 568.3333333 | S56: 341.9677778 | T56: 579.9166667 | U56: 1200 | V56: 485.4893103 | W56: 578.9544444 | X56: 182 | Y56: 302.6 | Z56: 136.9 | AA56: 162 | AB56: 152 | AC56: 270 | AD56: 130 | AE56: 130 | AF56: 342 | AG56: 323 | AH56: 264 | AI56: 154 | AJ56: 245 | AK56: 195.04 | AM56: 200 | AO56: 0 | AP56: 253.02 | AQ56: 337.39 | AR56: 174.72 | AS56: 1000 | AT56: 270 | AV56: 1534 | AW56: 1288 | AY56: 840 | BA56: 1160 | BB56: 197 | BC56: 197 | BD56: 322 | BE56: 384 | BF56: 1348 | BG56: 400 | BH56: 700 | BI56: 510 | BJ56: 700 | BK56: 600 | BL56: 500 | BM56: 100 | BN56: 300 | BO56: 790 | BP56: 444 | BQ56: 292.5 | BR56: 208.76 | BS56: 580 | BT56: 266.2 | BV56: 96.25 | BX56: 0 | BY56: 787.3 | BZ56: 900 | CB56: 961.7 | CE56: 600 | CF56: 500 | CG56: 0 | CJ56: 540 | CK56: 740 | CL56: 1130 | CN56: 300 | CP56: 500 | CQ56: 1100 | CS56: 1300
A57: 2015-01-02 | B57: Jan 02 | C57: 2015-01-02 | D57: 01-Jan 02 | E57: 1 | F57: 2 | G57: 2015 | H57: 21:00:00 | I57: 221.9 | J57: 158 | K57: 186.6666667 | L57: 293.6 | M57: 192.5 | N57: 655 | O57: 1261 | P57: 1156 | Q57: 596 | R57: 625 | S57: 421.9033333 | T57: 565.9416667 | U57: 1350 | V57: 502.249661 | W57: 637.4044444 | X57: 156 | Y57: 299.5 | Z57: 144.3 | AA57: 161 | AB57: 155 | AC57: 280 | AD57: 100 | AE57: 180 | AF57: 370 | AG57: 436 | AH57: 234 | AI57: 162 | AJ57: 266 | AK57: 171.73 | AL57: 185.69 | AM57: 100 | AO57: 0 | AP57: 299.45 | AQ57: 378.04 | AR57: 212.59 | AS57: 1040 | AT57: 270 | AV57: 1261 | AW57: 1445 | AY57: 867 | BA57: 1402 | BB57: 187 | BC57: 199 | BD57: 452 | BE57: 370 | BF57: 966 | BG57: 500 | BH57: 600 | BI57: 650 | BJ57: 800 | BK57: 700 | BL57: 500 | BM57: 100 | BN57: 400 | BO57: 870 | BP57: 582 | BQ57: 475.8 | BR57: 279.62 | BS57: 700 | BT57: 295.75 | BV57: 93.96 | BX57: 0 | BY57: 692.5 | BZ57: 1000 | CB57: 512.8 | CE57: 600 | CF57: 400 | CG57: 0 | CJ57: 610 | CK57: 916 | CL57: 1360 | CN57: 300 | CP57: 400 | CQ57: 1200 | CS57: 1500
A58: 2015-01-02 | B58: Jan 02 | C58: 2015-01-02 | D58: 01-Jan 02 | E58: 1 | F58: 2 | G58: 2015 | H58: 22:00:00 | I58: 198.55 | J58: 161 | K58: 240 | L58: 345.2 | M58: 215.7733333 | N58: 400 | O58: 1531 | P58: 1358.5 | Q58: 601.1666667 | R58: 673.3333333 | S58: 493.2477778 | T58: 640.0916667 | U58: 1450 | V58: 573.2318182 | W58: 665.775 | X58: 149 | Y58: 252.2 | Z58: 144.9 | AA58: 163 | AB58: 159 | AC58: 280 | AD58: 90 | AE58: 350 | AF58: 338 | AG58: 560 | AH58: 337 | AI58: 174 | AJ58: 317 | AK58: 160.52 | AL58: 179.55 | AP58: 307.25 | AS58: 570 | AT58: 230 | AV58: 1531 | AW58: 1358 | AY58: 1359 | BA58: 1354 | BB58: 185 | BC58: 199 | BD58: 559 | BE58: 390 | BF58: 920 | BG58: 300 | BH58: 800 | BI58: 640 | BJ58: 800 | BK58: 800 | BL58: 700 | BM58: 100 | BN58: 400 | BO58: 1130 | BP58: 887.5 | BQ58: 430.7 | BR58: 375.52 | BS58: 680 | BT58: 338.37 | BV58: 97.14 | BX58: 100 | BY58: 642.1 | BZ58: 1000 | CB58: 609 | CE58: 600 | CF58: 400 | CG58: 0 | CJ58: 770 | CK58: 1150 | CL58: 1410 | CN58: 500 | CP58: 500 | CQ58: 1300 | CS58: 1600
A59: 2015-01-02 | B59: Jan 02 | C59: 2015-01-02 | D59: 01-Jan 02 | E59: 1 | F59: 2 | G59: 2015 | H59: 23:00:00 | I59: 199.5 | J59: 163 | K59: 183.3333333 | L59: 330.8 | M59: 188.742 | N59: 240 | O59: 1282 | P59: 1609.5 | Q59: 667.8 | R59: 620 | S59: 468.2744444 | T59: 603.9416667 | U59: 1600 | V59: 545.9728571 | W59: 590.6857143 | X59: 143 | Y59: 246.2 | Z59: 152.8 | AA59: 166 | AB59: 160 | AC59: 220 | AD59: 90 | AE59: 240 | AF59: 328 | AG59: 353 | AH59: 416 | AI59: 161 | AJ59: 396 | AK59: 183.57 | AL59: 176.25 | AO59: 100 | AP59: 248.84 | AR59: 235.05 | AS59: 340 | AT59: 140 | AV59: 1282 | AW59: 1637 | AY59: 1582 | BA59: 1724 | BB59: 176 | BC59: 176 | BE59: 436 | BF59: 827 | BG59: 200 | BH59: 900 | BI59: 520 | BJ59: 700 | BK59: 700 | BL59: 700 | BM59: 100 | BN59: 300 | BO59: 1010 | BP59: 818.9 | BQ59: 546.9 | BR59: 435.66 | BS59: 600 | BT59: 304.02 | BV59: 98.99 | BX59: 100 | BY59: 640.3 | BZ59: 900 | CB59: 586 | CE59: 600 | CF59: 400 | CG59: 0 | CJ59: 710 | CK59: 1221 | CL59: 1290 | CN59: 400 | CP59: 400 | CQ59: 1600 | CS59: 1600
A60: 2015-01-03 | B60: Jan 03 | C60: 2015-01-03 | D60: 01-Jan 03 | E60: 1 | F60: 3 | G60: 2015 | H60: 00:00:00 | I60: 185.8 | J60: 161.5 | L60: 327.8 | M60: 166.5328571 | N60: 350 | O60: 678 | P60: 1703.5 | Q60: 643 | R60: 580 | S60: 383.8744444 | T60: 531.1 | U60: 1750 | V60: 516.4481481 | W60: 447.89375 | X60: 141 | Y60: 236.2 | Z60: 135.4 | AA60: 159 | AB60: 164 | AF60: 349 | AG60: 367 | AH60: 389 | AI60: 169 | AJ60: 365 | AK60: 181.02 | AL60: 198.48 | AM60: 100 | AO60: 100 | AP60: 222.66 | AQ60: 179.85 | AR60: 183.72 | AS60: 520 | AT60: 180 | AV60: 678 | AW60: 1829 | AY60: 1578 | BA60: 1613 | BB60: 201 | BC60: 193 | BD60: 473 | BE60: 482 | BF60: 896 | BG60: 100 | BH60: 1000 | BI60: 480 | BJ60: 600 | BK60: 600 | BL60: 700 | BM60: 100 | BN60: 300 | BO60: 960 | BP60: 499 | BQ60: 364.3 | BR60: 271.29 | BS60: 540 | BT60: 307.21 | BV60: 113.07 | BX60: 100 | BZ60: 900 | CE60: 600 | CF60: 400 | CG60: 0 | CJ60: 450 | CK60: 981 | CL60: 1080 | CN60: 500 | CP60: 300 | CQ60: 1700 | CS60: 1800
A61: 2015-01-03 | B61: Jan 03 | C61: 2015-01-03 | D61: 01-Jan 03 | E61: 1 | F61: 3 | G61: 2015 | H61: 01:00:00 | I61: 188.15 | J61: 166 | K61: 190 | M61: 154.46 | N61: 350 | O61: 826 | P61: 1575.5 | Q61: 650 | R61: 545 | S61: 340.82 | T61: 522 | U61: 1700 | V61: 498.85 | W61: 453.9925 | X61: 141 | Y61: 240.2 | Z61: 136.1 | AA61: 163 | AB61: 169 | AC61: 70 | AD61: 60 | AE61: 440 | AK61: 190.39 | AL61: 210.68 | AM61: 100 | AO61: 0 | AP61: 209.8 | AQ61: 211.34 | AR61: 159.01 | AS61: 510 | AT61: 190 | AV61: 826 | AW61: 1457 | AY61: 1694 | BA61: 1453 | BB61: 229 | BC61: 188 | BD61: 516 | BE61: 534 | BF61: 980 | BG61: 100 | BH61: 800 | BI61: 370 | BJ61: 600 | BK61: 800 | BL61: 600 | BM61: 100 | BN61: 300 | BO61: 840 | BP61: 406 | BQ61: 279.1 | BR61: 224.35 | BS61: 570 | BT61: 239.88 | BV61: 108.05 | BX61: 100 | BY61: 654.5 | BZ61: 1000 | CB61: 369.5 | CE61: 500 | CF61: 400 | CG61: 0 | CJ61: 580 | CK61: 720 | CL61: 1240 | CN61: 400 | CP61: 300 | CQ61: 1500 | CS61: 1900
A62: 2015-01-03 | B62: Jan 03 | C62: 2015-01-03 | D62: 01-Jan 03 | E62: 1 | F62: 3 | G62: 2015 | H62: 02:00:00 | I62: 234.5 | J62: 165.5 | K62: 213.3333333 | L62: 339.4 | M62: 175.9942857 | N62: 445 | O62: 1335 | P62: 1655 | Q62: 634 | R62: 576.6666667 | S62: 313.6244444 | T62: 527.8583333 | U62: 1500 | V62: 497.0318644 | W62: 472.9811111 | X62: 141 | Y62: 334.6 | Z62: 134.4 | AA62: 160 | AB62: 171 | AC62: 80 | AD62: 220 | AE62: 340 | AF62: 430 | AG62: 410 | AH62: 336 | AI62: 149 | AJ62: 372 | AK62: 173.29 | AL62: 254.36 | AM62: 200 | AO62: 0 | AP62: 216.58 | AQ62: 210.13 | AR62: 177.6 | AS62: 680 | AT62: 210 | AV62: 1335 | AW62: 1805 | AY62: 1505 | BA62: 1006 | BB62: 267 | BC62: 198 | BD62: 600 | BE62: 650 | BF62: 1083 | BG62: 100 | BH62: 1200 | BI62: 360 | BJ62: 600 | BK62: 600 | BL62: 600 | BM62: 100 | BN62: 300 | BO62: 790 | BP62: 366.2 | BQ62: 211.3 | BR62: 187.2 | BS62: 550 | BT62: 208.83 | BV62: 109.09 | BX62: 100 | BY62: 617.1 | BZ62: 900 | CB62: 359.2 | CE62: 500 | CF62: 300 | CG62: 0 | CJ62: 640 | CK62: 898 | CL62: 1320 | CN62: 500 | CP62: 200 | CQ62: 1100 | CS62: 1900
A63: 2015-01-03 | B63: Jan 03 | C63: 2015-01-03 | D63: 01-Jan 03 | E63: 1 | F63: 3 | G63: 2015 | H63: 03:00:00 | I63: 191.95 | J63: 169.5 | K63: 110 | L63: 294.4 | M63: 172.4871429 | N63: 360 | O63: 771 | P63: 1087.5 | Q63: 517.5 | R63: 620 | S63: 301.4144444 | T63: 529.3083333 | U63: 1550 | V63: 447.2498305 | W63: 421.4988889 | X63: 142 | Y63: 247.3 | Z63: 136.6 | AA63: 161 | AB63: 178 | AC63: 60 | AD63: 50 | AE63: 220 | AF63: 427 | AG63: 214 | AH63: 320 | AI63: 146 | AJ63: 365 | AK63: 176.59 | AL63: 215.1 | AM63: 200 | AO63: 0 | AP63: 223.55 | AQ63: 191.99 | AR63: 200.18 | AS63: 510 | AT63: 210 | AV63: 771 | AW63: 1260 | AY63: 915 | BA63: 749 | BB63: 294 | BC63: 195 | BD63: 607 | BE63: 679 | BF63: 581 | BG63: 100 | BH63: 1300 | BI63: 520 | BJ63: 500 | BK63: 800 | BL63: 500 | BM63: 100 | BN63: 300 | BO63: 750 | BP63: 286.3 | BQ63: 152.9 | BR63: 177.63 | BS63: 610 | BT63: 207.77 | BV63: 128.13 | BX63: 100 | BY63: 581.4 | BZ63: 800 | CB63: 291.3 | CE63: 500 | CF63: 300 | CG63: 0 | CJ63: 730 | CK63: 1009 | CL63: 1440 | CN63: 500 | CP63: 100 | CQ63: 1200 | CS63: 1900
A64: 2015-01-03 | B64: Jan 03 | C64: 2015-01-03 | D64: 01-Jan 03 | E64: 1 | F64: 3 | G64: 2015 | H64: 04:00:00 | I64: 191.35 | J64: 172.5 | K64: 106.6666667 | L64: 279.8 | M64: 197.9571429 | N64: 220 | O64: 908 | P64: 691 | Q64: 384.3333333 | R64: 621.6666667 | S64: 299.44 | T64: 471.5 | U64: 1300 | V64: 397.9286207 | W64: 349.2322222 | X64: 157 | Y64: 241.6 | Z64: 141.1 | AA64: 164 | AB64: 181 | AC64: 60 | AD64: 50 | AE64: 210 | AF64: 481 | AG64: 207 | AH64: 196 | AI64: 148 | AJ64: 367 | AK64: 200.99 | AL64: 339.84 | AM64: 200 | AO64: 0 | AP64: 284.53 | AQ64: 184.09 | AR64: 176.25 | AS64: 250 | AT64: 190 | AV64: 908 | AW64: 843 | AY64: 539 | BA64: 464 | BB64: 225 | BC64: 169 | BD64: 450 | BE64: 583 | BF64: 415 | BG64: 200 | BH64: 800 | BI64: 430 | BJ64: 600 | BK64: 1200 | BL64: 500 | BM64: 100 | BN64: 300 | BO64: 740 | BP64: 295.3 | BQ64: 137.4 | BR64: 165.94 | BS64: 610 | BT64: 217.06 | BV64: 129.26 | BX64: 100 | BY64: 532.2 | BZ64: 700 | CB64: 259.3 | CE64: 600 | CF64: 300 | CG64: 0 | CK64: 935 | CL64: 1160 | CN64: 500 | CP64: 100 | CQ64: 1000 | CS64: 1600
A65: 2015-01-03 | B65: Jan 03 | C65: 2015-01-03 | D65: 01-Jan 03 | E65: 1 | F65: 3 | G65: 2015 | H65: 05:00:00 | I65: 195.9 | J65: 165.5 | K65: 133.3333333 | L65: 336.2 | M65: 187.8128571 | N65: 225 | O65: 611 | P65: 608.5 | Q65: 328.6666667 | R65: 658.3333333 | S65: 300.9388889 | T65: 383.7 | U65: 1000 | V65: 366.6328814 | W65: 307.5666667 | X65: 156 | Y65: 245.3 | Z65: 146.5 | AA65: 168 | AB65: 163 | AC65: 50 | AD65: 60 | AE65: 290 | AF65: 594 | AG65: 240 | AH65: 283 | AI65: 148 | AJ65: 416 | AK65: 212.61 | AL65: 211.97 | AM65: 200 | AO65: 0 | AP65: 279.28 | AQ65: 206.3 | AR65: 204.53 | AS65: 250 | AT65: 200 | AV65: 611 | AW65: 755 | AY65: 462 | BA65: 396 | BB65: 196 | BC65: 173 | BD65: 454 | BE65: 392 | BF65: 361 | BG65: 200 | BH65: 700 | BI65: 450 | BJ65: 700 | BK65: 1000 | BL65: 900 | BM65: 100 | BN65: 300 | BO65: 710 | BP65: 264.3 | BQ65: 142.6 | BR65: 163.5 | BS65: 640 | BT65: 265.48 | BV65: 122.57 | BX65: 100 | BY65: 438.5 | BZ65: 500 | CB65: 210.9 | CE65: 600 | CF65: 300 | CG65: 0 | CJ65: 300 | CK65: 655 | CL65: 800 | CN65: 500 | CP65: 200 | CQ65: 700 | CS65: 1300
A66: 2015-01-03 | B66: Jan 03 | C66: 2015-01-03 | D66: 01-Jan 03 | E66: 1 | F66: 3 | G66: 2015 | H66: 06:00:00 | I66: 203.8 | J66: 175 | K66: 143.3333333 | L66: 334.2 | M66: 192.0171429 | N66: 255 | O66: 582 | P66: 579.5 | Q66: 290.8333333 | R66: 685 | S66: 300.8133333 | T66: 327.1083333 | U66: 850 | V66: 349.8532203 | W66: 325.7244444 | X66: 146 | Y66: 268.6 | Z66: 139 | AA66: 164 | AB66: 186 | AC66: 50 | AD66: 70 | AE66: 310 | AF66: 419 | AG66: 347 | AH66: 320 | AI66: 148 | AJ66: 437 | AK66: 198.69 | AL66: 237.45 | AM66: 200 | AO66: 0 | AP66: 250.71 | AQ66: 221.22 | AR66: 236.05 | AS66: 280 | AT66: 230 | AV66: 582 | AW66: 743 | AY66: 416 | BA66: 300 | BB66: 198 | BC66: 180 | BD66: 432 | BE66: 299 | BF66: 336 | BG66: 300 | BH66: 700 | BI66: 610 | BJ66: 600 | BK66: 1100 | BL66: 800 | BM66: 100 | BN66: 300 | BO66: 720 | BP66: 257.5 | BQ66: 165 | BR66: 174.03 | BS66: 590 | BT66: 283.61 | BV66: 117.18 | BX66: 100 | BY66: 312.5 | BZ66: 400 | CB66: 198.8 | CE66: 500 | CF66: 300 | CG66: 0 | CJ66: 260 | CK66: 624 | CL66: 730 | CN66: 400 | CP66: 100 | CQ66: 600 | CS66: 1100
A67: 2015-01-03 | B67: Jan 03 | C67: 2015-01-03 | D67: 01-Jan 03 | E67: 1 | F67: 3 | G67: 2015 | H67: 07:00:00 | I67: 216 | J67: 163.5 | K67: 286.6666667 | L67: 393.4 | M67: 260.6666667 | N67: 340 | O67: 533 | P67: 559.5 | Q67: 304.8333333 | R67: 543.3333333 | S67: 326.7855556 | T67: 305.6 | U67: 850 | V67: 359.9874138 | W67: 341.7855556 | X67: 147 | Y67: 278.4 | Z67: 153.6 | AA67: 164 | AB67: 163 | AC67: 50 | AD67: 170 | AE67: 640 | AF67: 577 | AG67: 479 | AH67: 312 | AI67: 146 | AJ67: 453 | AL67: 298.58 | AM67: 300 | AO67: 0 | AP67: 280.14 | AQ67: 251.87 | AR67: 433.41 | AS67: 300 | AT67: 380 | AV67: 533 | AW67: 716 | AY67: 403 | BA67: 280 | BB67: 218 | BC67: 185 | BD67: 508 | BE67: 303 | BF67: 335 | BG67: 300 | BH67: 600 | BI67: 660 | BJ67: 500 | BK67: 800 | BL67: 400 | BM67: 200 | BN67: 400 | BO67: 710 | BP67: 274 | BQ67: 175.4 | BR67: 175.74 | BS67: 610 | BT67: 286.32 | BV67: 109.61 | BX67: 100 | BY67: 318.4 | BZ67: 300 | CB67: 197.8 | CE67: 700 | CF67: 300 | CG67: 0 | CJ67: 240 | CK67: 521 | CL67: 590 | CN67: 400 | CP67: 0 | CQ67: 600 | CS67: 1100
A68: 2015-01-03 | B68: Jan 03 | C68: 2015-01-03 | D68: 01-Jan 03 | E68: 1 | F68: 3 | G68: 2015 | H68: 08:00:00 | I68: 218.1 | J68: 167.5 | K68: 176.6666667 | L68: 405 | M68: 291.1371429 | N68: 330 | O68: 536 | P68: 572.5 | Q68: 326.5 | R68: 435 | S68: 310.7144444 | T68: 266.075 | U68: 750 | V68: 334.9744068 | W68: 337.5711111 | X68: 153 | Y68: 289.8 | Z68: 146.4 | AA68: 166 | AB68: 169 | AC68: 70 | AD68: 130 | AE68: 330 | AF68: 613 | AG68: 391 | AH68: 409 | AI68: 157 | AJ68: 455 | AK68: 194.99 | AL68: 345.5 | AM68: 300 | AO68: 100 | AP68: 479.56 | AQ68: 314.94 | AR68: 302.97 | AS68: 290 | AT68: 370 | AV68: 536 | AW68: 699 | AY68: 446 | BA68: 301 | BB68: 206 | BC68: 190 | BD68: 559 | BE68: 336 | BF68: 367 | BG68: 300 | BH68: 400 | BI68: 410 | BJ68: 500 | BK68: 600 | BL68: 400 | BM68: 100 | BN68: 300 | BO68: 730 | BP68: 300.1 | BQ68: 206.6 | BR68: 199.69 | BS68: 600 | BT68: 250.27 | BV68: 109.77 | BX68: 100 | BY68: 310.4 | BZ68: 500 | CB68: 206.5 | CE68: 400 | CF68: 300 | CG68: 0 | CJ68: 180 | CK68: 426 | CL68: 470 | CN68: 300 | CP68: 0 | CQ68: 600 | CS68: 900
A69: 2015-01-03 | B69: Jan 03 | C69: 2015-01-03 | D69: 01-Jan 03 | E69: 1 | F69: 3 | G69: 2015 | H69: 09:00:00 | I69: 222.3 | J69: 171.5 | K69: 336.6666667 | L69: 267.8 | M69: 240.7728571 | N69: 245 | O69: 501 | P69: 589.5 | Q69: 327.8333333 | R69: 460 | S69: 312.8644444 | T69: 278.6583333 | U69: 600 | V69: 323.3676271 | W69: 319.0266667 | X69: 149 | Y69: 294.9 | Z69: 149.7 | AA69: 169 | AB69: 174 | AC69: 80 | AD69: 110 | AE69: 820 | AF69: 346 | AG69: 341 | AH69: 282 | AI69: 156 | AJ69: 214 | AK69: 199.87 | AL69: 219.43 | AM69: 200 | AO69: 100 | AP69: 357.68 | AQ69: 281.94 | AR69: 326.49 | AS69: 300 | AT69: 190 | AV69: 501 | AW69: 741 | AY69: 438 | BA69: 284 | BB69: 187 | BC69: 198 | BD69: 559 | BE69: 332 | BF69: 407 | BG69: 200 | BH69: 400 | BI69: 360 | BJ69: 600 | BK69: 800 | BL69: 400 | BM69: 200 | BN69: 200 | BO69: 740 | BP69: 273.1 | BQ69: 277.5 | BR69: 203.01 | BS69: 610 | BT69: 206.46 | BV69: 105.71 | BX69: 200 | BY69: 348.2 | BZ69: 600 | CB69: 178.7 | CE69: 200 | CF69: 300 | CG69: 0 | CJ69: 170 | CK69: 387 | CL69: 460 | CN69: 500 | CP69: 0 | CQ69: 500 | CS69: 700
A70: 2015-01-03 | B70: Jan 03 | C70: 2015-01-03 | D70: 01-Jan 03 | E70: 1 | F70: 3 | G70: 2015 | H70: 10:00:00 | I70: 216.5 | J70: 179.5 | K70: 163.3333333 | L70: 252 | M70: 226.3971429 | N70: 220 | O70: 508 | P70: 528 | Q70: 306.1666667 | R70: 483.3333333 | S70: 313.3466667 | T70: 247.4416667 | U70: 500 | V70: 299.2745763 | W70: 303.2966667 | X70: 150 | Y70: 302.4 | Z70: 130.6 | AA70: 174 | AB70: 185 | AC70: 100 | AD70: 130 | AE70: 260 | AF70: 303 | AG70: 398 | AH70: 192 | AI70: 166 | AJ70: 201 | AK70: 206.66 | AL70: 208.39 | AM70: 200 | AO70: 100 | AP70: 335.13 | AQ70: 286.67 | AR70: 247.93 | AS70: 260 | AT70: 180 | AV70: 508 | AW70: 683 | AY70: 373 | BA70: 274 | BB70: 181 | BC70: 205 | BD70: 461 | BE70: 300 | BF70: 416 | BG70: 200 | BH70: 500 | BI70: 400 | BJ70: 600 | BK70: 800 | BL70: 400 | BM70: 200 | BN70: 200 | BO70: 770 | BP70: 263.8 | BQ70: 234.3 | BR70: 195.47 | BS70: 630 | BT70: 213.03 | BV70: 113.52 | BX70: 200 | BY70: 566.4 | BZ70: 300 | CB70: 175.9 | CE70: 200 | CF70: 300 | CG70: 0 | CJ70: 180 | CK70: 397 | CL70: 450 | CN70: 200 | CP70: 0 | CQ70: 400 | CS70: 600
A71: 2015-01-03 | B71: Jan 03 | C71: 2015-01-03 | D71: 01-Jan 03 | E71: 1 | F71: 3 | G71: 2015 | H71: 11:00:00 | I71: 214.5 | J71: 178.5 | K71: 146.6666667 | L71: 231.2 | M71: 204.9528571 | N71: 285 | O71: 500 | P71: 492.5 | Q71: 304.3333333 | R71: 523.3333333 | S71: 333.0377778 | T71: 257.8583333 | U71: 500 | V71: 303.8866102 | W71: 314.4522222 | X71: 149 | Y71: 293.6 | Z71: 135.4 | AA71: 181 | AB71: 176 | AC71: 80 | AD71: 120 | AE71: 240 | AF71: 282 | AG71: 340 | AH71: 188 | AI71: 172 | AJ71: 174 | AK71: 213.31 | AL71: 200.96 | AM71: 100 | AO71: 100 | AP71: 317.07 | AQ71: 226.27 | AR71: 277.06 | AS71: 380 | AT71: 190 | AV71: 500 | AW71: 652 | AY71: 333 | BA71: 368 | BB71: 185 | BC71: 212 | BD71: 426 | BE71: 254 | BF71: 381 | BG71: 200 | BH71: 400 | BI71: 340 | BJ71: 900 | BK71: 900 | BL71: 400 | BM71: 200 | BN71: 300 | BO71: 760 | BP71: 307.3 | BQ71: 297.4 | BR71: 196.42 | BS71: 610 | BT71: 212.55 | BV71: 113.67 | BX71: 200 | BY71: 614.2 | BZ71: 200 | CB71: 183.1 | CE71: 200 | CF71: 400 | CG71: 0 | CJ71: 210 | CK71: 417 | CL71: 470 | CN71: 200 | CP71: 0 | CQ71: 400 | CS71: 600
A72: 2015-01-03 | B72: Jan 03 | C72: 2015-01-03 | D72: 01-Jan 03 | E72: 1 | F72: 3 | G72: 2015 | H72: 12:00:00 | I72: 218.3 | J72: 181 | K72: 153.3333333 | L72: 224.8 | M72: 207.6857143 | N72: 255 | O72: 545 | P72: 488.5 | Q72: 287.6666667 | R72: 535 | S72: 342.0322222 | T72: 241.8916667 | U72: 550 | V72: 303.1422034 | W72: 316.9088889 | X72: 139 | Y72: 291.5 | Z72: 145.1 | AA72: 180 | AB72: 182 | AC72: 80 | AD72: 110 | AE72: 270 | AF72: 289 | AG72: 283 | AH72: 203 | AI72: 179 | AJ72: 170 | AK72: 224.7 | AL72: 187.52 | AM72: 200 | AO72: 100 | AP72: 283.41 | AQ72: 204.08 | AR72: 254.09 | AS72: 340 | AT72: 170 | AV72: 545 | AW72: 649 | AY72: 328 | BA72: 249 | BB72: 190 | BC72: 212 | BD72: 437 | BE72: 264 | BF72: 374 | BG72: 300 | BH72: 400 | BI72: 410 | BJ72: 800 | BK72: 900 | BL72: 400 | BM72: 200 | BN72: 300 | BO72: 790 | BP72: 333.7 | BQ72: 269 | BR72: 196.62 | BS72: 640 | BT72: 233.61 | BV72: 115.36 | BX72: 200 | BY72: 491.3 | BZ72: 200 | CB72: 185.4 | CE72: 200 | CF72: 300 | CG72: 0 | CJ72: 250 | CK72: 476 | CL72: 500 | CN72: 100 | CP72: 0 | CQ72: 400 | CS72: 700
A73: 2015-01-03 | B73: Jan 03 | C73: 2015-01-03 | D73: 01-Jan 03 | E73: 1 | F73: 3 | G73: 2015 | H73: 13:00:00 | I73: 244.1 | J73: 173 | K73: 143.3333333 | L73: 227 | M73: 194.93 | N73: 265 | O73: 643 | P73: 500.5 | Q73: 304.8333333 | R73: 560 | S73: 349.1988889 | T73: 292.775 | U73: 550 | V73: 320.0474576 | W73: 335.6822222 | X73: 145 | Y73: 342.4 | Z73: 145.8 | AA73: 177 | AB73: 169 | AC73: 80 | AD73: 150 | AE73: 200 | AF73: 275 | AG73: 296 | AH73: 203 | AI73: 192 | AJ73: 169 | AK73: 208.6 | AL73: 186.85 | AM73: 100 | AO73: 100 | AP73: 331.28 | AQ73: 185.94 | AR73: 251.84 | AS73: 350 | AT73: 180 | AV73: 643 | AW73: 660 | AY73: 341 | BA73: 270 | BB73: 186 | BC73: 205 | BD73: 465 | BE73: 292 | BF73: 411 | BG73: 300 | BH73: 500 | BI73: 460 | BJ73: 700 | BK73: 900 | BL73: 500 | BM73: 200 | BN73: 300 | BO73: 770 | BP73: 307.8 | BQ73: 257.6 | BR73: 196.11 | BS73: 730 | BT73: 264.82 | BV73: 116.46 | BX73: 200 | BY73: 514.5 | BZ73: 200 | CB73: 188.8 | CE73: 200 | CF73: 400 | CG73: 0 | CJ73: 360 | CK73: 580 | CL73: 670 | CN73: 200 | CP73: 0 | CQ73: 400 | CS73: 700
A74: 2015-01-03 | B74: Jan 03 | C74: 2015-01-03 | D74: 01-Jan 03 | E74: 1 | F74: 3 | G74: 2015 | H74: 14:00:00 | I74: 236.4 | J74: 185.5 | K74: 170 | L74: 246 | M74: 203.6328571 | N74: 295 | O74: 608 | P74: 520.5 | Q74: 302 | R74: 668.3333333 | S74: 352.4844444 | T74: 277.3166667 | U74: 550 | V74: 333.3964407 | W74: 348.8144444 | X74: 148 | Y74: 336.5 | Z74: 136.3 | AA74: 192 | AB74: 179 | AC74: 90 | AD74: 190 | AE74: 230 | AF74: 282 | AG74: 365 | AH74: 195 | AI74: 199 | AJ74: 189 | AK74: 197.06 | AL74: 196.92 | AM74: 200 | AO74: 100 | AP74: 278.2 | AQ74: 160.13 | AR74: 293.12 | AS74: 380 | AT74: 210 | AV74: 608 | AW74: 675 | AY74: 366 | BA74: 253 | BB74: 183 | BC74: 206 | BD74: 495 | BE74: 298 | BF74: 377 | BG74: 300 | BH74: 500 | BI74: 610 | BJ74: 900 | BK74: 1100 | BL74: 600 | BM74: 200 | BN74: 300 | BO74: 750 | BP74: 304 | BQ74: 250.4 | BR74: 204.91 | BS74: 740 | BT74: 304.61 | BV74: 118.44 | BX74: 200 | BY74: 348 | BZ74: 200 | CB74: 184.8 | CE74: 200 | CF74: 400 | CG74: 0 | CJ74: 290 | CK74: 505 | CL74: 700 | CN74: 200 | CP74: 100 | CQ74: 400 | CS74: 700
A75: 2015-01-03 | B75: Jan 03 | C75: 2015-01-03 | D75: 01-Jan 03 | E75: 1 | F75: 3 | G75: 2015 | H75: 15:00:00 | I75: 252.05 | J75: 202 | K75: 163.3333333 | L75: 239.6 | M75: 171.3433333 | N75: 315 | O75: 604 | P75: 542.5 | Q75: 303.8333333 | R75: 673.3333333 | S75: 369.1855556 | T75: 273.3666667 | U75: 550 | V75: 336.3660345 | W75: 335.26 | X75: 175 | Y75: 360.6 | Z75: 143.5 | AA75: 216 | AB75: 188 | AC75: 90 | AD75: 210 | AE75: 190 | AF75: 274 | AG75: 240 | AH75: 209 | AI75: 227 | AJ75: 248 | AK75: 192.64 | AL75: 200.47 | AM75: 100 | AO75: 100 | AQ75: 154.34 | AR75: 280.61 | AS75: 430 | AT75: 200 | AV75: 604 | AW75: 718 | AY75: 367 | BA75: 238 | BB75: 176 | BC75: 209 | BD75: 502 | BE75: 339 | BF75: 359 | BG75: 300 | BH75: 500 | BI75: 640 | BJ75: 900 | BK75: 1000 | BL75: 700 | BM75: 200 | BN75: 300 | BO75: 750 | BP75: 291.5 | BQ75: 258.8 | BR75: 209.86 | BS75: 780 | BT75: 419.79 | BV75: 112.72 | BX75: 200 | BY75: 240.7 | BZ75: 300 | CB75: 190.7 | CE75: 200 | CF75: 300 | CG75: 0 | CJ75: 320 | CK75: 579 | CL75: 650 | CN75: 200 | CP75: 100 | CQ75: 400 | CS75: 700
A76: 2015-01-03 | B76: Jan 03 | C76: 2015-01-03 | D76: 01-Jan 03 | E76: 1 | F76: 3 | G76: 2015 | H76: 16:00:00 | I76: =IF(COUNT(Y76:Z76)=0,"",AVERAGE(Y76:Z76)) -> 255.7 | J76: 216 | K76: 156.6666667 | L76: 224.6 | M76: 169.4166667 | N76: 260 | O76: 572 | P76: 557 | Q76: 302.5 | R76: 690 | S76: 369.3144444 | T76: =IF(COUNT(BX76:CP76)=0,"",AVERAGE(BX76:CP76)) -> 274.925 | U76: 600 | V76: =IF(COUNT(Y76:CS76)=0,"",AVERAGE(Y76:CS76)) -> 336.8418966 | W76: 322.16 | X76: 207 | Y76: 366.3 | Z76: 145.1 | AA76: 241 | AB76: 191 | AC76: 90 | AD76: 170 | AE76: 210 | AF76: 266 | AG76: 243 | AH76: 213 | AI76: 206 | AJ76: 195 | AK76: 188.76 | AL76: 210.56 | AM76: 100 | AO76: 100 | AQ76: 160.14 | AR76: 257.04 | AS76: 330 | AT76: 190 | AV76: 572 | AW76: 736 | AY76: 378 | BA76: 209 | BB76: 164 | BC76: 203 | BD76: 535 | BE76: 344 | BF76: 360 | BG76: 300 | BH76: 500 | BI76: 640 | BJ76: 800 | BK76: 1200 | BL76: 700 | BM76: 200 | BN76: 300 | BO76: 770 | BP76: 301.4 | BQ76: 288 | BR76: 220.54 | BS76: 750 | BT76: 382.14 | BV76: 111.75 | BX76: 200 | BY76: 249.2 | BZ76: 300 | CB76: 221.9 | CE76: 300 | CF76: 300 | CG76: 0 | CJ76: 290 | CK76: 518 | CL76: 520 | CN76: 300 | CP76: 100 | CQ76: 500 | CS76: 700
A77: 2015-01-03 | B77: Jan 03 | C77: =DATE(G77,E77,F77) -> 2015-01-03 | D77: =TEXT(E77,"00")&"-"&TEXT(C77,"MMM")&" "&TEXT(F77,"00") -> 01-Jan 03 | E77: 1 | F77: 3 | G77: 2015 | H77: 17:00:00 | I77: 234.85 | J77: =IF(COUNT(AA77:AB77)=0,"",AVERAGE(AA77:AB77)) -> 206.5 | K77: =IF(COUNT(AC77:AE77)=0,"",AVERAGE(AC77:AE77)) -> 150 | L77: =IF(COUNT(AF77:AJ77)=0,"",AVERAGE(AF77:AJ77)) -> 205.6 | M77: =IF(COUNT(AK77:AR77)=0,"",AVERAGE(AK77:AR77)) -> 174.67 | N77: =IF(COUNT(AS77:AT77)=0,"",AVERAGE(AS77:AT77)) -> 280 | O77: =IF(COUNT(AU77:AV77)=0,"",AVERAGE(AU77:AV77)) -> 576 | P77: =IF(COUNT(AW77:AZ77)=0,"",AVERAGE(AW77:AZ77)) -> 586 | Q77: =IF(COUNT(BA77:BF77)=0,"",AVERAGE(BA77:BF77)) -> 304.5 | R77: =IF(COUNT(BG77:BL77)=0,"",AVERAGE(BG77:BL77)) -> 643.3333333 | S77: =IF(COUNT(BM77:BW77)=0,"",AVERAGE(BM77:BW77)) -> 371.2477778 | T77: 294.1166667 | U77: =IF(COUNT(CQ77:CS77)=0,"",AVERAGE(CQ77:CS77)) -> 650 | V77: 337.4887931 | W77: =IF(COUNT(AG77)+COUNT(AQ77)+COUNT(AS77)+COUNT(AZ77)+COUNT(BD77)+COUNT(BG77)+COUNT(BP77:BQ77)+COUNT(BU77)+COUNT(CB77)+COUNT(CL77:CM77)+COUNT(CR77)=0,"",AVERAGE(AG77,AQ77,AS77,AZ77,BD77,BG77,BP77:BQ77,BU77,CB77,CL77:CM77,CR77)) -> 332.3522222 | X77: 191 | Y77: 322.5 | Z77: 147.2 | AA77: 230 | AB77: 183 | AC77: 110 | AD77: 160 | AE77: 180 | AF77: 227 | AG77: 264 | AH77: 187 | AI77: 180 | AJ77: 170 | AK77: 150.76 | AL77: 198.33 | AM77: 200 | AO77: 100 | AQ77: 147.47 | AR77: 251.46 | AS77: 360 | AT77: 200 | AV77: 576 | AW77: 778 | AY77: 394 | BA77: 220 | BB77: 158 | BC77: 215 | BD77: 509 | BE77: 376 | BF77: 349 | BG77: 200 | BH77: 500 | BI77: 660 | BJ77: 900 | BK77: 900 | BL77: 700 | BM77: 200 | BN77: 200 | BO77: 810 | BP77: 493.3 | BQ77: 292.4 | BR77: 244.77 | BS77: 760 | BT77: 227.51 | BV77: 113.25 | BX77: 200 | BY77: 474.4 | BZ77: 300 | CB77: 185 | CE77: 300 | CF77: 400 | CG77: 0 | CJ77: 250 | CK77: 480 | CL77: 540 | CN77: 300 | CP77: 100 | CQ77: 500 | CS77: 800
A78: 2015-01-03 | B78: Jan 03 | C78: 2015-01-03 | D78: 01-Jan 03 | E78: 1 | F78: 3 | G78: 2015 | H78: 18:00:00 | I78: 226.6 | J78: 192.5 | K78: 140 | L78: 200.2 | M78: 202.9442857 | N78: 345 | O78: 579 | P78: 593 | Q78: 290.3333333 | R78: 660 | S78: 374.8844444 | T78: 414.2272727 | U78: 700 | V78: 364.952931 | W78: 322.95625 | X78: 186 | Y78: 312 | Z78: 141.2 | AA78: 201 | AB78: 184 | AC78: 110 | AD78: 150 | AE78: 160 | AF78: 219 | AG78: 245 | AH78: 195 | AI78: 176 | AJ78: 166 | AK78: 190.2 | AL78: 219.93 | AM78: 200 | AO78: 200 | AP78: 226.95 | AQ78: 152.65 | AR78: 230.88 | AS78: 490 | AT78: 200 | AV78: 579 | AW78: 782 | AY78: 404 | BA78: 191 | BB78: 157 | BC78: 213 | BD78: 506 | BE78: 343 | BF78: 332 | BG78: 300 | BH78: 400 | BI78: 660 | BJ78: 900 | BK78: 1000 | BL78: 700 | BM78: 200 | BN78: 300 | BO78: 850 | BP78: 418 | BQ78: 287.7 | BR78: 275.35 | BS78: 770 | BT78: 168.64 | BV78: 104.27 | BX78: 200 | BY78: 582.2 | BZ78: 400 | CB78: 184.3 | CE78: 400 | CF78: 400 | CG78: 0 | CJ78: 290 | CK78: 1400 | CN78: 600 | CP78: 100 | CQ78: 500 | CS78: 900
A79: 2015-01-03 | B79: Jan 03 | C79: 2015-01-03 | D79: 01-Jan 03 | E79: 1 | F79: 3 | G79: 2015 | H79: 19:00:00 | I79: 205.9 | J79: 194 | K79: 140 | L79: 189.8 | M79: 201.0016667 | N79: 275 | O79: 556 | P79: 588.5 | Q79: 277.1666667 | R79: 743.3333333 | S79: 400.4622222 | T79: 321.7 | U79: 800 | V79: 360.064386 | W79: 306.1225 | X79: 185 | Y79: 267.5 | Z79: 144.3 | AA79: 180 | AB79: 208 | AC79: 130 | AD79: 140 | AE79: 150 | AF79: 207 | AG79: 232 | AH79: 190 | AI79: 164 | AJ79: 156 | AL79: 241.81 | AM79: 200 | AO79: 100 | AP79: 247.48 | AQ79: 158.78 | AR79: 257.94 | AS79: 350 | AT79: 200 | AV79: 556 | AW79: 782 | AY79: 395 | BA79: 206 | BB79: 156 | BC79: 213 | BD79: 411 | BE79: 360 | BF79: 317 | BG79: 300 | BH79: 500 | BI79: 660 | BJ79: 1100 | BK79: 1300 | BL79: 600 | BM79: 200 | BN79: 300 | BO79: 980 | BP79: 479.6 | BQ79: 333.8 | BR79: 286.12 | BS79: 750 | BT79: 174.99 | BV79: 99.65 | BX79: 200 | BY79: 580.9 | BZ79: 400 | CB79: 183.8 | CE79: 500 | CF79: 300 | CG79: 0 | CJ79: 240 | CK79: 434 | CN79: 600 | CP79: 100 | CQ79: 600 | CS79: 1000
A80: 2015-01-03 | B80: Jan 03 | C80: 2015-01-03 | D80: 01-Jan 03 | E80: 1 | F80: 3 | G80: 2015 | H80: 20:00:00 | I80: 200.1 | J80: 194 | K80: 143.3333333 | L80: 205.4 | M80: 189.68 | N80: 320 | O80: 601 | P80: 602 | Q80: 290 | R80: 561.6666667 | S80: 384.8488889 | T80: 372.475 | U80: 800 | V80: 352.9589655 | W80: 330.5855556 | X80: 162 | Y80: 260.9 | Z80: 139.3 | AA80: 171 | AB80: 217 | AC80: 130 | AD80: 150 | AE80: 150 | AF80: 210 | AG80: 263 | AH80: 226 | AI80: 165 | AJ80: 163 | AK80: 149.04 | AM80: 200 | AO80: 100 | AP80: 252.36 | AQ80: 181.57 | AR80: 255.11 | AS80: 400 | AT80: 240 | AV80: 601 | AW80: 789 | AY80: 415 | BA80: 267 | BB80: 162 | BC80: 213 | BD80: 362 | BE80: 393 | BF80: 343 | BG80: 200 | BH80: 400 | BI80: 570 | BJ80: 800 | BK80: 1000 | BL80: 400 | BM80: 200 | BN80: 200 | BO80: 1060 | BP80: 414.7 | BQ80: 326.3 | BR80: 297 | BS80: 680 | BT80: 188.23 | BV80: 97.41 | BX80: 200 | BY80: 640 | BZ80: 600 | CB80: 297.7 | CE80: 500 | CF80: 300 | CG80: 0 | CJ80: 230 | CK80: 472 | CL80: 530 | CN80: 600 | CP80: 100 | CQ80: 600 | CS80: 1000
A81: 2015-01-03 | B81: Jan 03 | C81: 2015-01-03 | D81: 01-Jan 03 | E81: 1 | F81: 3 | G81: 2015 | H81: 21:00:00 | I81: 206.4 | J81: 207 | K81: 153.3333333 | L81: 230 | M81: 212.794 | N81: 450 | O81: 583 | P81: 689.5 | Q81: 320.5 | R81: 578.3333333 | S81: 364.1811111 | T81: 455.4583333 | U81: 750 | V81: 385.945614 | W81: 411.9566667 | X81: 169 | Y81: 264.1 | Z81: 148.7 | AA81: 184 | AB81: 230 | AC81: 120 | AD81: 180 | AE81: 160 | AF81: 242 | AG81: 290 | AH81: 282 | AI81: 170 | AJ81: 166 | AM81: 200 | AO81: 200 | AP81: 248.84 | AQ81: 172.11 | AR81: 243.02 | AS81: 560 | AT81: 340 | AV81: 583 | AW81: 871 | AY81: 508 | BA81: 320 | BB81: 161 | BC81: 212 | BD81: 398 | BE81: 375 | BF81: 457 | BG81: 200 | BH81: 500 | BI81: 470 | BJ81: 800 | BK81: 800 | BL81: 700 | BM81: 200 | BN81: 200 | BO81: 810 | BP81: 464.4 | BQ81: 306.9 | BR81: 257.09 | BS81: 670 | BT81: 268.45 | BV81: 100.79 | BX81: 200 | BY81: 777.3 | BZ81: 900 | CB81: 776.2 | CE81: 500 | CF81: 300 | CG81: 0 | CJ81: 270 | CK81: 502 | CL81: 540 | CN81: 500 | CP81: 200 | CQ81: 600 | CS81: 900
A82: 2015-01-03 | B82: Jan 03 | C82: 2015-01-03 | D82: 01-Jan 03 | E82: 1 | F82: 3 | G82: 2015 | H82: 22:00:00 | I82: 192.25 | J82: 211 | K82: 123.3333333 | L82: 243 | M82: 213.0566667 | N82: 340 | O82: 610 | P82: 752 | Q82: 380.5 | R82: 496.6666667 | S82: 324.6133333 | T82: 444.7833333 | U82: 800 | V82: 380.8470909 | W82: 396.9875 | X82: 143 | Y82: 253.9 | Z82: 130.6 | AA82: 183 | AB82: 239 | AC82: 120 | AD82: 120 | AE82: 130 | AF82: 224 | AG82: 297 | AH82: 272 | AI82: 182 | AJ82: 240 | AK82: 154.2 | AL82: 224.19 | AP82: 260.78 | AS82: 450 | AT82: 230 | AV82: 610 | AW82: 941 | AY82: 563 | BA82: 471 | BB82: 163 | BC82: 218 | BD82: 565 | BE82: 392 | BF82: 474 | BG82: 200 | BH82: 400 | BI82: 380 | BJ82: 800 | BK82: 600 | BL82: 600 | BM82: 200 | BN82: 200 | BO82: 710 | BP82: 328.5 | BQ82: 249.1 | BR82: 233.73 | BS82: 690 | BT82: 209.3 | BV82: 100.89 | BX82: 200 | BY82: 748.1 | BZ82: 1100 | CB82: 456.3 | CE82: 500 | CF82: 300 | CG82: 0 | CJ82: 280 | CK82: 523 | CL82: 630 | CN82: 400 | CP82: 200 | CQ82: 600 | CS82: 1000
A83: 2015-01-03 | B83: Jan 03 | C83: 2015-01-03 | D83: 01-Jan 03 | E83: 1 | F83: 3 | G83: 2015 | H83: 23:00:00 | I83: 195.55 | J83: 201.5 | K83: 113.3333333 | L83: 258.6 | M83: 210.222 | N83: 270 | O83: 732 | P83: 713 | Q83: 340.6 | R83: 526.6666667 | S83: 305.8411111 | T83: 558.825 | U83: 800 | V83: 394.6014286 | W83: 369.38125 | X83: 152 | Y83: 260.4 | Z83: 130.7 | AA83: 180 | AB83: 223 | AC83: 100 | AD83: 120 | AE83: 120 | AF83: 321 | AG83: 273 | AH83: 260 | AI83: 185 | AJ83: 254 | AK83: 171.56 | AL83: 214.8 | AM83: 200 | AP83: 277.3 | AQ83: 187.45 | AS83: 370 | AT83: 170 | AV83: 732 | AW83: 901 | AY83: 525 | BA83: 398 | BB83: 181 | BC83: 189 | BE83: 439 | BF83: 496 | BG83: 200 | BH83: 500 | BI83: 360 | BJ83: 800 | BK83: 800 | BL83: 500 | BM83: 200 | BN83: 200 | BO83: 690 | BP83: 263.7 | BQ83: 236.2 | BR83: 230.49 | BS83: 650 | BT83: 181.5 | BV83: 100.68 | BX83: 200 | BY83: 761.2 | BZ83: 1000 | CB83: 814.7 | CE83: 500 | CF83: 300 | CG83: 0 | CJ83: 370 | CK83: 550 | CL83: 610 | CN83: 1300 | CP83: 300 | CQ83: 600 | CS83: 1000
A84: 2015-01-04 | B84: Jan 04 | C84: 2015-01-04 | D84: 01-Jan 04 | E84: 1 | F84: 4 | G84: 2015 | H84: 00:00:00 | I84: 198.9 | J84: 187.5 | L84: 266.6 | M84: 205.12 | N84: 320 | O84: 772 | P84: 744.5 | Q84: 400.8333333 | R84: 476.6666667 | S84: 295.4388889 | T84: 472.8 | U84: 750 | V84: 384.7069811 | W84: 336.54125 | X84: 161 | Y84: 259.5 | Z84: 138.3 | AA84: 178 | AB84: 197 | AF84: 371 | AG84: 254 | AH84: 243 | AI84: 184 | AJ84: 281 | AK84: 165.98 | AL84: 243.18 | AM84: 200 | AO84: 200 | AQ84: 186.03 | AR84: 235.53 | AS84: 410 | AT84: 230 | AV84: 772 | AW84: 886 | AY84: 603 | BA84: 501 | BB84: 224 | BC84: 206 | BD84: 478 | BE84: 498 | BF84: 498 | BG84: 200 | BH84: 500 | BI84: 360 | BJ84: 700 | BK84: 600 | BL84: 500 | BM84: 200 | BN84: 200 | BO84: 680 | BP84: 237.4 | BQ84: 246.9 | BR84: 228.18 | BS84: 590 | BT84: 170.31 | BV84: 106.16 | BX84: 200 | BZ84: 700 | CE84: 500 | CF84: 300 | CG84: 0 | CJ84: 430 | CK84: 618 | CL84: 680 | CN84: 1000 | CP84: 300 | CQ84: 700 | CS84: 800
A85: 2015-01-04 | B85: Jan 04 | C85: 2015-01-04 | D85: 01-Jan 04 | E85: 1 | F85: 4 | G85: 2015 | H85: 01:00:00 | I85: 194.1 | J85: 182.5 | K85: 100 | M85: 172.9383333 | N85: 370 | O85: 736 | P85: 595.5 | Q85: 383.3333333 | R85: 530 | S85: 291.4122222 | T85: 498.3583333 | U85: 550 | V85: 376.2422642 | W85: 403.235 | X85: 165 | Y85: 244.3 | Z85: 143.9 | AA85: 185 | AB85: 180 | AC85: 80 | AD85: 110 | AE85: 110 | AK85: 158.3 | AL85: 263.84 | AM85: 100 | AO85: 100 | AQ85: 177.58 | AR85: 237.91 | AS85: 530 | AT85: 210 | AV85: 736 | AW85: 777 | AY85: 414 | BA85: 429 | BB85: 224 | BC85: 191 | BD85: 516 | BE85: 515 | BF85: 425 | BG85: 200 | BH85: 700 | BI85: 380 | BJ85: 800 | BK85: 600 | BL85: 500 | BM85: 200 | BN85: 200 | BO85: 680 | BP85: 235.2 | BQ85: 175.3 | BR85: 205.69 | BS85: 600 | BT85: 223.42 | BV85: 103.1 | BX85: 200 | BY85: 668.5 | BZ85: 700 | CB85: 671.8 | CE85: 400 | CF85: 300 | CG85: 0 | CJ85: 470 | CK85: 750 | CL85: 720 | CN85: 800 | CP85: 300 | CQ85: 500 | CS85: 600
A86: 2015-01-04 | B86: Jan 04 | C86: 2015-01-04 | D86: 01-Jan 04 | E86: 1 | F86: 4 | G86: 2015 | H86: 02:00:00 | I86: 198.3 | J86: 179.5 | K86: 103.3333333 | L86: 238.8 | M86: 186.8028571 | N86: 375 | O86: 620 | P86: 462 | Q86: 312.5 | R86: 518.3333333 | S86: 305.4244444 | T86: 414.725 | U86: 500 | V86: 331.7244068 | W86: 350.0666667 | X86: 179 | Y86: 266.2 | Z86: 130.4 | AA86: 179 | AB86: 180 | AC86: 90 | AD86: 120 | AE86: 100 | AF86: 270 | AG86: 239 | AH86: 247 | AI86: 173 | AJ86: 265 | AK86: 158.19 | AL86: 236.64 | AM86: 100 | AO86: 100 | AP86: 312.39 | AQ86: 173.4 | AR86: 227 | AS86: 500 | AT86: 250 | AV86: 620 | AW86: 622 | AY86: 302 | BA86: 320 | BB86: 212 | BC86: 151 | BD86: 441 | BE86: 394 | BF86: 357 | BG86: 200 | BH86: 700 | BI86: 410 | BJ86: 600 | BK86: 600 | BL86: 600 | BM86: 200 | BN86: 300 | BO86: 670 | BP86: 229.5 | BQ86: 172.6 | BR86: 192.13 | BS86: 640 | BT86: 240.64 | BV86: 103.95 | BX86: 200 | BY86: 772.6 | BZ86: 300 | CB86: 415.1 | CE86: 400 | CF86: 300 | CG86: 0 | CJ86: 660 | CK86: 749 | CL86: 780 | CN86: 100 | CP86: 300 | CQ86: 400 | CS86: 600
A87: 2015-01-04 | B87: Jan 04 | C87: 2015-01-04 | D87: 01-Jan 04 | E87: 1 | F87: 4 | G87: 2015 | H87: 03:00:00 | I87: 201.3 | J87: 175.5 | K87: 96.66666667 | L87: 226.4 | M87: 190.4385714 | N87: 290 | O87: 544 | P87: 437.5 | Q87: 257.6666667 | R87: 493.3333333 | S87: 304.5555556 | T87: 316.9166667 | U87: 450 | V87: 295.8927119 | W87: 309.3133333 | X87: 175 | Y87: 265.8 | Z87: 136.8 | AA87: 176 | AB87: 175 | AC87: 80 | AD87: 110 | AE87: 100 | AF87: 250 | AG87: 233 | AH87: 225 | AI87: 170 | AJ87: 254 | AK87: 161.68 | AL87: 241.57 | AM87: 100 | AO87: 100 | AP87: 295.08 | AQ87: 204.52 | AR87: 230.22 | AS87: 350 | AT87: 230 | AV87: 544 | AW87: 601 | AY87: 274 | BA87: 269 | BB87: 214 | BC87: 142 | BD87: 313 | BE87: 254 | BF87: 354 | BG87: 300 | BH87: 400 | BI87: 460 | BJ87: 600 | BK87: 600 | BL87: 600 | BM87: 200 | BN87: 300 | BO87: 670 | BP87: 229.2 | BQ87: 165.9 | BR87: 189.08 | BS87: 650 | BT87: 233.23 | BV87: 103.59 | BX87: 200 | BY87: 345.8 | BZ87: 200 | CB87: 268.2 | CE87: 500 | CF87: 300 | CG87: 0 | CJ87: 380 | CK87: 489 | CL87: 720 | CN87: 100 | CP87: 300 | CQ87: 400 | CS87: 500
A88: 2015-01-04 | B88: Jan 04 | C88: 2015-01-04 | D88: 01-Jan 04 | E88: 1 | F88: 4 | G88: 2015 | H88: 04:00:00 | I88: 198.05 | J88: 176 | K88: 96.66666667 | L88: 232.8 | M88: 199.3857143 | N88: 315 | O88: 522 | P88: 441 | Q88: 253.3333333 | R88: 490 | S88: 345.99 | T88: 273.4636364 | U88: 450 | V88: 295.0656897 | W88: 313.8422222 | X88: 167 | Y88: 256.4 | Z88: 139.7 | AA88: 167 | AB88: 185 | AC88: 80 | AD88: 110 | AE88: 100 | AF88: 291 | AG88: 226 | AH88: 220 | AI88: 171 | AJ88: 256 | AK88: 151.21 | AL88: 210.73 | AM88: 100 | AO88: 100 | AP88: 296.58 | AQ88: 331.48 | AR88: 205.7 | AS88: 380 | AT88: 250 | AV88: 522 | AW88: 571 | AY88: 311 | BA88: 274 | BB88: 208 | BC88: 136 | BD88: 276 | BE88: 246 | BF88: 380 | BG88: 400 | BH88: 400 | BI88: 540 | BJ88: 600 | BK88: 500 | BL88: 500 | BM88: 200 | BN88: 400 | BO88: 680 | BP88: 224 | BQ88: 167.8 | BR88: 194.21 | BS88: 900 | BT88: 248.35 | BV88: 99.55 | BX88: 300 | BY88: 98.8 | BZ88: 100 | CB88: 279.3 | CE88: 600 | CF88: 300 | CG88: 0 | CK88: 490 | CL88: 540 | CN88: 0 | CP88: 300 | CQ88: 400 | CS88: 500
A89: 2015-01-04 | B89: Jan 04 | C89: 2015-01-04 | D89: 01-Jan 04 | E89: 1 | F89: 4 | G89: 2015 | H89: 05:00:00 | I89: 197.9 | J89: 172 | K89: 100 | L89: 255.4 | M89: 193.42 | N89: 330 | O89: 506 | P89: 419 | Q89: 257.8333333 | R89: 530 | S89: 391.87 | T89: 264.2 | U89: 450 | V89: 305.0672881 | W89: 287.2544444 | X89: 163 | Y89: 254.8 | Z89: 141 | AA89: 160 | AB89: 184 | AC89: 80 | AD89: 110 | AE89: 110 | AF89: 407 | AG89: 245 | AH89: 210 | AI89: 172 | AJ89: 243 | AK89: 144.37 | AL89: 248.17 | AM89: 100 | AO89: 100 | AP89: 267.6 | AQ89: 313.99 | AR89: 179.81 | AS89: 410 | AT89: 250 | AV89: 506 | AW89: 548 | AY89: 290 | BA89: 277 | BB89: 213 | BC89: 119 | BD89: 318 | BE89: 251 | BF89: 369 | BG89: 300 | BH89: 300 | BI89: 480 | BJ89: 1100 | BK89: 500 | BL89: 500 | BM89: 200 | BN89: 600 | BO89: 670 | BP89: 223.7 | BQ89: 177.9 | BR89: 187.09 | BS89: 910 | BT89: 464.23 | BV89: 93.91 | BX89: 300 | BY89: 91.7 | BZ89: 100 | CB89: 166.7 | CE89: 600 | CF89: 300 | CG89: 0 | CJ89: 200 | CK89: 382 | CL89: 430 | CN89: 100 | CP89: 500 | CQ89: 400 | CS89: 500
A90: 2015-01-04 | B90: Jan 04 | C90: 2015-01-04 | D90: 01-Jan 04 | E90: 1 | F90: 4 | G90: 2015 | H90: 06:00:00 | I90: 210.9 | J90: 167 | K90: 110 | L90: 276.4 | M90: 233.9514286 | N90: 375 | O90: 518 | P90: 426.5 | Q90: 281.1666667 | R90: 461.6666667 | S90: 400.7666667 | T90: 275.7166667 | U90: 500 | V90: 315.2366102 | W90: 315.8311111 | X90: 159 | Y90: 262.5 | Z90: 159.3 | AA90: 158 | AB90: 176 | AC90: 90 | AD90: 120 | AE90: 120 | AF90: 390 | AG90: 297 | AH90: 250 | AI90: 188 | AJ90: 257 | AK90: 142.1 | AL90: 232.1 | AM90: 200 | AO90: 100 | AP90: 378.75 | AQ90: 364.58 | AR90: 220.13 | AS90: 490 | AT90: 260 | AV90: 518 | AW90: 547 | AY90: 306 | BA90: 343 | BB90: 198 | BC90: 135 | BD90: 347 | BE90: 250 | BF90: 414 | BG90: 300 | BH90: 300 | BI90: 470 | BJ90: 800 | BK90: 500 | BL90: 400 | BM90: 200 | BN90: 700 | BO90: 700 | BP90: 267.9 | BQ90: 250.7 | BR90: 223.08 | BS90: 820 | BT90: 370.99 | BV90: 74.23 | BX90: 300 | BY90: 100.3 | BZ90: 100 | CB90: 115.3 | CE90: 700 | CF90: 300 | CG90: 0 | CJ90: 200 | CK90: 383 | CL90: 410 | CN90: 100 | CP90: 600 | CQ90: 400 | CS90: 600
A91: 2015-01-04 | B91: Jan 04 | C91: 2015-01-04 | D91: 01-Jan 04 | E91: 1 | F91: 4 | G91: 2015 | H91: 07:00:00 | I91: 213.3 | J91: 171 | K91: 116.6666667 | L91: 311.4 | M91: 256.055 | N91: 445 | O91: 534 | P91: 437 | Q91: 255 | R91: 415 | S91: 370.2822222 | T91: 293.8333333 | U91: 500 | V91: 317.0425862 | W91: 351.3177778 | X91: 155 | Y91: 266.3 | Z91: 160.3 | AA91: 154 | AB91: 188 | AC91: 90 | AD91: 140 | AE91: 120 | AF91: 454 | AG91: 364 | AH91: 264 | AI91: 199 | AJ91: 276 | AL91: 239.68 | AM91: 200 | AO91: 100 | AP91: 323.7 | AQ91: 399.06 | AR91: 273.89 | AS91: 600 | AT91: 290 | AV91: 534 | AW91: 580 | AY91: 294 | BA91: 245 | BB91: 190 | BC91: 141 | BD91: 346 | BE91: 247 | BF91: 361 | BG91: 300 | BH91: 300 | BI91: 390 | BJ91: 700 | BK91: 400 | BL91: 400 | BM91: 200 | BN91: 500 | BO91: 740 | BP91: 314.5 | BQ91: 270.6 | BR91: 195.85 | BS91: 720 | BT91: 317.7 | BV91: 73.89 | BX91: 300 | BY91: 103.3 | BZ91: 100 | CB91: 137.7 | CE91: 900 | CF91: 400 | CG91: 0 | CJ91: 230 | CK91: 425 | CL91: 430 | CN91: 100 | CP91: 400 | CQ91: 400 | CS91: 600
A92: 2015-01-04 | B92: Jan 04 | C92: 2015-01-04 | D92: 01-Jan 04 | E92: 1 | F92: 4 | G92: 2015 | H92: 08:00:00 | I92: 208.1 | J92: 176 | K92: 113.3333333 | L92: 377.4 | M92: 266.4185714 | N92: 455 | O92: 553 | P92: 426 | Q92: 247.6666667 | R92: 415 | S92: 388.1555556 | T92: 282.5083333 | U92: 500 | V92: 322.6208475 | W92: 365.0433333 | X92: 167 | Y92: 272.6 | Z92: 143.6 | AA92: 154 | AB92: 198 | AC92: 90 | AD92: 130 | AE92: 120 | AF92: 529 | AG92: 522 | AH92: 325 | AI92: 210 | AJ92: 301 | AK92: 174.17 | AL92: 272.27 | AM92: 300 | AO92: 100 | AP92: 293.75 | AQ92: 386.09 | AR92: 338.65 | AS92: 570 | AT92: 340 | AV92: 553 | AW92: 567 | AY92: 285 | BA92: 222 | BB92: 193 | BC92: 153 | BD92: 343 | BE92: 238 | BF92: 337 | BG92: 300 | BH92: 300 | BI92: 390 | BJ92: 700 | BK92: 400 | BL92: 400 | BM92: 200 | BN92: 500 | BO92: 730 | BP92: 294.6 | BQ92: 310.5 | BR92: 275.93 | BS92: 700 | BT92: 400.16 | BV92: 82.21 | BX92: 300 | BY92: 99.9 | BZ92: 100 | CB92: 109.2 | CE92: 900 | CF92: 400 | CG92: 0 | CJ92: 260 | CK92: 371 | CL92: 450 | CN92: 100 | CP92: 300 | CQ92: 400 | CS92: 600
A93: 2015-01-04 | B93: Jan 04 | C93: 2015-01-04 | D93: 01-Jan 04 | E93: 1 | F93: 4 | G93: 2015 | H93: 09:00:00 | I93: 218.05 | J93: 186.5 | K93: 123.3333333 | L93: 429 | M93: 303.9514286 | N93: 590 | O93: 514 | P93: 420.5 | Q93: 250.1666667 | R93: 450 | S93: 427.88 | T93: 258.9 | U93: 450 | V93: 339.7538983 | W93: 410.8988889 | X93: 169 | Y93: 284.6 | Z93: 151.5 | AA93: 158 | AB93: 215 | AC93: 100 | AD93: 140 | AE93: 130 | AF93: 573 | AG93: 515 | AH93: 479 | AI93: 215 | AJ93: 363 | AK93: 196.16 | AL93: 269.28 | AM93: 300 | AO93: 100 | AP93: 390.54 | AQ93: 458.19 | AR93: 413.49 | AS93: 780 | AT93: 400 | AV93: 514 | AW93: 565 | AY93: 276 | BA93: 240 | BB93: 185 | BC93: 145 | BD93: 344 | BE93: 234 | BF93: 353 | BG93: 200 | BH93: 300 | BI93: 400 | BJ93: 800 | BK93: 500 | BL93: 500 | BM93: 200 | BN93: 500 | BO93: 720 | BP93: 291.5 | BQ93: 544 | BR93: 383.9 | BS93: 770 | BT93: 362.97 | BV93: 78.55 | BX93: 200 | BY93: 103.4 | BZ93: 100 | CB93: 115.4 | CE93: 900 | CF93: 400 | CG93: 0 | CJ93: 250 | CK93: 388 | CL93: 450 | CN93: 100 | CP93: 100 | CQ93: 300 | CS93: 600
A94: 2015-01-04 | B94: Jan 04 | C94: 2015-01-04 | D94: 01-Jan 04 | E94: 1 | F94: 4 | G94: 2015 | H94: 10:00:00 | I94: 232.95 | J94: 195.5 | K94: 126.6666667 | L94: 428.4 | M94: 341.4542857 | N94: 735 | O94: 506 | P94: 419.5 | Q94: 259.3333333 | R94: 410 | S94: 436.49 | T94: 275.325 | U94: 400 | V94: 349.7015254 | W94: 466.6111111 | X94: 236 | Y94: 302.5 | Z94: 163.4 | AA94: 169 | AB94: 222 | AC94: 90 | AD94: 150 | AE94: 140 | AF94: 523 | AG94: 567 | AH94: 340 | AI94: 259 | AJ94: 453 | AK94: 235.29 | AL94: 357.72 | AM94: 300 | AO94: 200 | AP94: 366.86 | AQ94: 483.7 | AR94: 446.61 | AS94: 960 | AT94: 510 | AV94: 506 | AW94: 569 | AY94: 270 | BA94: 245 | BB94: 173 | BC94: 132 | BD94: 353 | BE94: 232 | BF94: 421 | BG94: 200 | BH94: 300 | BI94: 360 | BJ94: 800 | BK94: 400 | BL94: 400 | BM94: 300 | BN94: 500 | BO94: 710 | BP94: 273.6 | BQ94: 678.4 | BR94: 441.34 | BS94: 680 | BT94: 269.87 | BV94: 75.2 | BX94: 200 | BY94: 109.1 | BZ94: 200 | CB94: 163.8 | CE94: 800 | CF94: 400 | CG94: 0 | CJ94: 250 | CK94: 361 | CL94: 520 | CN94: 0 | CP94: 300 | CQ94: 300 | CS94: 500
A95: 2015-01-04 | B95: Jan 04 | C95: 2015-01-04 | D95: 01-Jan 04 | E95: 1 | F95: 4 | G95: 2015 | H95: 11:00:00 | I95: 249.8 | J95: 213.5 | K95: 136.6666667 | L95: 567.2 | M95: 352.6 | N95: 660 | O95: 505 | P95: 422 | Q95: 256.5 | R95: 426.6666667 | S95: 381.86 | T95: 273.2833333 | U95: 450 | V95: 356.3549153 | W95: 429.8055556 | X95: 177 | Y95: 329 | Z95: 170.6 | AA95: 195 | AB95: 232 | AC95: 100 | AD95: 160 | AE95: 150 | AF95: 922 | AG95: 547 | AH95: 418 | AI95: 280 | AJ95: 669 | AK95: 311.16 | AL95: 352.49 | AM95: 200 | AO95: 300 | AP95: 390.76 | AQ95: 522.55 | AR95: 391.24 | AS95: 860 | AT95: 460 | AV95: 505 | AW95: 552 | AY95: 292 | BA95: 273 | BB95: 171 | BC95: 88 | BD95: 317 | BE95: 232 | BF95: 458 | BG95: 200 | BH95: 300 | BI95: 360 | BJ95: 800 | BK95: 500 | BL95: 400 | BM95: 300 | BN95: 500 | BO95: 720 | BP95: 261.5 | BQ95: 347.5 | BR95: 278.25 | BS95: 640 | BT95: 311.57 | BV95: 77.92 | BX95: 200 | BY95: 131.7 | BZ95: 200 | CB95: 352.7 | CE95: 500 | CF95: 400 | CG95: 0 | CJ95: 190 | CK95: 345 | CL95: 460 | CN95: 100 | CP95: 400 | CQ95: 300 | CS95: 600
A96: 2015-01-04 | B96: Jan 04 | C96: 2015-01-04 | D96: 01-Jan 04 | E96: 1 | F96: 4 | G96: 2015 | H96: 12:00:00 | I96: 251.3 | J96: 226.5 | K96: 143.3333333 | L96: 627.8 | M96: 354.82 | N96: 590 | O96: 561 | P96: 445 | Q96: 272.6666667 | R96: 441.6666667 | S96: 361.4622222 | T96: 258.5166667 | U96: 400 | V96: 357.3 | W96: 430.3144444 | X96: 172 | Y96: 344.5 | Z96: 158.1 | AA96: 226 | AB96: 227 | AC96: 100 | AD96: 170 | AE96: 160 | AF96: 934 | AG96: 586 | AH96: 475 | AI96: 312 | AJ96: 832 | AK96: 320.02 | AL96: 323.13 | AM96: 300 | AO96: 200 | AP96: 424.64 | AQ96: 548.63 | AR96: 367.32 | AS96: 820 | AT96: 360 | AV96: 561 | AW96: 576 | AY96: 314 | BA96: 408 | BB96: 162 | BC96: 90 | BD96: 382 | BE96: 240 | BF96: 354 | BG96: 200 | BH96: 300 | BI96: 350 | BJ96: 900 | BK96: 500 | BL96: 400 | BM96: 300 | BN96: 500 | BO96: 720 | BP96: 257.4 | BQ96: 223.8 | BR96: 188.13 | BS96: 610 | BT96: 373.86 | BV96: 79.97 | BX96: 200 | BY96: 150.2 | BZ96: 200 | CB96: 385 | CE96: 200 | CF96: 400 | CG96: 0 | CJ96: 240 | CK96: 357 | CL96: 470 | CN96: 100 | CP96: 400 | CQ96: 300 | CS96: 500
A97: 2015-01-04 | B97: Jan 04 | C97: 2015-01-04 | D97: 01-Jan 04 | E97: 1 | F97: 4 | G97: 2015 | H97: 13:00:00 | I97: 278.65 | J97: 250 | K97: 186.6666667 | L97: 550.8 | M97: 439.5228571 | N97: 835 | O97: 551 | P97: 499 | Q97: 290.1666667 | R97: 410 | S97: 363.0244444 | T97: 250.75 | U97: 450 | V97: 373.6301695 | W97: 499.0488889 | X97: 216 | Y97: 395.5 | Z97: 161.8 | AA97: 251 | AB97: 249 | AC97: 100 | AD97: 170 | AE97: 290 | AF97: 474 | AG97: 694 | AH97: 505 | AI97: 313 | AJ97: 768 | AK97: 345.39 | AL97: 377.75 | AM97: 400 | AO97: 300 | AP97: 443.66 | AQ97: 619.14 | AR97: 590.72 | AS97: 1200 | AT97: 470 | AV97: 551 | AW97: 625 | AY97: 373 | BA97: 529 | BB97: 147 | BC97: 92 | BD97: 402 | BE97: 262 | BF97: 309 | BG97: 200 | BH97: 300 | BI97: 360 | BJ97: 800 | BK97: 400 | BL97: 400 | BM97: 300 | BN97: 500 | BO97: 690 | BP97: 233.6 | BQ97: 195.8 | BR97: 180.43 | BS97: 640 | BT97: 451.46 | BV97: 75.93 | BX97: 200 | BY97: 164.1 | BZ97: 200 | CB97: 346.9 | CE97: 200 | CF97: 400 | CG97: 0 | CJ97: 270 | CK97: 428 | CL97: 600 | CN97: 100 | CP97: 100 | CQ97: 300 | CS97: 600
A98: 2015-01-04 | B98: Jan 04 | C98: 2015-01-04 | D98: 01-Jan 04 | E98: 1 | F98: 4 | G98: 2015 | H98: 14:00:00 | I98: 293.45 | J98: 276 | K98: 213.3333333 | L98: 583.2 | M98: 473.5128571 | N98: 860 | O98: 561 | P98: 505 | Q98: 297 | R98: 421.6666667 | S98: 351.1977778 | T98: 257.1583333 | U98: 450 | V98: 385.7486441 | W98: 540.7622222 | X98: 211 | Y98: 437.9 | Z98: 149 | AA98: 264 | AB98: 288 | AC98: 110 | AD98: 180 | AE98: 350 | AF98: 606 | AG98: 740 | AH98: 500 | AI98: 291 | AJ98: 779 | AK98: 328.05 | AL98: 450.43 | AM98: 400 | AO98: 300 | AP98: 532.29 | AQ98: 704.46 | AR98: 599.36 | AS98: 1270 | AT98: 450 | AV98: 561 | AW98: 595 | AY98: 415 | BA98: 494 | BB98: 138 | BC98: 114 | BD98: 476 | BE98: 290 | BF98: 270 | BG98: 200 | BH98: 300 | BI98: 330 | BJ98: 900 | BK98: 400 | BL98: 400 | BM98: 300 | BN98: 500 | BO98: 740 | BP98: 261.2 | BQ98: 197.1 | BR98: 174.48 | BS98: 640 | BT98: 278.14 | BV98: 69.86 | BX98: 300 | BY98: 172.8 | BZ98: 200 | CB98: 428.1 | CE98: 200 | CF98: 400 | CG98: 0 | CJ98: 310 | CK98: 385 | CL98: 590 | CN98: 100 | CP98: 0 | CQ98: 300 | CS98: 600
A99: 2015-01-04 | B99: Jan 04 | C99: 2015-01-04 | D99: 01-Jan 04 | E99: 1 | F99: 4 | G99: 2015 | H99: 15:00:00 | I99: 270.2 | J99: 285 | K99: 196.6666667 | L99: 602.8 | M99: 522.41 | N99: 885 | O99: 571 | P99: 459.5 | Q99: 301 | R99: 441.6666667 | S99: 355.2188889 | T99: 294.875 | U99: 400 | V99: 400.3854237 | W99: 618.8766667 | X99: 219 | Y99: 368.5 | Z99: 171.9 | AA99: 273 | AB99: 297 | AC99: 110 | AD99: 200 | AE99: 280 | AF99: 651 | AG99: 1016 | AH99: 662 | AI99: 270 | AJ99: 415 | AK99: 396.91 | AL99: 464.2 | AM99: 500 | AO99: 400 | AP99: 636.1 | AQ99: 720.59 | AR99: 539.07 | AS99: 1510 | AT99: 260 | AV99: 571 | AW99: 563 | AY99: 356 | BA99: 317 | BB99: 130 | BC99: 116 | BD99: 525 | BE99: 260 | BF99: 458 | BG99: 200 | BH99: 300 | BI99: 350 | BJ99: 900 | BK99: 500 | BL99: 400 | BM99: 300 | BN99: 500 | BO99: 760 | BP99: 281.6 | BQ99: 208.8 | BR99: 192.05 | BS99: 600 | BT99: 277.08 | BV99: 77.44 | BX99: 300 | BY99: 178.6 | BZ99: 200 | CB99: 397.9 | CE99: 200 | CF99: 400 | CG99: 100 | CJ99: 470 | CK99: 382 | CL99: 710 | CN99: 100 | CP99: 100 | CQ99: 300 | CS99: 500
A100: 2015-01-04 | B100: Jan 04 | C100: 2015-01-04 | D100: 01-Jan 04 | E100: 1 | F100: 4 | G100: 2015 | H100: 16:00:00 | I100: 314.7 | J100: 295 | K100: 286.6666667 | L100: 670.4 | M100: 530.72 | N100: 805 | O100: 780 | P100: 397.5 | Q100: 276.1666667 | R100: 466.6666667 | S100: 365.6222222 | T100: 335.1833333 | U100: 400 | V100: 420.1813793 | W100: 643.2777778 | X100: 195 | Y100: 464.9 | Z100: 164.5 | AA100: 279 | AB100: 311 | AC100: 110 | AD100: 190 | AE100: 560 | AF100: 593 | AG100: 1259 | AH100: 800 | AI100: 252 | AJ100: 448 | AK100: 504.49 | AL100: 594.88 | AM100: 500 | AO100: 400 | AQ100: 761.8 | AR100: 423.15 | AS100: 1310 | AT100: 300 | AV100: 780 | AW100: 509 | AY100: 286 | BA100: 297 | BB100: 128 | BC100: 129 | BD100: 506 | BE100: 257 | BF100: 340 | BG100: 300 | BH100: 300 | BI100: 400 | BJ100: 900 | BK100: 500 | BL100: 400 | BM100: 300 | BN100: 500 | BO100: 790 | BP100: 300.5 | BQ100: 236.6 | BR100: 217.14 | BS100: 580 | BT100: 287 | BV100: 79.36 | BX100: 300 | BY100: 185.6 | BZ100: 200 | CB100: 405.6 | CE100: 200 | CF100: 500 | CG100: 200 | CJ100: 440 | CK100: 381 | CL100: 710 | CN100: 100 | CP100: 400 | CQ100: 300 | CS100: 500
A101: 2015-01-04 | B101: Jan 04 | C101: 2015-01-04 | D101: 01-Jan 04 | E101: 1 | F101: 4 | G101: 2015 | H101: 17:00:00 | I101: 347.3 | J101: 297.5 | K101: 290 | L101: 736.4 | M101: 548.1183333 | N101: 605 | O101: 1061 | P101: 391.5 | Q101: 262.3333333 | R101: 413.3333333 | S101: 376.7688889 | T101: 309.3916667 | U101: 400 | V101: 416.2401724 | W101: 603.5466667 | X101: 234 | Y101: 522.3 | Z101: 172.3 | AA101: 273 | AB101: 322 | AC101: 100 | AD101: 210 | AE101: 560 | AF101: 726 | AG101: 1405 | AH101: 928 | AI101: 235 | AJ101: 388 | AK101: 443.88 | AL101: 809.69 | AM101: 700 | AO101: 200 | AQ101: 724.72 | AR101: 410.42 | AS101: 970 | AT101: 240 | AV101: 1061 | AW101: 505 | AY101: 278 | BA101: 363 | BB101: 124 | BC101: 166 | BD101: 444 | BE101: 215 | BF101: 262 | BG101: 200 | BH101: 400 | BI101: 380 | BJ101: 700 | BK101: 400 | BL101: 400 | BM101: 300 | BN101: 500 | BO101: 800 | BP101: 300.6 | BQ101: 255.2 | BR101: 246.95 | BS101: 540 | BT101: 352.05 | BV101: 96.12 | BX101: 200 | BY101: 190.3 | BZ101: 200 | CB101: 372.4 | CE101: 200 | CF101: 500 | CG101: 0 | CJ101: 400 | CK101: 390 | CL101: 760 | CN101: 100 | CP101: 400 | CQ101: 300 | CS101: 500
A102: 2015-01-04 | B102: Jan 04 | C102: 2015-01-04 | D102: 01-Jan 04 | E102: 1 | F102: 4 | G102: 2015 | H102: 18:00:00 | I102: 374.2 | J102: 308.5 | K102: 340 | L102: 789.2 | M102: 533.5385714 | N102: 525 | O102: 622 | P102: 396 | Q102: 193.1666667 | R102: 450 | S102: 399.65 | T102: 287.6166667 | U102: 400 | V102: 410.8037288 | W102: 576.8311111 | X102: 204 | Y102: 563.8 | Z102: 184.6 | AA102: 285 | AB102: 332 | AC102: 100 | AD102: 220 | AE102: 700 | AF102: 802 | AG102: 1570 | AH102: 962 | AI102: 244 | AJ102: 368 | AK102: 344.9 | AL102: 905.22 | AM102: 600 | AO102: 300 | AP102: 590.69 | AQ102: 612.98 | AR102: 380.98 | AS102: 830 | AT102: 220 | AV102: 622 | AW102: 498 | AY102: 294 | BA102: 151 | BB102: 125 | BC102: 177 | BD102: 218 | BE102: 215 | BF102: 273 | BG102: 300 | BH102: 300 | BI102: 400 | BJ102: 900 | BK102: 400 | BL102: 400 | BM102: 300 | BN102: 500 | BO102: 780 | BP102: 281.7 | BQ102: 271.2 | BR102: 266.41 | BS102: 580 | BT102: 518.42 | BV102: 99.12 | BX102: 200 | BY102: 193.8 | BZ102: 200 | CB102: 317.6 | CE102: 200 | CF102: 400 | CG102: 0 | CJ102: 330 | CK102: 420 | CL102: 790 | CN102: 100 | CP102: 300 | CQ102: 300 | CS102: 500
A103: 2015-01-04 | B103: Jan 04 | C103: 2015-01-04 | D103: 01-Jan 04 | E103: 1 | F103: 4 | G103: 2015 | H103: 19:00:00 | I103: 439.7 | J103: 310.5 | K103: 230 | L103: 794.8 | M103: 513.815 | N103: 580 | O103: 594 | P103: 370 | Q103: 158 | R103: 405 | S103: 372.2555556 | T103: 246.5166667 | U103: 400 | V103: 383.2377586 | W103: 538.0988889 | X103: 245 | Y103: 692.2 | Z103: 187.2 | AA103: 273 | AB103: 348 | AC103: 110 | AD103: 200 | AE103: 380 | AF103: 605 | AG103: 1573 | AH103: 1061 | AI103: 237 | AJ103: 498 | AL103: 728.41 | AM103: 600 | AO103: 300 | AP103: 486.75 | AQ103: 569.09 | AR103: 398.64 | AS103: 930 | AT103: 230 | AV103: 594 | AW103: 518 | AY103: 222 | BA103: 102 | BB103: 128 | BC103: 191 | BD103: 175 | BE103: 178 | BF103: 174 | BG103: 300 | BH103: 300 | BI103: 330 | BJ103: 700 | BK103: 400 | BL103: 400 | BM103: 300 | BN103: 500 | BO103: 750 | BP103: 251.1 | BQ103: 256 | BR103: 274.77 | BS103: 550 | BT103: 368.92 | BV103: 99.51 | BX103: 200 | BY103: 194.5 | BZ103: 200 | CB103: 228.7 | CE103: 200 | CF103: 400 | CG103: 0 | CJ103: 290 | CK103: 485 | CL103: 560 | CN103: 100 | CP103: 100 | CQ103: 300 | CS103: 500
A104: 2015-01-04 | B104: Jan 04 | C104: 2015-01-04 | D104: 01-Jan 04 | E104: 1 | F104: 4 | G104: 2015 | H104: 20:00:00 | I104: 372.05 | J104: 292 | K104: 210 | L104: 861 | M104: 427.8 | N104: 450 | O104: 556 | P104: 394 | Q104: 144.5 | R104: 370 | S104: 335.4922222 | T104: 216.2416667 | U104: 400 | V104: 354.7453448 | W104: 492.0022222 | X104: 173 | Y104: 530.5 | Z104: 213.6 | AA104: 259 | AB104: 325 | AC104: 110 | AD104: 270 | AE104: 250 | AF104: 629 | AG104: 1738 | AH104: 1289 | AI104: 234 | AJ104: 415 | AK104: 309.93 | AM104: 700 | AO104: 300 | AP104: 421.35 | AQ104: 510.62 | AR104: 324.9 | AS104: 650 | AT104: 250 | AV104: 556 | AW104: 570 | AY104: 218 | BA104: 55 | BB104: 139 | BC104: 188 | BD104: 166 | BE104: 181 | BF104: 138 | BG104: 200 | BH104: 300 | BI104: 320 | BJ104: 700 | BK104: 400 | BL104: 300 | BM104: 300 | BN104: 400 | BO104: 690 | BP104: 198.5 | BQ104: 242.5 | BR104: 253.21 | BS104: 480 | BT104: 321.45 | BV104: 133.77 | BX104: 200 | BY104: 200.5 | BZ104: 200 | CB104: 242.4 | CE104: 200 | CF104: 400 | CG104: 0 | CJ104: 190 | CK104: 382 | CL104: 480 | CN104: 100 | CP104: 0 | CQ104: 300 | CS104: 500
A105: 2015-01-04 | B105: Jan 04 | C105: 2015-01-04 | D105: 01-Jan 04 | E105: 1 | F105: 4 | G105: 2015 | H105: 21:00:00 | I105: 359.25 | J105: 271 | K105: 183.3333333 | L105: 448.8 | M105: 450.5 | N105: 485 | O105: 533 | P105: 367.5 | Q105: 143.5 | R105: 306.6666667 | S105: 289.92 | T105: 200.7416667 | U105: 350 | V105: 302.799661 | W105: 377.77 | X105: 180 | Y105: 482.6 | Z105: 235.9 | AA105: 246 | AB105: 296 | AC105: 110 | AD105: 200 | AE105: 240 | AF105: 320 | AG105: 860 | AH105: 555 | AI105: 185 | AJ105: 324 | AK105: 285.46 | AL105: 712.21 | AM105: 800 | AO105: 300 | AP105: 342.99 | AQ105: 374.73 | AR105: 338.11 | AS105: 730 | AT105: 240 | AV105: 533 | AW105: 509 | AY105: 226 | BA105: 66 | BB105: 147 | BC105: 183 | BD105: 151 | BE105: 180 | BF105: 134 | BG105: 200 | BH105: 300 | BI105: 240 | BJ105: 500 | BK105: 300 | BL105: 300 | BM105: 200 | BN105: 300 | BO105: 690 | BP105: 191.1 | BQ105: 178.4 | BR105: 206.02 | BS105: 400 | BT105: 253.86 | BV105: 189.9 | BX105: 200 | BY105: 202.2 | BZ105: 200 | CB105: 274.7 | CE105: 200 | CF105: 300 | CG105: 0 | CJ105: 150 | CK105: 342 | CL105: 440 | CN105: 100 | CP105: 0 | CQ105: 300 | CS105: 400
A106: 2015-01-04 | B106: Jan 04 | C106: 2015-01-04 | D106: 01-Jan 04 | E106: 1 | F106: 4 | G106: 2015 | H106: 22:00:00 | I106: 342.95 | J106: 265 | K106: 146.6666667 | L106: 238 | M106: 422.26 | N106: 305 | O106: 517 | P106: 347.5 | Q106: 149.1666667 | R106: 288.3333333 | S106: 261.1355556 | T106: 205.6416667 | U106: 350 | V106: 255.9563636 | W106: 246.1625 | X106: 171 | Y106: 464.6 | Z106: 221.3 | AA106: 231 | AB106: 299 | AC106: 120 | AD106: 180 | AE106: 140 | AF106: 214 | AG106: 373 | AH106: 198 | AI106: 187 | AJ106: 218 | AK106: 262.05 | AL106: 694.13 | AP106: 310.6 | AS106: 380 | AT106: 230 | AV106: 517 | AW106: 482 | AY106: 213 | BA106: 75 | BB106: 148 | BC106: 190 | BD106: 148 | BE106: 180 | BF106: 154 | BG106: 100 | BH106: 300 | BI106: 230 | BJ106: 500 | BK106: 300 | BL106: 300 | BM106: 200 | BN106: 300 | BO106: 670 | BP106: 163.3 | BQ106: 140 | BR106: 172.13 | BS106: 340 | BT106: 203.85 | BV106: 160.94 | BX106: 200 | BY106: 212.7 | BZ106: 300 | CB106: 255 | CE106: 200 | CF106: 300 | CG106: 0 | CJ106: 160 | CK106: 330 | CL106: 410 | CN106: 100 | CP106: 0 | CQ106: 300 | CS106: 400
A107: 2015-01-04 | B107: Jan 04 | C107: 2015-01-04 | D107: 01-Jan 04 | E107: 1 | F107: 4 | G107: 2015 | H107: 23:00:00 | I107: 350.1 | J107: 245.5 | K107: 136.6666667 | L107: 221.2 | M107: 323.1914286 | N107: 245 | O107: 493 | P107: 333 | Q107: 146 | R107: 251.6666667 | S107: 244.9955556 | T107: 176.75 | U107: 400 | V107: 241.112069 | W107: 234.93375 | X107: 175 | Y107: 475.1 | Z107: 225.1 | AA107: 215 | AB107: 276 | AC107: 120 | AD107: 140 | AE107: 150 | AF107: 203 | AG107: 300 | AH107: 227 | AI107: 191 | AJ107: 185 | AK107: 226.73 | AL107: 507.27 | AM107: 500 | AO107: 200 | AP107: 281.86 | AQ107: 304.27 | AR107: 242.21 | AS107: 330 | AT107: 160 | AV107: 493 | AW107: 469 | AY107: 197 | BA107: 81 | BB107: 152 | BC107: 175 | BE107: 178 | BF107: 144 | BG107: 100 | BH107: 300 | BI107: 210 | BJ107: 400 | BK107: 300 | BL107: 200 | BM107: 300 | BN107: 200 | BO107: 660 | BP107: 140.3 | BQ107: 121.5 | BR107: 163.42 | BS107: 310 | BT107: 167.15 | BV107: 142.59 | BX107: 100 | BY107: 188.6 | BZ107: 200 | CB107: 213.4 | CE107: 200 | CF107: 300 | CG107: 0 | CJ107: 130 | CK107: 319 | CL107: 370 | CN107: 100 | CP107: 0 | CQ107: 300 | CS107: 500
A108: 2015-01-05 | B108: Jan 05 | C108: 2015-01-05 | D108: 01-Jan 05 | E108: 1 | F108: 5 | G108: 2015 | H108: 00:00:00 | I108: 344.1 | J108: 225.5 | L108: 208 | M108: 209.1114286 | O108: 492 | P108: 311.5 | Q108: 147.8333333 | R108: 233.3333333 | S108: 228.9455556 | T108: 174.8 | U108: 350 | V108: 222.1825 | W108: 190.5257143 | X108: 177 | Y108: 441.2 | Z108: 247 | AA108: 223 | AB108: 228 | AF108: 196 | AG108: 240 | AH108: 215 | AI108: 194 | AJ108: 195 | AK108: 198.48 | AL108: 271.22 | AM108: 200 | AO108: 100 | AP108: 237.89 | AQ108: 252.08 | AR108: 204.11 | AV108: 492 | AW108: 450 | AY108: 173 | BA108: 77 | BB108: 160 | BC108: 175 | BD108: 156 | BE108: 167 | BF108: 152 | BG108: 100 | BH108: 300 | BI108: 200 | BJ108: 300 | BK108: 300 | BL108: 200 | BM108: 200 | BN108: 200 | BO108: 660 | BP108: 134.9 | BQ108: 100.7 | BR108: 141.26 | BS108: 330 | BT108: 165 | BV108: 128.65 | BX108: 200 | BZ108: 200 | CE108: 200 | CF108: 300 | CG108: 0 | CJ108: 110 | CK108: 288 | CL108: 350 | CN108: 100 | CP108: 0 | CQ108: 300 | CS108: 400
A109: 2015-01-05 | B109: Jan 05 | C109: 2015-01-05 | D109: 01-Jan 05 | E109: 1 | F109: 5 | G109: 2015 | H109: 01:00:00 | I109: 303.5 | J109: 237.5 | K109: 103.3333333 | M109: 205.5028571 | N109: 220 | O109: 477 | P109: 314.5 | Q109: 152 | R109: 251.6666667 | S109: 228.6022222 | T109: 175.025 | U109: 350 | V109: 215.8562963 | W109: 183.34875 | X109: 178 | Y109: 351.2 | Z109: 255.8 | AA109: 244 | AB109: 231 | AC109: 70 | AD109: 90 | AE109: 150 | AK109: 195.44 | AL109: 234.07 | AM109: 200 | AO109: 100 | AP109: 241.68 | AQ109: 235.29 | AR109: 232.04 | AS109: 240 | AT109: 200 | AV109: 477 | AW109: 451 | AY109: 178 | BA109: 87 | BB109: 159 | BC109: 181 | BD109: 158 | BE109: 175 | BF109: 152 | BG109: 100 | BH109: 300 | BI109: 210 | BJ109: 400 | BK109: 300 | BL109: 200 | BM109: 200 | BN109: 200 | BO109: 660 | BP109: 123.7 | BQ109: 90.3 | BR109: 138.31 | BS109: 360 | BT109: 181.93 | BV109: 103.18 | BX109: 200 | BY109: 181.8 | BZ109: 200 | CB109: 169.5 | CE109: 200 | CF109: 300 | CG109: 0 | CJ109: 110 | CK109: 289 | CL109: 350 | CN109: 100 | CP109: 0 | CQ109: 300 | CS109: 400
A110: 2015-01-05 | B110: Jan 05 | C110: 2015-01-05 | D110: 01-Jan 05 | E110: 1 | F110: 5 | G110: 2015 | H110: 02:00:00 | I110: 280.8 | J110: 240 | K110: 93.33333333 | L110: 249 | M110: 212.9857143 | N110: 240 | O110: 481 | P110: 312.5 | Q110: 151.3333333 | R110: 258.3333333 | S110: 232.4222222 | T110: 170.9333333 | U110: 350 | V110: 219.3983051 | W110: 195.4422222 | X110: 183 | Y110: 305.9 | Z110: 255.7 | AA110: 240 | AB110: 240 | AC110: 70 | AD110: 90 | AE110: 120 | AF110: 221 | AG110: 291 | AH110: 256 | AI110: 236 | AJ110: 241 | AK110: 206.86 | AL110: 240.23 | AM110: 200 | AO110: 100 | AP110: 253.88 | AQ110: 255.08 | AR110: 234.85 | AS110: 250 | AT110: 230 | AV110: 481 | AW110: 447 | AY110: 178 | BA110: 72 | BB110: 166 | BC110: 185 | BD110: 162 | BE110: 174 | BF110: 149 | BG110: 100 | BH110: 300 | BI110: 250 | BJ110: 400 | BK110: 300 | BL110: 200 | BM110: 200 | BN110: 200 | BO110: 650 | BP110: 118.2 | BQ110: 91.3 | BR110: 137.61 | BS110: 390 | BT110: 205.96 | BV110: 98.73 | BX110: 200 | BY110: 177.8 | BZ110: 200 | CB110: 161.4 | CE110: 200 | CF110: 300 | CG110: 0 | CJ110: 100 | CK110: 282 | CL110: 330 | CN110: 100 | CP110: 0 | CQ110: 300 | CS110: 400
A111: 2015-01-05 | B111: Jan 05 | C111: 2015-01-05 | D111: 01-Jan 05 | E111: 1 | F111: 5 | G111: 2015 | H111: 03:00:00 | I111: 264.75 | J111: 216 | K111: 76.66666667 | L111: 268.8 | M111: 212.0757143 | N111: 245 | O111: 475 | P111: 317.5 | Q111: 152.8333333 | R111: 275 | S111: 251.1622222 | T111: 174.05 | U111: 350 | V111: 224.3405085 | W111: 208.1766667 | X111: 202 | Y111: 289.9 | Z111: 239.6 | AA111: 211 | AB111: 221 | AC111: 50 | AD111: 70 | AE111: 110 | AF111: 282 | AG111: 295 | AH111: 250 | AI111: 238 | AJ111: 279 | AK111: 209.58 | AL111: 232.26 | AM111: 200 | AO111: 100 | AP111: 254.52 | AQ111: 258.29 | AR111: 229.88 | AS111: 260 | AT111: 230 | AV111: 475 | AW111: 456 | AY111: 179 | BA111: 80 | BB111: 171 | BC111: 183 | BD111: 154 | BE111: 169 | BF111: 160 | BG111: 200 | BH111: 300 | BI111: 250 | BJ111: 400 | BK111: 300 | BL111: 200 | BM111: 200 | BN111: 300 | BO111: 650 | BP111: 118.6 | BQ111: 93.8 | BR111: 136.07 | BS111: 430 | BT111: 229.11 | BV111: 102.88 | BX111: 200 | BY111: 169.7 | BZ111: 200 | CB111: 153.9 | CE111: 200 | CF111: 300 | CG111: 0 | CJ111: 120 | CK111: 305 | CL111: 340 | CN111: 100 | CP111: 0 | CQ111: 300 | CS111: 400
A112: 2015-01-05 | B112: Jan 05 | C112: 2015-01-05 | D112: 01-Jan 05 | E112: 1 | F112: 5 | G112: 2015 | H112: 04:00:00 | I112: 250.65 | J112: 198 | K112: 73.33333333 | L112: 295.2 | M112: 209.9014286 | N112: 260 | O112: 493 | P112: 314.5 | Q112: 154.6666667 | R112: 290 | S112: 240.48 | T112: 170.6 | U112: 350 | V112: 224.9742105 | W112: 221.81125 | X112: 206 | Y112: 269.9 | Z112: 231.4 | AA112: 196 | AB112: 200 | AC112: 40 | AD112: 70 | AE112: 110 | AF112: 301 | AG112: 355 | AH112: 284 | AI112: 237 | AJ112: 299 | AK112: 198.62 | AL112: 218.77 | AM112: 200 | AO112: 100 | AP112: 259.72 | AQ112: 262.09 | AR112: 230.11 | AS112: 300 | AT112: 220 | AV112: 493 | AW112: 451 | AY112: 178 | BA112: 91 | BB112: 174 | BC112: 175 | BD112: 159 | BE112: 164 | BF112: 165 | BH112: 300 | BI112: 250 | BJ112: 400 | BK112: 300 | BL112: 200 | BM112: 100 | BN112: 300 | BO112: 650 | BP112: 125.1 | BQ112: 84.7 | BR112: 127.6 | BS112: 440 | BT112: 238.46 | BV112: 98.46 | BX112: 100 | BY112: 166 | BZ112: 200 | CB112: 148.6 | CE112: 200 | CF112: 300 | CG112: 0 | CK112: 322 | CL112: 340 | CN112: 100 | CP112: 0 | CQ112: 300 | CS112: 400
A113: 2015-01-05 | B113: Jan 05 | C113: 2015-01-05 | D113: 01-Jan 05 | E113: 1 | F113: 5 | G113: 2015 | H113: 05:00:00 | I113: 248.75 | J113: 184 | K113: 63.33333333 | L113: 293.6 | M113: 183.0585714 | N113: 400 | O113: 484 | P113: 321.5 | Q113: 160.6666667 | R113: 200 | S113: 255.88 | T113: 179.7833333 | U113: 400 | V113: 225.1153704 | W113: 260.5833333 | X113: 180 | Y113: 272.7 | Z113: 224.8 | AA113: 181 | AB113: 187 | AC113: 20 | AD113: 60 | AE113: 110 | AF113: 295 | AG113: 377 | AH113: 291 | AI113: 200 | AJ113: 305 | AK113: 190.16 | AL113: 183.03 | AM113: 100 | AO113: 100 | AP113: 241.71 | AQ113: 275.25 | AR113: 191.26 | AS113: 570 | AT113: 230 | AV113: 484 | AW113: 467 | AY113: 176 | BA113: 111 | BB113: 175 | BC113: 169 | BD113: 157 | BE113: 169 | BF113: 183 | BG113: 200 | BM113: 200 | BN113: 300 | BO113: 650 | BP113: 123.7 | BQ113: 95.3 | BR113: 128.22 | BS113: 460 | BT113: 251.87 | BV113: 93.83 | BX113: 100 | BY113: 182.4 | BZ113: 200 | CB113: 207 | CE113: 200 | CF113: 400 | CG113: 0 | CJ113: 110 | CK113: 318 | CL113: 340 | CN113: 100 | CP113: 0 | CQ113: 300 | CS113: 500
A114: 2015-01-05 | B114: Jan 05 | C114: 2015-01-05 | D114: 01-Jan 05 | E114: 1 | F114: 5 | G114: 2015 | H114: 06:00:00 | I114: 223.5 | J114: 173.5 | K114: 63.33333333 | L114: 215.2 | M114: 180.94 | N114: 410 | O114: 504 | P114: 361 | Q114: 168.3333333 | R114: 271.6666667 | S114: 256.9722222 | T114: 188.575 | U114: 350 | V114: 225.2242373 | W114: 270.9733333 | X114: 170 | Y114: 260.2 | Z114: 186.8 | AA114: 175 | AB114: 172 | AC114: 20 | AD114: 60 | AE114: 110 | AF114: 243 | AG114: 230 | AH114: 208 | AI114: 162 | AJ114: 233 | AK114: 161.57 | AL114: 173.57 | AM114: 100 | AO114: 100 | AP114: 254.52 | AQ114: 297.16 | AR114: 179.76 | AS114: 600 | AT114: 220 | AV114: 504 | AW114: 533 | AY114: 189 | BA114: 96 | BB114: 177 | BC114: 167 | BD114: 184 | BE114: 175 | BF114: 211 | BG114: 200 | BH114: 300 | BI114: 230 | BJ114: 400 | BK114: 300 | BL114: 200 | BM114: 100 | BN114: 300 | BO114: 680 | BP114: 146.6 | BQ114: 144.8 | BR114: 144.7 | BS114: 450 | BT114: 249.95 | BV114: 96.7 | BX114: 100 | BY114: 194.7 | BZ114: 200 | CB114: 236.2 | CE114: 200 | CF114: 400 | CG114: 0 | CJ114: 110 | CK114: 322 | CL114: 400 | CN114: 100 | CP114: 0 | CQ114: 300 | CS114: 400
A115: 2015-01-05 | B115: Jan 05 | C115: 2015-01-05 | D115: 01-Jan 05 | E115: 1 | F115: 5 | G115: 2015 | H115: 07:00:00 | I115: 228.75 | J115: 163.5 | K115: 63.33333333 | L115: 205.5 | M115: 186.9 | N115: 380 | O115: 534 | P115: 399 | Q115: 172.1666667 | R115: 326.6666667 | S115: 279.06 | T115: 197.5916667 | U115: 350 | V115: 238.342807 | W115: 304.9677778 | X115: 169 | Y115: 275.7 | Z115: 181.8 | AA115: 167 | AB115: 160 | AC115: 0 | AD115: 70 | AE115: 120 | AF115: 214 | AG115: 220 | AI115: 152 | AJ115: 236 | AL115: 177.65 | AM115: 100 | AO115: 100 | AP115: 244.33 | AQ115: 294.01 | AR115: 205.41 | AS115: 560 | AT115: 200 | AV115: 534 | AW115: 567 | AY115: 231 | BA115: 107 | BB115: 179 | BC115: 146 | BD115: 176 | BE115: 179 | BF115: 246 | BG115: 400 | BH115: 300 | BI115: 260 | BJ115: 400 | BK115: 300 | BL115: 300 | BM115: 200 | BN115: 300 | BO115: 680 | BP115: 164.9 | BQ115: 200.9 | BR115: 146.97 | BS115: 480 | BT115: 241.12 | BV115: 97.65 | BX115: 100 | BY115: 189.2 | BZ115: 200 | CB115: 268.9 | CE115: 200 | CF115: 400 | CG115: 0 | CJ115: 130 | CK115: 323 | CL115: 460 | CN115: 100 | CP115: 0 | CQ115: 300 | CS115: 400
A116: 2015-01-05 | B116: Jan 05 | C116: 2015-01-05 | D116: 01-Jan 05 | E116: 1 | F116: 5 | G116: 2015 | H116: 08:00:00 | I116: 219.35 | J116: 158.5 | K116: 60 | L116: 203.6 | M116: 171.3685714 | N116: 325 | O116: 575 | P116: 377.5 | Q116: 181.3333333 | R116: 275 | S116: 265.66 | T116: 201.4 | U116: 350 | V116: 226.7630508 | W116: 277.3744444 | X116: 161 | Y116: 266.8 | Z116: 171.9 | AA116: 161 | AB116: 156 | AC116: -10 | AD116: 60 | AE116: 130 | AF116: 221 | AG116: 258 | AH116: 176 | AI116: 151 | AJ116: 212 | AK116: 138.23 | AL116: 172.45 | AM116: 100 | AO116: 100 | AP116: 224.95 | AQ116: 270.37 | AR116: 193.58 | AS116: 470 | AT116: 180 | AV116: 575 | AW116: 549 | AY116: 206 | BA116: 131 | BB116: 182 | BC116: 144 | BD116: 192 | BE116: 192 | BF116: 247 | BG116: 200 | BH116: 300 | BI116: 250 | BJ116: 400 | BK116: 300 | BL116: 200 | BM116: 100 | BN116: 300 | BO116: 690 | BP116: 179.6 | BQ116: 176.5 | BR116: 157.79 | BS116: 470 | BT116: 218.77 | BV116: 98.28 | BX116: 100 | BY116: 201.9 | BZ116: 200 | CB116: 309.9 | CE116: 200 | CF116: 400 | CG116: 0 | CJ116: 120 | CK116: 345 | CL116: 440 | CN116: 100 | CP116: 0 | CQ116: 300 | CS116: 400
A117: 2015-01-05 | B117: Jan 05 | C117: 2015-01-05 | D117: 01-Jan 05 | E117: 1 | F117: 5 | G117: 2015 | H117: 09:00:00 | I117: 212.5 | J117: 156.5 | K117: 56.66666667 | L117: 185.75 | M117: 168.6442857 | N117: 315 | O117: 525 | Q117: 165.8333333 | R117: 268.3333333 | S117: 222.9 | T117: 172.2181818 | U117: 350 | V117: 202.7586792 | W117: 243.0075 | X117: 161 | Y117: 249 | Z117: 176 | AA117: 160 | AB117: 153 | AC117: -20 | AD117: 50 | AE117: 140 | AF117: 189 | AG117: 229 | AI117: 144 | AJ117: 181 | AK117: 143.05 | AL117: 170.7 | AM117: 200 | AO117: 0 | AP117: 232.5 | AQ117: 242.66 | AR117: 191.6 | AS117: 450 | AT117: 180 | AV117: 525 | BA117: 103 | BB117: 186 | BC117: 134 | BD117: 183 | BE117: 180 | BF117: 209 | BG117: 200 | BH117: 300 | BI117: 210 | BJ117: 400 | BK117: 300 | BL117: 200 | BN117: 300 | BP117: 167.6 | BQ117: 177.6 | BR117: 149.96 | BS117: 470 | BT117: 196.07 | BV117: 99.07 | BX117: 100 | BY117: 210.2 | BZ117: 200 | CB117: 294.2 | CE117: 200 | CF117: 400 | CG117: 0 | CJ117: 90 | CK117: 300 | CN117: 100 | CP117: 0 | CQ117: 300 | CS117: 400
A118: 2015-01-05 | B118: Jan 05 | C118: 2015-01-05 | D118: 01-Jan 05 | E118: 1 | F118: 5 | G118: 2015 | H118: 10:00:00 | I118: 200.85 | J118: 157 | K118: 63.33333333 | L118: 173.2 | M118: 175.6928571 | N118: 260 | O118: 494 | Q118: 153.1666667 | R118: 250 | S118: 199.1057143 | T118: 184.05 | U118: 300 | V118: 193.398 | W118: 226.6222222 | X118: 158 | Y118: 246.8 | Z118: 154.9 | AA118: 162 | AB118: 152 | AC118: -20 | AD118: 50 | AE118: 160 | AF118: 200 | AG118: 197 | AH118: 152 | AI118: 139 | AJ118: 178 | AK118: 165.26 | AL118: 171.52 | AM118: 200 | AO118: 0 | AP118: 265.08 | AQ118: 238 | AR118: 189.99 | AS118: 350 | AT118: 170 | AV118: 494 | BA118: 74 | BB118: 180 | BC118: 133 | BD118: 162 | BE118: 175 | BF118: 195 | BG118: 200 | BH118: 300 | BI118: 200 | BJ118: 300 | BK118: 300 | BL118: 200 | BN118: 200 | BP118: 151.2 | BQ118: 146.2 | BR118: 145.88 | BS118: 460 | BT118: 176.74 | BV118: 113.72 | BX118: 100 | BY118: 206.4 | BZ118: 200 | CB118: 295.2 | CE118: 200 | CF118: 400 | CG118: 0 | CJ118: 110 | CK118: 297 | CL118: 300 | CN118: 100 | CP118: 0 | CQ118: 200 | CS118: 400
A119: 2015-01-05 | B119: Jan 05 | C119: 2015-01-05 | D119: 01-Jan 05 | E119: 1 | F119: 5 | G119: 2015 | H119: 11:00:00 | I119: 198.85 | J119: 154.5 | K119: 56.66666667 | L119: 171 | M119: 173.8528571 | N119: 270 | O119: 470 | P119: 213 | Q119: 139.8 | R119: 248.3333333 | S119: 201.8514286 | T119: 193.975 | U119: 400 | V119: 194.4690741 | W119: 235.9855556 | X119: 162 | Y119: 240.3 | Z119: 157.4 | AA119: 160 | AB119: 149 | AC119: -20 | AD119: 50 | AE119: 140 | AF119: 182 | AG119: 212 | AH119: 147 | AI119: 141 | AJ119: 173 | AK119: 187.89 | AL119: 169.33 | AM119: 200 | AO119: 0 | AP119: 230.14 | AQ119: 238.27 | AR119: 191.34 | AS119: 380 | AT119: 160 | AV119: 470 | AY119: 213 | BA119: 68 | BB119: 173 | BC119: 132 | BD119: 161 | BE119: 165 | BG119: 200 | BH119: 300 | BI119: 190 | BJ119: 300 | BK119: 300 | BL119: 200 | BN119: 200 | BP119: 150.7 | BQ119: 150.2 | BR119: 146.81 | BS119: 460 | BT119: 163.19 | BV119: 142.06 | BX119: 100 | BY119: 196 | BZ119: 300 | CB119: 321.7 | CE119: 200 | CF119: 400 | CG119: 0 | CJ119: 100 | CK119: 300 | CL119: 310 | CN119: 100 | CP119: 0 | CS119: 400
A120: 2015-01-05 | B120: Jan 05 | C120: 2015-01-05 | D120: 01-Jan 05 | E120: 1 | F120: 5 | G120: 2015 | H120: 12:00:00 | I120: 194.5 | J120: 156 | K120: 66.66666667 | L120: 174 | M120: 170.4866667 | N120: 250 | O120: 492 | P120: 346.5 | Q120: 147.5 | R120: 248.3333333 | S120: 195.54625 | T120: 196.8333333 | U120: 250 | V120: 197.8998246 | W120: 241.5688889 | X120: 147 | Y120: 238 | Z120: 151 | AA120: 160 | AB120: 152 | AC120: -20 | AD120: 70 | AE120: 150 | AF120: 197 | AG120: 210 | AH120: 154 | AI120: 141 | AJ120: 168 | AK120: 182.19 | AL120: 164.56 | AO120: 0 | AP120: 236.75 | AQ120: 242.02 | AR120: 197.4 | AS120: 340 | AT120: 160 | AV120: 492 | AW120: 501 | AY120: 192 | BA120: 74 | BB120: 173 | BC120: 132 | BD120: 165 | BE120: 159 | BF120: 182 | BG120: 200 | BH120: 300 | BI120: 190 | BJ120: 300 | BK120: 300 | BL120: 200 | BM120: 100 | BN120: 200 | BP120: 174.3 | BQ120: 177 | BR120: 153.21 | BS120: 470 | BT120: 167.99 | BV120: 121.87 | BX120: 100 | BY120: 204.2 | BZ120: 300 | CB120: 345.8 | CE120: 200 | CF120: 400 | CG120: 0 | CJ120: 90 | CK120: 302 | CL120: 320 | CN120: 100 | CP120: 0 | CQ120: 100 | CS120: 400
A121: 2015-01-05 | B121: Jan 05 | C121: 2015-01-05 | D121: 01-Jan 05 | E121: 1 | F121: 5 | G121: 2015 | H121: 13:00:00 | I121: 194.75 | J121: 155 | K121: 56.66666667 | L121: 159.2 | M121: 175.3385714 | N121: 245 | P121: 347 | Q121: 153.8 | R121: 268.3333333 | S121: 194.35 | T121: 189.45 | U121: 200 | V121: 190.6194545 | W121: 237.8355556 | X121: 141 | Y121: 236.1 | Z121: 153.4 | AA121: 164 | AB121: 146 | AC121: -20 | AD121: 60 | AE121: 130 | AF121: 181 | AG121: 176 | AH121: 131 | AI121: 134 | AJ121: 174 | AK121: 178.53 | AL121: 165.86 | AM121: 200 | AO121: 0 | AP121: 252.33 | AQ121: 245.82 | AR121: 184.83 | AS121: 330 | AT121: 160 | AW121: 514 | AY121: 180 | BA121: 80 | BB121: 166 | BC121: 172 | BD121: 163 | BF121: 188 | BG121: 200 | BH121: 400 | BI121: 210 | BJ121: 300 | BK121: 300 | BL121: 200 | BM121: 100 | BN121: 200 | BP121: 171.2 | BQ121: 173.8 | BR121: 156.53 | BS121: 460 | BT121: 175.95 | BV121: 117.32 | BX121: 0 | BY121: 203.7 | BZ121: 300 | CB121: 370.7 | CE121: 200 | CF121: 400 | CG121: 0 | CJ121: 90 | CK121: 299 | CL121: 310 | CN121: 100 | CP121: 0 | CQ121: 200
A122: 2015-01-05 | B122: Jan 05 | C122: 2015-01-05 | D122: 01-Jan 05 | E122: 1 | F122: 5 | G122: 2015 | H122: 14:00:00 | I122: 190 | J122: 156 | K122: 70 | L122: 167.2 | M122: 183.0342857 | N122: 290 | P122: 357.5 | Q122: 179.5 | R122: 270 | S122: 213.1075 | T122: 192.6583333 | U122: 200 | V122: 201.2777778 | W122: 257.66 | X122: 146 | Y122: 243.5 | Z122: 136.5 | AA122: 164 | AB122: 148 | AC122: -20 | AD122: 90 | AE122: 140 | AF122: 209 | AG122: 190 | AH122: 140 | AI122: 131 | AJ122: 166 | AK122: 189.66 | AL122: 168 | AM122: 200 | AO122: 0 | AP122: 245.92 | AQ122: 257.34 | AR122: 220.32 | AS122: 420 | AT122: 160 | AW122: 522 | AY122: 193 | BB122: 165 | BC122: 174 | BD122: 168 | BF122: 211 | BG122: 200 | BH122: 400 | BI122: 220 | BJ122: 300 | BK122: 300 | BL122: 200 | BM122: 100 | BN122: 300 | BP122: 180.1 | BQ122: 197.6 | BR122: 157.26 | BS122: 470 | BT122: 177.59 | BV122: 122.31 | BX122: 0 | BY122: 200 | BZ122: 300 | CB122: 385.9 | CE122: 200 | CF122: 400 | CG122: 0 | CJ122: 100 | CK122: 306 | CL122: 320 | CN122: 100 | CP122: 0 | CQ122: 200
A123: 2015-01-05 | B123: Jan 05 | C123: 2015-01-05 | D123: 01-Jan 05 | E123: 1 | F123: 5 | G123: 2015 | H123: 15:00:00 | I123: 192.4 | J123: 154.5 | K123: 86.66666667 | L123: 179.2 | M123: 187.0766667 | N123: 335 | P123: 363.5 | Q123: 167.5 | R123: 305 | S123: 208.69125 | T123: 203.275 | U123: 150 | V123: 207.3766071 | W123: 296.6333333 | X123: 144 | Y123: 253 | Z123: 131.8 | AA123: 163 | AB123: 146 | AC123: -20 | AD123: 80 | AE123: 200 | AF123: 199 | AG123: 238 | AH123: 151 | AI123: 129 | AJ123: 179 | AK123: 176.53 | AL123: 171.04 | AM123: 200 | AO123: 0 | AQ123: 258.7 | AR123: 316.19 | AS123: 500 | AT123: 170 | AW123: 530 | AY123: 197 | BA123: 103 | BB123: 167 | BC123: 171 | BD123: 176 | BE123: 160 | BF123: 228 | BG123: 300 | BH123: 400 | BI123: 230 | BJ123: 400 | BK123: 300 | BL123: 200 | BM123: 100 | BN123: 200 | BP123: 190.9 | BQ123: 215.9 | BR123: 159.36 | BS123: 490 | BT123: 183.79 | BV123: 129.58 | BX123: 0 | BY123: 211.1 | BZ123: 300 | CB123: 470.2 | CE123: 200 | CF123: 400 | CG123: 0 | CJ123: 120 | CK123: 318 | CL123: 320 | CN123: 100 | CP123: 0 | CQ123: 200 | CS123: 100
A124: 2015-01-05 | B124: Jan 05 | C124: 2015-01-05 | D124: 01-Jan 05 | E124: 1 | F124: 5 | G124: 2015 | H124: 16:00:00 | I124: 197.6 | J124: 153 | K124: 83.33333333 | L124: 183 | M124: 175.805 | N124: 370 | P124: 410 | Q124: 169.6666667 | R124: 271.6666667 | S124: 229.29625 | T124: 206.1166667 | U124: 150 | V124: 209.5857143 | W124: 294.0055556 | X124: 132 | Y124: 253.5 | Z124: 141.7 | AA124: 158 | AB124: 148 | AC124: -20 | AD124: 90 | AE124: 180 | AF124: 208 | AG124: 190 | AH124: 165 | AI124: 145 | AJ124: 207 | AK124: 158.39 | AL124: 169.66 | AM124: 200 | AO124: 0 | AQ124: 251.95 | AR124: 274.83 | AS124: 570 | AT124: 170 | AW124: 591 | AY124: 229 | BA124: 109 | BB124: 165 | BC124: 162 | BD124: 168 | BE124: 169 | BF124: 245 | BG124: 200 | BH124: 400 | BI124: 230 | BJ124: 400 | BK124: 200 | BL124: 200 | BM124: 100 | BN124: 300 | BP124: 210.4 | BQ124: 272 | BR124: 167.1 | BS124: 480 | BT124: 187.77 | BV124: 117.1 | BX124: 0 | BY124: 213.7 | BZ124: 300 | CB124: 443.7 | CE124: 200 | CF124: 400 | CG124: 0 | CJ124: 140 | CK124: 336 | CL124: 340 | CN124: 100 | CP124: 0 | CQ124: 200 | CS124: 100
A125: 2015-01-05 | B125: Jan 05 | C125: 2015-01-05 | D125: 01-Jan 05 | E125: 1 | F125: 5 | G125: 2015 | H125: 17:00:00 | I125: 195.9 | J125: 153.5 | K125: 90 | L125: 171.8 | M125: 172.5066667 | N125: 370 | P125: 409.5 | Q125: 174 | R125: 273.3333333 | S125: 238.88875 | T125: 205.325 | U125: 150 | V125: 210.3723214 | W125: 297.85 | X125: 126 | Y125: 244.9 | Z125: 146.9 | AA125: 158 | AB125: 149 | AC125: -20 | AD125: 110 | AE125: 180 | AF125: 190 | AG125: 200 | AH125: 148 | AI125: 136 | AJ125: 185 | AK125: 156.92 | AL125: 178.71 | AM125: 200 | AO125: 0 | AQ125: 239.35 | AR125: 260.06 | AS125: 560 | AT125: 180 | AW125: 637 | AY125: 182 | BA125: 127 | BB125: 164 | BC125: 165 | BD125: 169 | BE125: 178 | BF125: 241 | BG125: 300 | BH125: 400 | BI125: 240 | BJ125: 300 | BK125: 200 | BL125: 200 | BM125: 100 | BN125: 300 | BP125: 214.8 | BQ125: 252.9 | BR125: 168.3 | BS125: 540 | BT125: 212.36 | BV125: 122.75 | BX125: 0 | BY125: 220.3 | BZ125: 300 | CB125: 424.6 | CE125: 200 | CF125: 400 | CG125: 0 | CJ125: 160 | CK125: 339 | CL125: 320 | CN125: 100 | CP125: 0 | CQ125: 200 | CS125: 100
A126: 2015-01-05 | B126: Jan 05 | C126: 2015-01-05 | D126: 01-Jan 05 | E126: 1 | F126: 5 | G126: 2015 | H126: 18:00:00 | I126: 187.9 | J126: 154 | K126: 76.66666667 | L126: 160.6 | M126: 154.3942857 | N126: 305 | P126: 389.5 | Q126: 174.1666667 | R126: 290 | S126: 227.93 | T126: 283.1727273 | U126: 150 | V126: 218.0339286 | W126: 264.75125 | X126: 150 | Y126: 236.7 | Z126: 139.1 | AA126: 158 | AB126: 150 | AC126: -20 | AD126: 110 | AE126: 140 | AF126: 179 | AG126: 176 | AH126: 145 | AI126: 139 | AJ126: 164 | AK126: 152.54 | AL126: 166.91 | AM126: 100 | AO126: 0 | AP126: 248.84 | AQ126: 226.11 | AR126: 186.36 | AS126: 440 | AT126: 170 | AW126: 602 | AY126: 177 | BA126: 104 | BB126: 170 | BC126: 162 | BD126: 177 | BE126: 191 | BF126: 241 | BG126: 300 | BH126: 400 | BI126: 240 | BJ126: 300 | BK126: 300 | BL126: 200 | BM126: 100 | BN126: 300 | BP126: 202.4 | BQ126: 200.9 | BR126: 157.41 | BS126: 540 | BT126: 196.05 | BV126: 126.68 | BX126: 0 | BY126: 207.3 | BZ126: 300 | CB126: 395.6 | CE126: 200 | CF126: 500 | CG126: 0 | CJ126: 140 | CK126: 1272 | CN126: 100 | CP126: 0 | CQ126: 200 | CS126: 100
A127: 2015-01-05 | B127: Jan 05 | C127: 2015-01-05 | D127: 01-Jan 05 | E127: 1 | F127: 5 | G127: 2015 | H127: 19:00:00 | I127: 191.95 | J127: 156 | K127: 60 | L127: 155.8 | M127: 159.6233333 | N127: 255 | P127: 393 | Q127: 161.8333333 | R127: 251.6666667 | S127: 222.68375 | T127: 191.1545455 | U127: 150 | V127: 192.2510909 | W127: 241.92 | X127: 150 | Y127: 240.3 | Z127: 143.6 | AA127: 162 | AB127: 150 | AC127: -20 | AD127: 50 | AE127: 150 | AF127: 182 | AG127: 162 | AH127: 150 | AI127: 128 | AJ127: 157 | AL127: 168.71 | AM127: 100 | AO127: 0 | AP127: 236.68 | AQ127: 246.66 | AR127: 205.69 | AS127: 340 | AT127: 170 | AW127: 611 | AY127: 175 | BA127: 109 | BB127: 170 | BC127: 145 | BD127: 176 | BE127: 157 | BF127: 214 | BG127: 200 | BH127: 400 | BI127: 210 | BJ127: 300 | BK127: 200 | BL127: 200 | BM127: 0 | BN127: 400 | BP127: 200.6 | BQ127: 183.1 | BR127: 155.17 | BS127: 530 | BT127: 177.35 | BV127: 135.25 | BX127: 0 | BY127: 197.7 | BZ127: 300 | CB127: 427 | CE127: 200 | CF127: 400 | CG127: 0 | CJ127: 90 | CK127: 388 | CN127: 100 | CP127: 0 | CQ127: 200 | CS127: 100
A128: 2015-01-05 | B128: Jan 05 | C128: 2015-01-05 | D128: 01-Jan 05 | E128: 1 | F128: 5 | G128: 2015 | H128: 20:00:00 | I128: 179 | J128: 155.5 | K128: 56.66666667 | L128: 156.4 | M128: 147.1833333 | N128: 245 | P128: 393.5 | Q128: 166.8333333 | R128: 255 | S128: 223.4025 | T128: 198.4166667 | U128: 150 | V128: 192.5057143 | W128: 250.0455556 | X128: 142 | Y128: 234 | Z128: 124 | AA128: 163 | AB128: 148 | AC128: -20 | AD128: 50 | AE128: 140 | AF128: 168 | AG128: 172 | AH128: 160 | AI128: 134 | AJ128: 148 | AK128: 152.23 | AM128: 100 | AO128: 0 | AP128: 232.82 | AQ128: 212.11 | AR128: 185.94 | AS128: 320 | AT128: 170 | AW128: 614 | AY128: 173 | BA128: 121 | BB128: 169 | BC128: 146 | BD128: 185 | BE128: 158 | BF128: 222 | BG128: 200 | BH128: 400 | BI128: 230 | BJ128: 300 | BK128: 200 | BL128: 200 | BM128: 0 | BN128: 300 | BP128: 241.4 | BQ128: 199.1 | BR128: 166.29 | BS128: 580 | BT128: 175.55 | BV128: 124.88 | BX128: 0 | BY128: 202.2 | BZ128: 300 | CB128: 440.8 | CE128: 200 | CF128: 400 | CG128: 0 | CJ128: 80 | CK128: 378 | CL128: 280 | CN128: 100 | CP128: 0 | CQ128: 200 | CS128: 100
A129: 2015-01-05 | B129: Jan 05 | C129: 2015-01-05 | D129: 01-Jan 05 | E129: 1 | F129: 5 | G129: 2015 | H129: 21:00:00 | I129: 180.2 | J129: 153 | K129: 56.66666667 | L129: 152.8 | M129: 128.7842857 | N129: 260 | P129: 386 | Q129: 164.3333333 | R129: 235 | S129: 252.2325 | T129: 192.8666667 | U129: 150 | V129: 189.8622807 | W129: 248.3144444 | X129: 142 | Y129: 233 | Z129: 127.4 | AA129: 159 | AB129: 147 | AC129: -20 | AD129: 60 | AE129: 130 | AF129: 167 | AG129: 175 | AH129: 141 | AI129: 135 | AJ129: 146 | AK129: 153.54 | AL129: 185.57 | AM129: 100 | AO129: -100 | AP129: 219.11 | AQ129: 192.13 | AR129: 151.14 | AS129: 350 | AT129: 170 | AW129: 601 | AY129: 171 | BA129: 120 | BB129: 173 | BC129: 141 | BD129: 186 | BE129: 160 | BF129: 206 | BG129: 200 | BH129: 400 | BI129: 210 | BJ129: 200 | BK129: 200 | BL129: 200 | BM129: 100 | BN129: 500 | BP129: 220.5 | BQ129: 189.1 | BR129: 171.24 | BS129: 540 | BT129: 180.63 | BV129: 116.39 | BX129: 0 | BY129: 211.3 | BZ129: 300 | CB129: 442.1 | CE129: 200 | CF129: 400 | CG129: 0 | CJ129: 70 | CK129: 311 | CL129: 280 | CN129: 100 | CP129: 0 | CQ129: 200 | CS129: 100
A130: 2015-01-05 | B130: Jan 05 | C130: 2015-01-05 | D130: 01-Jan 05 | E130: 1 | F130: 5 | G130: 2015 | H130: 22:00:00 | I130: 189.85 | J130: 152.5 | K130: 53.33333333 | L130: 157 | M130: 182.2 | N130: 295 | P130: 394 | Q130: 162.8333333 | R130: 286.6666667 | S130: 239.97875 | T130: 185.4916667 | U130: 150 | V130: 201.8307547 | W130: 273.45 | X130: 152 | Y130: 244.4 | Z130: 135.3 | AA130: 158 | AB130: 147 | AC130: -20 | AD130: 50 | AE130: 130 | AF130: 168 | AG130: 182 | AH130: 146 | AI130: 137 | AJ130: 152 | AK130: 153.78 | AL130: 163.28 | AP130: 229.54 | AS130: 410 | AT130: 180 | AW130: 578 | AY130: 210 | BA130: 109 | BB130: 171 | BC130: 144 | BD130: 182 | BE130: 156 | BF130: 215 | BG130: 300 | BH130: 400 | BI130: 220 | BJ130: 300 | BK130: 200 | BL130: 300 | BM130: 100 | BN130: 300 | BP130: 275.8 | BQ130: 167.1 | BR130: 165.05 | BS130: 600 | BT130: 197.85 | BV130: 114.03 | BX130: 0 | BY130: 201.2 | BZ130: 300 | CB130: 350.7 | CE130: 200 | CF130: 400 | CG130: 0 | CJ130: 60 | CK130: 294 | CL130: 320 | CN130: 100 | CP130: 0 | CQ130: 200 | CS130: 100
A131: 2015-01-05 | B131: Jan 05 | C131: 2015-01-05 | D131: 01-Jan 05 | E131: 1 | F131: 5 | G131: 2015 | H131: 23:00:00 | I131: 183.7 | J131: 153 | K131: 46.66666667 | L131: 155.8 | M131: 126.468 | N131: 200 | P131: 372.5 | Q131: 161.6 | R131: 251.6666667 | S131: 212.21625 | T131: 185.8166667 | U131: 150 | V131: 183.6161111 | W131: 242.2714286 | X131: 156 | Y131: 228.9 | Z131: 138.5 | AA131: 158 | AB131: 148 | AC131: -20 | AD131: 40 | AE131: 120 | AF131: 179 | AG131: 160 | AH131: 149 | AI131: 130 | AJ131: 161 | AK131: 154.76 | AL131: 156.3 | AO131: -100 | AP131: 230.94 | AR131: 190.34 | AS131: 280 | AT131: 120 | AW131: 557 | AY131: 188 | BA131: 110 | BB131: 145 | BC131: 144 | BE131: 163 | BF131: 246 | BG131: 300 | BH131: 400 | BI131: 210 | BJ131: 200 | BK131: 200 | BL131: 200 | BM131: 100 | BN131: 200 | BP131: 265.6 | BQ131: 130.9 | BR131: 156.47 | BS131: 550 | BT131: 179.4 | BV131: 115.36 | BX131: 0 | BY131: 204.4 | BZ131: 300 | CB131: 309.4 | CE131: 200 | CF131: 400 | CG131: 0 | CJ131: 60 | CK131: 306 | CL131: 250 | CN131: 200 | CP131: 0 | CQ131: 200 | CS131: 100
A132: 2015-01-06 | B132: Jan 06 | C132: 2015-01-06 | D132: 01-Jan 06 | E132: 1 | F132: 6 | G132: 2015 | H132: 00:00:00 | I132: 181.8 | J132: 152.5 | L132: 162.4 | M132: 137.2514286 | N132: 195 | P132: 372 | Q132: 162.6666667 | R132: 235 | S132: 212.42375 | T132: 151 | U132: 150 | V132: 182.1298077 | W132: 207.13375 | X132: 146 | Y132: 232.3 | Z132: 131.3 | AA132: 158 | AB132: 147 | AF132: 172 | AG132: 183 | AH132: 157 | AI132: 136 | AJ132: 164 | AK132: 154.39 | AL132: 161.26 | AM132: 100 | AO132: 0 | AP132: 209.65 | AQ132: 172.27 | AR132: 163.19 | AS132: 230 | AT132: 160 | AW132: 541 | AY132: 203 | BA132: 100 | BB132: 139 | BC132: 161 | BD132: 192 | BE132: 167 | BF132: 217 | BG132: 300 | BH132: 400 | BI132: 210 | BJ132: 200 | BK132: 100 | BL132: 200 | BM132: 100 | BN132: 300 | BP132: 208.4 | BQ132: 121.4 | BR132: 156.21 | BS132: 550 | BT132: 159.23 | BV132: 104.15 | BX132: 0 | BZ132: 200 | CE132: 200 | CF132: 400 | CG132: 0 | CJ132: 70 | CK132: 290 | CL132: 250 | CN132: 100 | CP132: 0 | CQ132: 200 | CS132: 100
A133: 2015-01-06 | B133: Jan 06 | C133: 2015-01-06 | D133: 01-Jan 06 | E133: 1 | F133: 6 | G133: 2015 | H133: 01:00:00 | I133: 195.9 | J133: 152 | K133: 66.66666667 | M133: 117.8157143 | N133: 195 | P133: 355 | Q133: 157 | R133: 218.3333333 | S133: 201.2275 | T133: 191.8181818 | U133: 150 | V133: 178.2809804 | W133: 198.9325 | X133: 148 | Y133: 252.9 | Z133: 138.9 | AA133: 160 | AB133: 144 | AC133: 40 | AD133: 40 | AE133: 120 | AK133: 146.4 | AL133: 165.19 | AM133: 100 | AO133: -100 | AP133: 203.77 | AQ133: 159.56 | AR133: 149.79 | AS133: 240 | AT133: 150 | AW133: 522 | AY133: 188 | BA133: 94 | BB133: 140 | BC133: 130 | BD133: 208 | BE133: 170 | BF133: 200 | BG133: 200 | BH133: 400 | BI133: 210 | BJ133: 200 | BK133: 100 | BL133: 200 | BM133: 100 | BN133: 200 | BP133: 214.5 | BQ133: 116.2 | BR133: 158.75 | BS133: 560 | BT133: 150.9 | BV133: 109.47 | BX133: 0 | BY133: 198.8 | BZ133: 300 | CB133: 183.2 | CE133: 200 | CF133: 400 | CG133: 0 | CJ133: 70 | CK133: 288 | CL133: 270 | CN133: 200 | CQ133: 200 | CS133: 100
A134: 2015-01-06 | B134: Jan 06 | C134: 2015-01-06 | D134: 01-Jan 06 | E134: 1 | F134: 6 | G134: 2015 | H134: 02:00:00 | I134: 221.6 | K134: 76.66666667 | L134: 160.8 | M134: 118.5571429 | N134: 175 | P134: 353 | Q134: 154.1666667 | R134: 236.6666667 | S134: 218.40375 | T134: 169.5 | U134: 150 | V134: 178.145 | W134: 181.5777778 | X134: 132 | Y134: 309.8 | Z134: 133.4 | AC134: 40 | AD134: 70 | AE134: 120 | AF134: 157 | AG134: 181 | AH134: 183 | AI134: 137 | AJ134: 146 | AK134: 150.15 | AL134: 171.72 | AM134: 100 | AO134: -100 | AP134: 203.5 | AQ134: 159.9 | AR134: 144.63 | AS134: 200 | AT134: 150 | AW134: 512 | AY134: 194 | BA134: 93 | BB134: 142 | BC134: 134 | BD134: 178 | BE134: 172 | BF134: 206 | BG134: 200 | BH134: 400 | BI134: 220 | BJ134: 200 | BK134: 100 | BL134: 300 | BM134: 100 | BN134: 300 | BP134: 187.4 | BQ134: 121.7 | BR134: 164.89 | BS134: 610 | BT134: 151.01 | BV134: 112.23 | BX134: 0 | BY134: 194.3 | BZ134: 200 | CB134: 166.2 | CE134: 200 | CF134: 400 | CG134: 0 | CJ134: 70 | CK134: 294 | CL134: 240 | CN134: 100 | CQ134: 200 | CS134: 100
A135: 2015-01-06 | B135: Jan 06 | C135: 2015-01-06 | D135: 01-Jan 06 | E135: 1 | F135: 6 | G135: 2015 | H135: 03:00:00 | I135: 230.75 | J135: 151 | K135: 70 | L135: 155.4 | M135: 128.0271429 | N135: 185 | P135: 352 | Q135: 155.1666667 | R135: 221.6666667 | S135: 215.62625 | T135: 171.3545455 | U135: 250 | V135: 180.2071429 | W135: 184.9322222 | X135: 136 | Y135: 322.7 | Z135: 138.8 | AA135: 163 | AB135: 139 | AC135: 30 | AD135: 50 | AE135: 130 | AF135: 157 | AG135: 166 | AH135: 175 | AI135: 129 | AJ135: 150 | AK135: 156.87 | AL135: 187.24 | AM135: 100 | AO135: -100 | AP135: 211.2 | AQ135: 171.79 | AR135: 169.09 | AS135: 210 | AT135: 160 | AW135: 500 | AY135: 204 | BA135: 90 | BB135: 146 | BC135: 139 | BD135: 182 | BE135: 170 | BF135: 204 | BG135: 200 | BH135: 400 | BI135: 230 | BJ135: 200 | BK135: 100 | BL135: 200 | BM135: 100 | BN135: 300 | BP135: 185.6 | BQ135: 126.2 | BR135: 166.79 | BS135: 580 | BT135: 157.29 | BV135: 109.13 | BX135: 0 | BY135: 191.1 | BZ135: 200 | CB135: 162.8 | CE135: 200 | CF135: 400 | CG135: 0 | CJ135: 70 | CK135: 301 | CL135: 260 | CN135: 100 | CQ135: 300 | CS135: 200
A136: 2015-01-06 | B136: Jan 06 | C136: 2015-01-06 | D136: 01-Jan 06 | E136: 1 | F136: 6 | G136: 2015 | H136: 04:00:00 | I136: 195.8 | J136: 161.5 | K136: 66.66666667 | L136: 159 | M136: 151.1028571 | N136: 255 | P136: 352 | Q136: 169.5 | R136: 223.3333333 | S136: 252.97 | T136: 188.38 | U136: 150 | V136: 191.7432727 | W136: 204.3411111 | X136: 132 | Y136: 250.4 | Z136: 141.2 | AA136: 167 | AB136: 156 | AC136: 20 | AD136: 40 | AE136: 140 | AF136: 165 | AG136: 177 | AH136: 172 | AI136: 133 | AJ136: 148 | AK136: 157.21 | AL136: 213.74 | AM136: 100 | AO136: 0 | AP136: 208.33 | AQ136: 194.37 | AR136: 184.07 | AS136: 350 | AT136: 160 | AW136: 510 | AY136: 194 | BA136: 127 | BB136: 141 | BC136: 144 | BD136: 228 | BE136: 165 | BF136: 212 | BG136: 100 | BH136: 400 | BI136: 240 | BJ136: 300 | BK136: 100 | BL136: 200 | BM136: 100 | BN136: 500 | BP136: 200.9 | BQ136: 135.3 | BR136: 175.56 | BS136: 640 | BT136: 174.33 | BV136: 97.67 | BX136: 0 | BY136: 213.3 | BZ136: 200 | CB136: 163.5 | CE136: 200 | CF136: 400 | CG136: 0 | CK136: 317 | CL136: 290 | CN136: 100 | CQ136: 200 | CS136: 100
A137: 2015-01-06 | B137: Jan 06 | C137: 2015-01-06 | D137: 01-Jan 06 | E137: 1 | F137: 6 | G137: 2015 | H137: 05:00:00 | I137: 213 | J137: 161.5 | K137: 86.66666667 | L137: 186.4 | M137: 169.1642857 | N137: 355 | P137: 363.5 | Q137: 160.5 | R137: 226.6666667 | S137: 218.6157143 | T137: 205.0272727 | U137: 200 | V137: 201.2865455 | W137: 264.4411111 | X137: 138 | Y137: 278.6 | Z137: 147.4 | AA137: 161 | AB137: 162 | AC137: 20 | AD137: 50 | AE137: 190 | AF137: 190 | AG137: 288 | AH137: 166 | AI137: 134 | AJ137: 154 | AK137: 162.57 | AL137: 183.86 | AM137: 100 | AO137: 0 | AP137: 235.05 | AQ137: 305.17 | AR137: 197.5 | AS137: 540 | AT137: 170 | AW137: 522 | AY137: 205 | BA137: 100 | BB137: 135 | BC137: 138 | BD137: 200 | BE137: 173 | BF137: 217 | BG137: 100 | BH137: 400 | BI137: 260 | BJ137: 300 | BK137: 100 | BL137: 200 | BM137: 100 | BP137: 210.1 | BQ137: 155.5 | BR137: 177.67 | BS137: 610 | BT137: 181.26 | BV137: 95.78 | BX137: 0 | BY137: 222.1 | BZ137: 200 | CB137: 181.2 | CE137: 300 | CF137: 400 | CG137: 0 | CJ137: 100 | CK137: 352 | CL137: 400 | CN137: 100 | CQ137: 200 | CS137: 200
A138: 2015-01-06 | B138: Jan 06 | C138: 2015-01-06 | D138: 01-Jan 06 | E138: 1 | F138: 6 | G138: 2015 | H138: 06:00:00 | I138: 224.75 | J138: 165 | K138: 96.66666667 | L138: 213.4 | M138: 216.7771429 | N138: 420 | P138: 400.5 | Q138: 191.5 | R138: 323.3333333 | S138: 226.97875 | T138: 232.8454545 | U138: 250 | V138: 236.8048214 | W138: 346.0688889 | X138: 139 | Y138: 298.7 | Z138: 150.8 | AA138: 160 | AB138: 170 | AC138: 0 | AD138: 60 | AE138: 230 | AF138: 212 | AG138: 352 | AH138: 193 | AI138: 139 | AJ138: 171 | AK138: 175.99 | AL138: 208.71 | AM138: 200 | AO138: 0 | AP138: 283.2 | AQ138: 407.02 | AR138: 242.52 | AS138: 660 | AT138: 180 | AW138: 570 | AY138: 231 | BA138: 113 | BB138: 134 | BC138: 144 | BD138: 316 | BE138: 184 | BF138: 258 | BG138: 300 | BH138: 400 | BI138: 240 | BJ138: 500 | BK138: 200 | BL138: 300 | BM138: 100 | BN138: 200 | BP138: 223.2 | BQ138: 210.9 | BR138: 195.12 | BS138: 580 | BT138: 209.39 | BV138: 97.22 | BX138: 0 | BY138: 278.8 | BZ138: 300 | CB138: 205.5 | CE138: 300 | CF138: 400 | CG138: 0 | CJ138: 120 | CK138: 417 | CL138: 440 | CN138: 100 | CQ138: 300 | CS138: 200
A139: 2015-01-06 | B139: Jan 06 | C139: 2015-01-06 | D139: 01-Jan 06 | E139: 1 | F139: 6 | G139: 2015 | H139: 07:00:00 | I139: 258.4 | J139: 172 | K139: 126.6666667 | L139: 245.4 | M139: 248.9333333 | N139: 380 | P139: 432 | Q139: 193.1666667 | R139: 356.6666667 | S139: 251.3314286 | T139: 240.7090909 | U139: 300 | V139: 257.2503704 | W139: 367.7311111 | X139: 152 | Y139: 359.2 | Z139: 157.6 | AA139: 166 | AB139: 178 | AC139: 0 | AD139: 90 | AE139: 290 | AF139: 233 | AG139: 460 | AH139: 187 | AI139: 146 | AJ139: 201 | AL139: 253.59 | AM139: 200 | AO139: 0 | AP139: 281.79 | AQ139: 473.88 | AR139: 284.34 | AS139: 570 | AT139: 190 | AW139: 587 | AY139: 277 | BA139: 117 | BB139: 135 | BC139: 128 | BD139: 303 | BE139: 178 | BF139: 298 | BG139: 300 | BH139: 400 | BI139: 240 | BJ139: 600 | BK139: 300 | BL139: 300 | BM139: 200 | BN139: 100 | BP139: 215.7 | BQ139: 321.3 | BR139: 227.48 | BS139: 600 | BV139: 94.84 | BX139: 0 | BY139: 256.1 | BZ139: 300 | CB139: 225.7 | CE139: 300 | CF139: 400 | CG139: 0 | CJ139: 130 | CK139: 496 | CL139: 440 | CN139: 100 | CQ139: 300 | CS139: 300
A140: 2015-01-06 | B140: Jan 06 | C140: 2015-01-06 | D140: 01-Jan 06 | E140: 1 | F140: 6 | G140: 2015 | H140: 08:00:00 | I140: =IF(COUNT(Y140:Z140)=0,"",AVERAGE(Y140:Z140)) -> 262.35 | J140: 178 | K140: 193.3333333 | L140: 202.25 | M140: 227.3533333 | N140: 440 | P140: 450.5 | Q140: 206 | R140: 368.3333333 | S140: 340.0425 | T140: =IF(COUNT(BX140:CP140)=0,"",AVERAGE(BX140:CP140)) -> 261.3181818 | U140: 300 | V140: =IF(COUNT(Y140:CS140)=0,"",AVERAGE(Y140:CS140)) -> 278.8085185 | W140: 362.6025 | X140: 135 | Y140: 372.9 | Z140: 151.8 | AA140: 177 | AB140: 179 | AC140: 10 | AD140: 130 | AE140: 440 | AF140: 232 | AH140: 236 | AI140: 150 | AJ140: 191 | AK140: 193.68 | AL140: 231.54 | AM140: 200 | AO140: 0 | AQ140: 448.02 | AR140: 290.88 | AS140: 690 | AT140: 190 | AW140: 605 | AY140: 296 | BA140: 151 | BB140: 141 | BC140: 139 | BD140: 284 | BE140: 186 | BF140: 335 | BG140: 200 | BH140: 500 | BI140: 310 | BJ140: 700 | BK140: 200 | BL140: 300 | BM140: 200 | BN140: 200 | BO140: 770 | BP140: 246.1 | BQ140: 322.5 | BR140: 256.39 | BS140: 630 | BV140: 95.35 | BX140: 100 | BY140: 279.3 | BZ140: 300 | CB140: 250.2 | CE140: 400 | CF140: 400 | CG140: 0 | CJ140: 170 | CK140: 415 | CL140: 460 | CN140: 100 | CQ140: 300 | CS140: 300
A141: 2015-01-06 | B141: Jan 06 | C141: =DATE(G141,E141,F141) -> 2015-01-06 | D141: =TEXT(E141,"00")&"-"&TEXT(C141,"MMM")&" "&TEXT(F141,"00") -> 01-Jan 06 | E141: 1 | F141: 6 | G141: 2015 | H141: 09:00:00 | I141: 251.55 | J141: =IF(COUNT(AA141:AB141)=0,"",AVERAGE(AA141:AB141)) -> 173.5 | K141: =IF(COUNT(AC141:AE141)=0,"",AVERAGE(AC141:AE141)) -> 183.3333333 | L141: =IF(COUNT(AF141:AJ141)=0,"",AVERAGE(AF141:AJ141)) -> 214.3333333 | M141: =IF(COUNT(AK141:AR141)=0,"",AVERAGE(AK141:AR141)) -> 212.776 | N141: =IF(COUNT(AS141:AT141)=0,"",AVERAGE(AS141:AT141)) -> 410 | O141: =IF(COUNT(AU141:AV141)=0,"",AVERAGE(AU141:AV141)) ->  | P141: =IF(COUNT(AW141:AZ141)=0,"",AVERAGE(AW141:AZ141)) -> 440 | Q141: =IF(COUNT(BA141:BF141)=0,"",AVERAGE(BA141:BF141)) -> 193.8333333 | R141: =IF(COUNT(BG141:BL141)=0,"",AVERAGE(BG141:BL141)) -> 385 | S141: =IF(COUNT(BM141:BW141)=0,"",AVERAGE(BM141:BW141)) -> 349.43125 | T141: 257.9818182 | U141: =IF(COUNT(CQ141:CS141)=0,"",AVERAGE(CQ141:CS141)) -> 250 | V141: 277.1775 | W141: =IF(COUNT(AG141)+COUNT(AQ141)+COUNT(AS141)+COUNT(AZ141)+COUNT(BD141)+COUNT(BG141)+COUNT(BP141:BQ141)+COUNT(BU141)+COUNT(CB141)+COUNT(CL141:CM141)+COUNT(CR141)=0,"",AVERAGE(AG141,AQ141,AS141,AZ141,BD141,BG141,BP141:BQ141,BU141,CB141,CL141:CM141,CR141)) -> 386.445 | X141: 132 | Y141: 347.4 | Z141: 155.7 | AA141: 173 | AB141: 174 | AC141: 20 | AD141: 110 | AE141: 420 | AF141: 231 | AH141: 259 | AI141: 153 | AK141: 175.66 | AM141: 200 | AO141: 0 | AQ141: 419.16 | AR141: 269.06 | AS141: 640 | AT141: 180 | AW141: 574 | AY141: 306 | BA141: 117 | BB141: 143 | BC141: 132 | BD141: 268 | BE141: 185 | BF141: 318 | BG141: 500 | BH141: 400 | BI141: 310 | BJ141: 500 | BK141: 300 | BL141: 300 | BM141: 100 | BN141: 400 | BO141: 720 | BP141: 298.8 | BQ141: 296.5 | BR141: 231.95 | BS141: 650 | BV141: 98.2 | BX141: 100 | BY141: 256.7 | BZ141: 300 | CB141: 289.1 | CE141: 300 | CF141: 400 | CG141: 0 | CJ141: 230 | CK141: 382 | CL141: 380 | CN141: 200 | CQ141: 300 | CS141: 200
A142: 2015-01-06 | B142: Jan 06 | C142: 2015-01-06 | D142: 01-Jan 06 | E142: 1 | F142: 6 | G142: 2015 | H142: 10:00:00 | I142: 219.65 | J142: 171 | K142: 113.3333333 | L142: 275.75 | M142: 211.9671429 | N142: 375 | P142: 461.5 | Q142: 205.6 | R142: 436.6666667 | S142: 349.4133333 | T142: 230.3111111 | U142: 300 | V142: 280.1243396 | W142: 362.3088889 | X142: 133 | Y142: 303.8 | Z142: 135.5 | AA142: 177 | AB142: 165 | AC142: 20 | AD142: 100 | AE142: 220 | AF142: 336 | AG142: 408 | AH142: 201 | AI142: 158 | AK142: 175.16 | AL142: 215.31 | AM142: 200 | AO142: 0 | AP142: 271.85 | AQ142: 367.48 | AR142: 253.97 | AS142: 570 | AT142: 180 | AW142: 618 | AY142: 305 | BA142: 89 | BB142: 146 | BC142: 139 | BD142: 301 | BF142: 353 | BG142: 400 | BH142: 400 | BI142: 320 | BJ142: 700 | BK142: 400 | BL142: 400 | BM142: 100 | BN142: 400 | BO142: 710 | BP142: 274.7 | BQ142: 268.5 | BR142: 214.41 | BS142: 710 | BT142: 376.32 | BV142: 90.79 | BX142: 0 | BY142: 248.7 | CB142: 351.1 | CF142: 400 | CG142: 0 | CJ142: 190 | CK142: 363 | CL142: 320 | CN142: 200 | CQ142: 400 | CS142: 200
A143: 2015-01-06 | B143: Jan 06 | C143: 2015-01-06 | D143: 01-Jan 06 | E143: 1 | F143: 6 | G143: 2015 | H143: 11:00:00 | I143: 206.15 | J143: 171 | K143: 86.66666667 | L143: 241.2 | M143: 191.7816667 | N143: 385 | P143: 423 | Q143: 187.3333333 | R143: 405 | S143: 354.8244444 | T143: 235.4636364 | U143: 250 | V143: 264.7233929 | W143: 337.2 | X143: 130 | Y143: 276.5 | Z143: 135.8 | AA143: 185 | AB143: 157 | AC143: 10 | AD143: 100 | AE143: 150 | AF143: 289 | AG143: 387 | AH143: 211 | AI143: 147 | AJ143: 172 | AK143: 176.07 | AL143: 223.6 | AM143: 200 | AO143: 0 | AP143: 303.19 | AR143: 247.83 | AS143: 590 | AT143: 180 | AW143: 581 | AY143: 265 | BA143: 99 | BB143: 152 | BC143: 131 | BD143: 264 | BE143: 191 | BF143: 287 | BG143: 300 | BH143: 400 | BI143: 330 | BJ143: 700 | BK143: 300 | BL143: 400 | BM143: 100 | BN143: 400 | BO143: 710 | BP143: 260.7 | BQ143: 265.3 | BR143: 211.39 | BS143: 740 | BT143: 399.61 | BV143: 106.42 | BX143: 0 | BY143: 239.5 | BZ143: 300 | CB143: 310.6 | CE143: 300 | CF143: 400 | CG143: 0 | CJ143: 170 | CK143: 350 | CL143: 320 | CN143: 200 | CQ143: 300 | CS143: 200
A144: 2015-01-06 | B144: Jan 06 | C144: 2015-01-06 | D144: 01-Jan 06 | E144: 1 | F144: 6 | G144: 2015 | H144: 12:00:00 | I144: 278.7 | J144: 165 | K144: 106.6666667 | L144: 245.2 | M144: 209.18 | N144: 455 | P144: 420 | Q144: 181.3333333 | R144: 361.6666667 | S144: 330.4711111 | T144: 211.3090909 | U144: 200 | V144: 256.6621818 | W144: 348.4 | X144: 140 | Y144: 278.7 | AA144: 173 | AB144: 157 | AC144: 10 | AD144: 110 | AE144: 200 | AF144: 314 | AG144: 369 | AH144: 205 | AI144: 155 | AJ144: 183 | AK144: 183.33 | AL144: 221.06 | AM144: 200 | AO144: 100 | AP144: 272.92 | AR144: 277.77 | AS144: 710 | AT144: 200 | AW144: 569 | AY144: 271 | BA144: 92 | BB144: 134 | BC144: 125 | BD144: 295 | BE144: 189 | BF144: 253 | BG144: 200 | BH144: 400 | BI144: 270 | BJ144: 700 | BK144: 300 | BL144: 300 | BM144: 100 | BN144: 300 | BO144: 730 | BP144: 350.4 | BQ144: 249.1 | BR144: 201.58 | BS144: 670 | BT144: 290.03 | BV144: 83.13 | BX144: 0 | BY144: 223.7 | BZ144: 300 | CB144: 323.7 | CE144: 200 | CF144: 400 | CG144: 0 | CJ144: 150 | CK144: 337 | CL144: 290 | CN144: 100 | CQ144: 200 | CS144: 200
A145: 2015-01-06 | B145: Jan 06 | C145: 2015-01-06 | D145: 01-Jan 06 | E145: 1 | F145: 6 | G145: 2015 | H145: 13:00:00 | I145: 284.4 | J145: 161.5 | K145: 106.6666667 | L145: 236.2 | M145: 239.9357143 | N145: 455 | P145: 455 | Q145: 209.5 | R145: 363.3333333 | S145: 313.4966667 | T145: 216.5 | U145: 200 | V145: 261.57 | W145: 346.9788889 | X145: 149 | Y145: 284.4 | AA145: 164 | AB145: 159 | AC145: 20 | AD145: 130 | AE145: 170 | AF145: 264 | AG145: 399 | AH145: 176 | AI145: 163 | AJ145: 179 | AK145: 216.83 | AL145: 222.69 | AM145: 200 | AO145: 100 | AP145: 275.34 | AQ145: 391.51 | AR145: 273.18 | AS145: 710 | AT145: 200 | AW145: 619 | AY145: 291 | BA145: 99 | BB145: 135 | BC145: 188 | BD145: 283 | BE145: 211 | BF145: 341 | BG145: 200 | BH145: 400 | BI145: 280 | BJ145: 700 | BK145: 300 | BL145: 300 | BM145: 100 | BN145: 300 | BO145: 710 | BP145: 295.1 | BQ145: 252.3 | BR145: 202.31 | BS145: 660 | BT145: 229.07 | BV145: 72.69 | BX145: 100 | BY145: 208.6 | BZ145: 300 | CB145: 311.9 | CE145: 200 | CF145: 400 | CG145: 0 | CJ145: 140 | CK145: 341 | CL145: 280 | CN145: 100 | CQ145: 200 | CS145: 200
A146: 2015-01-06 | B146: Jan 06 | C146: 2015-01-06 | D146: 01-Jan 06 | E146: 1 | F146: 6 | G146: 2015 | H146: 14:00:00 | I146: 287.1 | J146: 166.5 | K146: 123.3333333 | L146: 271.2 | M146: 231.6957143 | N146: 470 | P146: 504.5 | Q146: 205.5 | R146: 411.6666667 | S146: 316.7633333 | T146: 226.3636364 | U146: 300 | V146: 277.8721429 | W146: 372.58 | X146: 156 | Y146: 287.1 | AA146: 167 | AB146: 166 | AC146: 30 | AD146: 150 | AE146: 190 | AF146: 335 | AG146: 481 | AH146: 198 | AI146: 171 | AJ146: 171 | AK146: 220.19 | AL146: 242.17 | AM146: 100 | AO146: 100 | AP146: 264.64 | AQ146: 399.42 | AR146: 295.45 | AS146: 730 | AT146: 210 | AW146: 679 | AY146: 330 | BA146: 128 | BB146: 141 | BC146: 195 | BD146: 227 | BE146: 236 | BF146: 306 | BG146: 300 | BH146: 400 | BI146: 270 | BJ146: 900 | BK146: 300 | BL146: 300 | BM146: 100 | BN146: 300 | BO146: 740 | BP146: 305.8 | BQ146: 255.4 | BR146: 198.63 | BS146: 660 | BT146: 257.57 | BV146: 33.47 | BX146: 100 | BY146: 206.4 | BZ146: 300 | CB146: 374.6 | CE146: 200 | CF146: 400 | CG146: 0 | CJ146: 180 | CK146: 349 | CL146: 280 | CN146: 100 | CQ146: 300 | CS146: 300
A147: 2015-01-06 | B147: Jan 06 | C147: 2015-01-06 | D147: 01-Jan 06 | E147: 1 | F147: 6 | G147: 2015 | H147: 15:00:00 | I147: 284.6 | J147: 175 | K147: 143.3333333 | L147: 310.75 | M147: 250.2214286 | N147: 535 | P147: 496 | Q147: 239.6666667 | R147: 388.3333333 | S147: 318.6922222 | T147: 274.6090909 | U147: 300 | V147: 297.7832727 | W147: 447.2288889 | X147: 162 | Y147: 284.6 | AA147: 169 | AB147: 181 | AC147: 30 | AD147: 160 | AE147: 240 | AF147: 336 | AG147: 543 | AH147: 197 | AJ147: 167 | AK147: 215.95 | AL147: 245.89 | AM147: 100 | AO147: 100 | AP147: 346.32 | AQ147: 401.56 | AR147: 341.83 | AS147: 850 | AT147: 220 | AW147: 710 | AY147: 282 | BA147: 237 | BB147: 147 | BC147: 191 | BD147: 260 | BE147: 270 | BF147: 333 | BG147: 300 | BH147: 400 | BI147: 330 | BJ147: 600 | BK147: 300 | BL147: 400 | BM147: 100 | BN147: 300 | BO147: 720 | BP147: 292.8 | BQ147: 331.1 | BR147: 215.46 | BS147: 550 | BT147: 319.45 | BV147: 39.42 | BX147: 100 | BY147: 219.1 | BZ147: 300 | CB147: 406.6 | CE147: 200 | CF147: 400 | CG147: 0 | CJ147: 270 | CK147: 385 | CL147: 640 | CN147: 100 | CQ147: 300 | CS147: 300
A148: 2015-01-06 | B148: Jan 06 | C148: 2015-01-06 | D148: 01-Jan 06 | E148: 1 | F148: 6 | G148: 2015 | H148: 16:00:00 | I148: 220.1 | J148: 181 | K148: 180 | L148: 332.8 | M148: 253.275 | N148: 590 | P148: 582.5 | Q148: 265.1666667 | R148: 410 | S148: 345.2966667 | T148: 288.8545455 | U148: 300 | V148: 317.9807143 | W148: 470.8788889 | X148: 162 | Y148: 293.4 | Z148: 146.8 | AA148: 173 | AB148: 189 | AC148: 30 | AD148: 200 | AE148: 310 | AF148: 370 | AG148: 650 | AH148: 229 | AI148: 193 | AJ148: 222 | AK148: 208.99 | AL148: 247.45 | AM148: 100 | AO148: 100 | AQ148: 469.51 | AR148: 393.7 | AS148: 920 | AT148: 260 | AW148: 741 | AY148: 424 | BA148: 324 | BB148: 161 | BC148: 200 | BD148: 229 | BE148: 288 | BF148: 389 | BG148: 200 | BH148: 500 | BI148: 360 | BJ148: 700 | BK148: 300 | BL148: 400 | BM148: 200 | BN148: 300 | BO148: 730 | BP148: 308.8 | BQ148: 389.6 | BR148: 227.54 | BS148: 520 | BT148: 373.8 | BV148: 57.93 | BX148: 100 | BY148: 208.4 | BZ148: 400 | CB148: 431 | CE148: 200 | CF148: 400 | CG148: 0 | CJ148: 320 | CK148: 378 | CL148: 640 | CN148: 100 | CQ148: 300 | CS148: 300
A149: 2015-01-06 | B149: Jan 06 | C149: 2015-01-06 | D149: 01-Jan 06 | E149: 1 | F149: 6 | G149: 2015 | H149: 17:00:00 | I149: 246.95 | J149: 191.5 | K149: 193.3333333 | L149: 345.2 | M149: 263.6283333 | N149: 425 | P149: 600 | Q149: 304.1666667 | R149: 460 | S149: 362.2622222 | T149: 320.7818182 | U149: 500 | V149: 342.6541071 | W149: 427.1766667 | X149: 281 | Y149: 345.1 | Z149: 148.8 | AA149: 183 | AB149: 200 | AC149: 30 | AD149: 200 | AE149: 350 | AF149: 423 | AG149: 586 | AH149: 242 | AI149: 178 | AJ149: 297 | AK149: 228.15 | AL149: 246.46 | AM149: 200 | AO149: 100 | AQ149: 421.59 | AR149: 385.57 | AS149: 600 | AT149: 250 | AW149: 850 | AY149: 350 | BA149: 553 | BB149: 176 | BC149: 205 | BD149: 214 | BE149: 275 | BF149: 402 | BG149: 200 | BH149: 500 | BI149: 460 | BJ149: 800 | BK149: 400 | BL149: 400 | BM149: 200 | BN149: 300 | BO149: 730 | BP149: 328.2 | BQ149: 377.8 | BR149: 251.05 | BS149: 620 | BT149: 388.26 | BV149: 65.05 | BX149: 100 | BY149: 231.6 | BZ149: 400 | CB149: 397 | CE149: 200 | CF149: 500 | CG149: 0 | CJ149: 340 | CK149: 540 | CL149: 720 | CN149: 100 | CQ149: 500 | CS149: 500
A150: 2015-01-06 | B150: Jan 06 | C150: 2015-01-06 | D150: 01-Jan 06 | E150: 1 | F150: 6 | G150: 2015 | H150: 18:00:00 | I150: 328.95 | J150: 200.5 | K150: 153.3333333 | L150: 382.4 | M150: 266.82 | N150: 360 | P150: 595.5 | Q150: 375.5 | R150: 471.6666667 | S150: 356.1144444 | T150: 301.8636364 | U150: 750 | V150: 356.4591228 | W150: 404.7288889 | X150: 164 | Y150: 508.9 | Z150: 149 | AA150: 187 | AB150: 214 | AC150: 40 | AD150: 180 | AE150: 240 | AF150: 532 | AG150: 628 | AH150: 247 | AI150: 183 | AJ150: 322 | AK150: 249.39 | AL150: 252.54 | AM150: 200 | AO150: 100 | AP150: 320.73 | AQ150: 434.36 | AR150: 310.72 | AS150: 480 | AT150: 240 | AW150: 827 | AY150: 364 | BA150: 951 | BB150: 164 | BC150: 206 | BD150: 224 | BE150: 294 | BF150: 414 | BG150: 200 | BH150: 500 | BI150: 430 | BJ150: 800 | BK150: 400 | BL150: 500 | BM150: 200 | BN150: 300 | BO150: 730 | BP150: 294 | BQ150: 296.5 | BR150: 220.2 | BS150: 690 | BT150: 408.69 | BV150: 65.64 | BX150: 100 | BY150: 223.8 | BZ150: 400 | CB150: 385.7 | CE150: 200 | CF150: 400 | CG150: 0 | CJ150: 330 | CK150: 381 | CL150: 700 | CN150: 200 | CQ150: 700 | CS150: 800
A151: 2015-01-06 | B151: Jan 06 | C151: 2015-01-06 | D151: 01-Jan 06 | E151: 1 | F151: 6 | G151: 2015 | H151: 19:00:00 | I151: 301.55 | J151: 212 | K151: 163.3333333 | L151: 389.2 | M151: 320.9216667 | N151: 335 | P151: 593 | Q151: 369 | R151: 513.3333333 | S151: 333.1944444 | T151: 280.5545455 | U151: 750 | V151: 359.3478571 | W151: 360.66 | X151: 155 | Y151: 450.2 | Z151: 152.9 | AA151: 187 | AB151: 237 | AC151: 50 | AD151: 140 | AE151: 300 | AF151: 465 | AG151: 590 | AH151: 302 | AI151: 190 | AJ151: 399 | AL151: 311.59 | AM151: 300 | AO151: 100 | AP151: 367.85 | AQ151: 482.44 | AR151: 363.65 | AS151: 400 | AT151: 270 | AW151: 832 | AY151: 354 | BA151: 940 | BB151: 157 | BC151: 150 | BD151: 239 | BE151: 305 | BF151: 423 | BG151: 200 | BH151: 500 | BI151: 480 | BJ151: 1000 | BK151: 500 | BL151: 400 | BM151: 200 | BN151: 300 | BO151: 710 | BP151: 281.2 | BQ151: 232.8 | BR151: 208.67 | BS151: 670 | BT151: 328.86 | BV151: 67.22 | BX151: 100 | BY151: 208.6 | BZ151: 300 | CB151: 280.5 | CE151: 200 | CF151: 400 | CG151: 0 | CJ151: 340 | CK151: 517 | CL151: 540 | CN151: 200 | CQ151: 700 | CS151: 800
A152: 2015-01-06 | B152: Jan 06 | C152: 2015-01-06 | D152: 01-Jan 06 | E152: 1 | F152: 6 | G152: 2015 | H152: 20:00:00 | I152: 311.55 | J152: 218 | K152: 143.3333333 | L152: 401 | M152: 345.3016667 | N152: 310 | P152: 516 | Q152: 398.8333333 | R152: 486.6666667 | S152: 332.6277778 | T152: 275.4636364 | U152: 550 | V152: 350.9760714 | W152: 350.3655556 | X152: 189 | Y152: 460 | Z152: 163.1 | AA152: 197 | AB152: 239 | AC152: 50 | AD152: 120 | AE152: 260 | AF152: 508 | AG152: 561 | AH152: 368 | AI152: 191 | AJ152: 377 | AK152: 304.89 | AM152: 500 | AO152: 100 | AP152: 369.18 | AQ152: 495.59 | AR152: 302.15 | AS152: 350 | AT152: 270 | AW152: 725 | AY152: 307 | BA152: 1145 | BB152: 156 | BC152: 143 | BD152: 249 | BE152: 333 | BF152: 367 | BG152: 200 | BH152: 500 | BI152: 520 | BJ152: 900 | BK152: 400 | BL152: 400 | BM152: 200 | BN152: 300 | BO152: 710 | BP152: 254.9 | BQ152: 224.2 | BR152: 210.07 | BS152: 740 | BT152: 281.15 | BV152: 73.33 | BX152: 100 | BY152: 208.5 | BZ152: 300 | CB152: 308.6 | CE152: 200 | CF152: 400 | CG152: 0 | CJ152: 310 | CK152: 493 | CL152: 510 | CN152: 200 | CQ152: 300 | CS152: 800
A153: 2015-01-06 | B153: Jan 06 | C153: 2015-01-06 | D153: 01-Jan 06 | E153: 1 | F153: 6 | G153: 2015 | H153: 21:00:00 | I153: 360.45 | J153: 226.5 | K153: 126.6666667 | L153: 427 | M153: 434.114 | N153: 420 | P153: 470 | Q153: 403.5 | R153: 453.3333333 | S153: 331.3244444 | T153: 275.4636364 | U153: 400 | V153: 356.2270909 | W153: 398.22 | X153: 183 | Y153: 559.8 | Z153: 161.1 | AA153: 197 | AB153: 256 | AC153: 50 | AD153: 110 | AE153: 220 | AF153: 504 | AG153: 680 | AH153: 397 | AI153: 195 | AJ153: 359 | AM153: 700 | AO153: 100 | AP153: 410.68 | AQ153: 560.58 | AR153: 399.31 | AS153: 580 | AT153: 260 | AW153: 696 | AY153: 244 | BA153: 1099 | BB153: 154 | BC153: 144 | BD153: 283 | BE153: 235 | BF153: 506 | BG153: 200 | BH153: 500 | BI153: 520 | BJ153: 700 | BK153: 400 | BL153: 400 | BM153: 200 | BN153: 300 | BO153: 700 | BP153: 246.5 | BQ153: 226.1 | BR153: 218.56 | BS153: 710 | BT153: 303.17 | BV153: 77.59 | BX153: 100 | BY153: 211.3 | BZ153: 300 | CB153: 307.8 | CE153: 200 | CF153: 400 | CG153: 0 | CJ153: 320 | CK153: 491 | CL153: 500 | CN153: 200 | CQ153: 300 | CS153: 500
A154: 2015-01-06 | B154: Jan 06 | C154: 2015-01-06 | D154: 01-Jan 06 | E154: 1 | F154: 6 | G154: 2015 | H154: 22:00:00 | I154: 312.75 | J154: 230.5 | K154: 140 | L154: 398.6 | M154: 427.9833333 | N154: 635 | P154: 490 | Q154: 435.3333333 | R154: 456.6666667 | S154: 326.7088889 | T154: 264.68 | U154: 400 | V154: 361.0121154 | W154: 407.2125 | X154: 176 | Y154: 474.7 | Z154: 150.8 | AA154: 205 | AB154: 256 | AC154: 50 | AD154: 150 | AE154: 220 | AF154: 493 | AG154: 543 | AH154: 401 | AI154: 206 | AJ154: 350 | AK154: 353.2 | AL154: 454.28 | AP154: 476.47 | AS154: 900 | AT154: 370 | AW154: 716 | AY154: 264 | BA154: 1223 | BB154: 145 | BC154: 155 | BD154: 384 | BE154: 209 | BF154: 496 | BG154: 200 | BH154: 400 | BI154: 540 | BJ154: 600 | BK154: 400 | BL154: 600 | BM154: 200 | BN154: 300 | BO154: 690 | BP154: 218.2 | BQ154: 203.8 | BR154: 226.28 | BS154: 680 | BT154: 324.28 | BV154: 97.82 | BX154: 0 | BY154: 203.1 | BZ154: 300 | CB154: 198.7 | CE154: 200 | CF154: 400 | CG154: 0 | CK154: 535 | CL154: 610 | CN154: 200 | CQ154: 400 | CS154: 400
A155: 2015-01-06 | B155: Jan 06 | C155: 2015-01-06 | D155: 01-Jan 06 | E155: 1 | F155: 6 | G155: 2015 | H155: 23:00:00 | I155: 309.2 | J155: 247.5 | K155: 123.3333333 | L155: 334.4 | M155: 459.026 | N155: 570 | P155: 519.5 | Q155: 419.6 | R155: 453.3333333 | S155: 309.4077778 | T155: 270.98 | U155: 450 | V155: 355.509434 | W155: 386.35125 | X155: 169 | Y155: 461.2 | Z155: 157.2 | AA155: 225 | AB155: 270 | AC155: 60 | AD155: 110 | AE155: 200 | AF155: 418 | AG155: 381 | AH155: 341 | AI155: 206 | AJ155: 326 | AK155: 371.95 | AL155: 350.14 | AM155: 600 | AP155: 437.23 | AQ155: 535.81 | AS155: 790 | AT155: 350 | AW155: 709 | AY155: 330 | BA155: 1084 | BB155: 155 | BC155: 159 | BE155: 196 | BF155: 504 | BG155: 200 | BH155: 500 | BI155: 520 | BJ155: 600 | BK155: 400 | BL155: 500 | BM155: 200 | BN155: 300 | BO155: 680 | BP155: 208.6 | BQ155: 173.2 | BR155: 199.74 | BS155: 660 | BT155: 239.09 | BV155: 124.04 | BX155: 100 | BY155: 197.6 | BZ155: 300 | CB155: 192.2 | CE155: 200 | CF155: 400 | CG155: 0 | CK155: 510 | CL155: 610 | CN155: 200 | CQ155: 400 | CS155: 500
A156: 2015-01-07 | B156: Jan 07 | C156: 2015-01-07 | D156: 01-Jan 07 | E156: 1 | F156: 7 | G156: 2015 | H156: 00:00:00 | I156: 274.8 | J156: 266.5 | L156: 336.6 | M156: 410.6657143 | N156: 750 | P156: 492.5 | Q156: 329 | R156: 450 | S156: 314.6755556 | T156: 298.1111111 | U156: 350 | V156: 365.6603846 | W156: 422.1375 | X156: 209 | Y156: 401.2 | Z156: 148.4 | AA156: 222 | AB156: 311 | AF156: 419 | AG156: 365 | AH156: 360 | AI156: 204 | AJ156: 335 | AK156: 332.82 | AL156: 487.99 | AM156: 800 | AO156: 100 | AP156: 342.48 | AQ156: 397.9 | AR156: 413.47 | AS156: 1020 | AT156: 480 | AW156: 665 | AY156: 320 | BA156: 763 | BB156: 160 | BC156: 159 | BD156: 329 | BE156: 200 | BF156: 363 | BG156: 200 | BH156: 500 | BI156: 500 | BJ156: 700 | BK156: 400 | BL156: 400 | BM156: 200 | BN156: 300 | BO156: 680 | BP156: 205.2 | BQ156: 150 | BR156: 186.62 | BS156: 720 | BT156: 270.59 | BV156: 119.67 | BX156: 0 | BZ156: 300 | CE156: 200 | CF156: 400 | CG156: 0 | CJ156: 320 | CK156: 553 | CL156: 710 | CN156: 200 | CQ156: 400 | CS156: 300
A157: 2015-01-07 | B157: Jan 07 | C157: 2015-01-07 | D157: 01-Jan 07 | E157: 1 | F157: 7 | G157: 2015 | H157: 01:00:00 | I157: 258.95 | J157: 266.5 | K157: 160 | M157: 372.6757143 | N157: 805 | P157: 516 | Q157: 291.1666667 | R157: 395 | S157: 320.6855556 | T157: 244.0363636 | U157: 350 | V157: 333.5137255 | W157: 343.8975 | X157: 210 | Y157: 367.4 | Z157: 150.5 | AA157: 213 | AB157: 320 | AD157: 110 | AE157: 210 | AK157: 338.54 | AL157: 515.21 | AM157: 500 | AO157: 100 | AP157: 311.24 | AQ157: 381.08 | AR157: 462.66 | AS157: 870 | AT157: 740 | AW157: 662 | AY157: 370 | BA157: 606 | BB157: 164 | BC157: 163 | BD157: 273 | BE157: 217 | BF157: 324 | BG157: 100 | BH157: 500 | BI157: 470 | BJ157: 600 | BK157: 300 | BL157: 400 | BM157: 200 | BN157: 300 | BO157: 680 | BP157: 207.4 | BQ157: 145.5 | BR157: 181.31 | BS157: 760 | BT157: 294.76 | BV157: 117.2 | BX157: 0 | BY157: 189.2 | BZ157: 300 | CB157: 184.2 | CE157: 200 | CF157: 300 | CG157: 0 | CJ157: 310 | CK157: 511 | CL157: 590 | CN157: 100 | CQ157: 300 | CS157: 400
A158: 2015-01-07 | B158: Jan 07 | C158: 2015-01-07 | D158: 01-Jan 07 | E158: 1 | F158: 7 | G158: 2015 | H158: 02:00:00 | I158: 254.9 | J158: 274 | K158: 150 | L158: 301.8 | M158: 376.1014286 | N158: 695 | P158: 466 | Q158: 333 | R158: 385 | S158: 293.5677778 | T158: 222.8 | U158: 400 | V158: 321.8289286 | W158: 292.6611111 | X158: 183 | Y158: 367.6 | Z158: 142.2 | AA158: 214 | AB158: 334 | AD158: 110 | AE158: 190 | AF158: 330 | AG158: 385 | AH158: 333 | AI158: 174 | AJ158: 287 | AK158: 406.96 | AL158: 576.74 | AM158: 400 | AO158: 100 | AP158: 392.4 | AQ158: 373.15 | AR158: 383.46 | AS158: 570 | AT158: 820 | AW158: 601 | AY158: 331 | BA158: 964 | BB158: 163 | BC158: 154 | BD158: 209 | BE158: 213 | BF158: 295 | BG158: 100 | BH158: 600 | BI158: 410 | BJ158: 500 | BK158: 300 | BL158: 400 | BM158: 200 | BN158: 200 | BO158: 670 | BP158: 193.5 | BQ158: 149.9 | BR158: 183.13 | BS158: 700 | BT158: 224.94 | BV158: 120.64 | BX158: 0 | BY158: 179.4 | BZ158: 300 | CB158: 173.4 | CE158: 200 | CF158: 300 | CG158: 0 | CJ158: 260 | CK158: 458 | CL158: 480 | CN158: 100 | CQ158: 400 | CS158: 400
A159: 2015-01-07 | B159: Jan 07 | C159: 2015-01-07 | D159: 01-Jan 07 | E159: 1 | F159: 7 | G159: 2015 | H159: 03:00:00 | I159: 264.2 | J159: 257.5 | K159: 125 | L159: 285.8 | M159: 343.93 | N159: 425 | P159: 492 | Q159: 291.5 | R159: 360 | S159: 290.8966667 | T159: 227 | U159: 450 | V159: 301.5710714 | W159: 271.0311111 | X159: 180 | Y159: 388.7 | Z159: 139.7 | AA159: 219 | AB159: 296 | AD159: 100 | AE159: 150 | AF159: 303 | AG159: 357 | AH159: 345 | AI159: 179 | AJ159: 245 | AK159: 338.07 | AL159: 595.57 | AM159: 300 | AO159: 100 | AP159: 353.86 | AQ159: 403.18 | AR159: 316.83 | AS159: 430 | AT159: 420 | AW159: 624 | AY159: 360 | BA159: 747 | BB159: 166 | BC159: 147 | BD159: 205 | BE159: 204 | BF159: 280 | BG159: 100 | BH159: 500 | BI159: 360 | BJ159: 500 | BK159: 300 | BL159: 400 | BM159: 200 | BN159: 200 | BO159: 670 | BP159: 193.1 | BQ159: 130.6 | BR159: 162.82 | BS159: 720 | BT159: 214.95 | BV159: 126.6 | BX159: 0 | BY159: 180.6 | BZ159: 300 | CB159: 170.4 | CE159: 200 | CF159: 400 | CG159: 0 | CJ159: 230 | CK159: 466 | CL159: 450 | CN159: 100 | CQ159: 400 | CS159: 500
A160: 2015-01-07 | B160: Jan 07 | C160: 2015-01-07 | D160: 01-Jan 07 | E160: 1 | F160: 7 | G160: 2015 | H160: 04:00:00 | I160: 271.95 | J160: 263.5 | K160: 125 | L160: 262.8 | M160: 298.0271429 | N160: 385 | P160: 507.5 | Q160: 251 | R160: 378.3333333 | S160: 289.6411111 | T160: 231.08 | U160: 500 | V160: 294.5392727 | W160: 284.6566667 | X160: 205 | Y160: 400.9 | Z160: 143 | AA160: 217 | AB160: 310 | AD160: 100 | AE160: 150 | AF160: 296 | AG160: 304 | AH160: 291 | AI160: 174 | AJ160: 249 | AK160: 316.88 | AL160: 461.26 | AM160: 200 | AO160: 100 | AP160: 329.06 | AQ160: 382.21 | AR160: 296.78 | AS160: 470 | AT160: 300 | AW160: 643 | AY160: 372 | BA160: 412 | BB160: 175 | BC160: 156 | BD160: 225 | BE160: 253 | BF160: 285 | BG160: 200 | BH160: 500 | BI160: 370 | BJ160: 500 | BK160: 300 | BL160: 400 | BM160: 200 | BN160: 200 | BO160: 680 | BP160: 190.9 | BQ160: 120.3 | BR160: 149.81 | BS160: 710 | BT160: 229.33 | BV160: 126.43 | BX160: 0 | BY160: 181.3 | BZ160: 300 | CB160: 169.5 | CE160: 200 | CF160: 400 | CG160: 0 | CK160: 460 | CL160: 500 | CN160: 100 | CQ160: 500 | CS160: 500
A161: 2015-01-07 | B161: Jan 07 | C161: 2015-01-07 | D161: 01-Jan 07 | E161: 1 | F161: 7 | G161: 2015 | H161: 05:00:00 | I161: 282.35 | J161: 268 | K161: 130 | L161: 269.8 | M161: 318.08 | N161: 440 | P161: 513.5 | Q161: 249.3333333 | R161: 431.6666667 | S161: 305.8855556 | T161: 241.6909091 | U161: 500 | V161: 309.6576786 | W161: 333.32 | X161: 197 | Y161: 421.8 | Z161: 142.9 | AA161: 220 | AB161: 316 | AD161: 110 | AE161: 150 | AF161: 341 | AG161: 365 | AH161: 222 | AI161: 180 | AJ161: 241 | AK161: 332.27 | AL161: 428.46 | AM161: 200 | AO161: 100 | AP161: 351.31 | AQ161: 473.68 | AR161: 340.84 | AS161: 580 | AT161: 300 | AW161: 662 | AY161: 365 | BA161: 244 | BB161: 186 | BC161: 152 | BD161: 257 | BE161: 307 | BF161: 350 | BG161: 300 | BH161: 500 | BI161: 390 | BJ161: 600 | BK161: 400 | BL161: 400 | BM161: 200 | BN161: 300 | BO161: 680 | BP161: 188.7 | BQ161: 138.3 | BR161: 157.38 | BS161: 710 | BT161: 246.24 | BV161: 132.35 | BX161: 0 | BY161: 187.4 | BZ161: 300 | CB161: 207.2 | CE161: 200 | CF161: 400 | CG161: 0 | CJ161: 250 | CK161: 424 | CL161: 490 | CN161: 200 | CQ161: 500 | CS161: 500
A162: 2015-01-07 | B162: Jan 07 | C162: 2015-01-07 | D162: 01-Jan 07 | E162: 1 | F162: 7 | G162: 2015 | H162: 06:00:00 | I162: 285.8 | J162: 263 | K162: 135 | L162: 302 | M162: 392.9985714 | N162: 520 | P162: 541 | Q162: 218 | R162: 505 | S162: 325.0822222 | T162: 238.6090909 | U162: 400 | V162: 329.2683929 | W162: 407.8844444 | X162: 200 | Y162: 431 | Z162: 140.6 | AA162: 217 | AB162: 309 | AD162: 120 | AE162: 150 | AF162: 382 | AG162: 448 | AH162: 237 | AI162: 188 | AJ162: 255 | AK162: 341.87 | AL162: 571.36 | AM162: 200 | AO162: 200 | AP162: 420.35 | AQ162: 628.46 | AR162: 388.95 | AS162: 740 | AT162: 300 | AW162: 728 | AY162: 354 | BA162: 146 | BB162: 191 | BC162: 150 | BD162: 226 | BE162: 312 | BF162: 283 | BG162: 500 | BH162: 500 | BI162: 430 | BJ162: 700 | BK162: 400 | BL162: 500 | BM162: 200 | BN162: 300 | BO162: 690 | BP162: 201.8 | BQ162: 176.7 | BR162: 211.84 | BS162: 730 | BT162: 276.27 | BV162: 139.13 | BX162: 0 | BY162: 199.7 | BZ162: 300 | CB162: 290 | CE162: 200 | CF162: 400 | CG162: 0 | CJ162: 210 | CK162: 465 | CL162: 460 | CN162: 100 | CQ162: 300 | CS162: 500
A163: 2015-01-07 | B163: Jan 07 | C163: 2015-01-07 | D163: 01-Jan 07 | E163: 1 | F163: 7 | G163: 2015 | H163: 07:00:00 | I163: 329.45 | J163: 270 | K163: 275 | L163: 330.4 | M163: 437.8316667 | N163: 580 | P163: 489 | Q163: 180.3333333 | R163: 488.3333333 | S163: 325.7233333 | T163: 237.7272727 | U163: 250 | V163: 331.3527273 | W163: 425.98 | X163: 226 | Y163: 516.3 | Z163: 142.6 | AA163: 217 | AB163: 323 | AD163: 170 | AE163: 380 | AF163: 408 | AG163: 519 | AH163: 242 | AI163: 174 | AJ163: 309 | AL163: 515.34 | AM163: 300 | AO163: 200 | AP163: 447.93 | AQ163: 720.02 | AR163: 443.7 | AS163: 850 | AT163: 310 | AW163: 674 | AY163: 304 | BA163: 161 | BB163: 177 | BC163: 142 | BD163: 175 | BE163: 182 | BF163: 245 | BG163: 400 | BH163: 500 | BI163: 430 | BJ163: 700 | BK163: 400 | BL163: 500 | BM163: 200 | BN163: 300 | BO163: 710 | BP163: 246.8 | BQ163: 155.4 | BR163: 185.13 | BS163: 670 | BT163: 322.52 | BV163: 141.66 | BX163: 0 | BY163: 207.4 | BZ163: 300 | CB163: 317.6 | CE163: 200 | CF163: 400 | CG163: 0 | CJ163: 210 | CK163: 430 | CL163: 450 | CN163: 100 | CQ163: 300 | CS163: 200
A164: 2015-01-07 | B164: Jan 07 | C164: 2015-01-07 | D164: 01-Jan 07 | E164: 1 | F164: 7 | G164: 2015 | H164: 08:00:00 | I164: 341.85 | J164: 271 | K164: 230 | L164: 350.2 | M164: 476.3971429 | N164: 590 | P164: 416 | Q164: 166.6666667 | R164: 371.6666667 | S164: 297.0577778 | T164: 234.4363636 | U164: 250 | V164: 317.2464286 | W164: 413.7566667 | X164: 205 | Y164: 531.9 | Z164: 151.8 | AA164: 214 | AB164: 328 | AD164: 170 | AE164: 290 | AF164: 417 | AG164: 579 | AH164: 256 | AI164: 173 | AJ164: 326 | AK164: 394.98 | AL164: 933.27 | AM164: 300 | AO164: 200 | AP164: 400.16 | AQ164: 633.81 | AR164: 472.56 | AS164: 840 | AT164: 340 | AW164: 618 | AY164: 214 | BA164: 109 | BB164: 183 | BC164: 146 | BD164: 161 | BE164: 166 | BF164: 235 | BG164: 300 | BH164: 500 | BI164: 330 | BJ164: 500 | BK164: 300 | BL164: 300 | BM164: 200 | BN164: 200 | BO164: 730 | BP164: 265.2 | BQ164: 131.2 | BR164: 164.03 | BS164: 600 | BT164: 254.33 | BV164: 128.76 | BX164: 0 | BY164: 212.2 | BZ164: 300 | CB164: 353.6 | CE164: 200 | CF164: 300 | CG164: 0 | CJ164: 210 | CK164: 443 | CL164: 460 | CN164: 100 | CQ164: 300 | CS164: 200
A165: 2015-01-07 | B165: Jan 07 | C165: 2015-01-07 | D165: 01-Jan 07 | E165: 1 | F165: 7 | G165: 2015 | H165: 09:00:00 | I165: 289.6 | J165: 239.5 | K165: 340 | L165: 225.6 | M165: 323.95 | N165: 505 | P165: 409.5 | Q165: 161.8333333 | R165: 303.3333333 | S165: 292.69375 | T165: 216.4 | U165: 200 | V165: 270.4690909 | W165: 341.29375 | X165: 267 | Y165: 428.1 | Z165: 151.1 | AA165: 214 | AB165: 265 | AD165: 160 | AE165: 520 | AF165: 216 | AG165: 314 | AH165: 194 | AI165: 173 | AJ165: 231 | AK165: 251.62 | AL165: 389.09 | AM165: 200 | AO165: 200 | AP165: 379.45 | AQ165: 496.45 | AR165: 351.04 | AS165: 710 | AT165: 300 | AW165: 604 | AY165: 215 | BA165: 116 | BB165: 158 | BC165: 145 | BD165: 166 | BE165: 157 | BF165: 229 | BG165: 200 | BH165: 500 | BI165: 220 | BJ165: 400 | BK165: 200 | BL165: 300 | BM165: 200 | BN165: 200 | BO165: 750 | BQ165: 119.4 | BR165: 152.73 | BS165: 590 | BT165: 225.44 | BV165: 103.98 | BX165: 0 | BY165: 203.9 | BZ165: 300 | CB165: 304.5 | CE165: 200 | CF165: 300 | CG165: 0 | CJ165: 160 | CK165: 392 | CL165: 420 | CN165: 100 | CQ165: 200 | CS165: 200
A166: 2015-01-07 | B166: Jan 07 | C166: 2015-01-07 | D166: 01-Jan 07 | E166: 1 | F166: 7 | G166: 2015 | H166: 10:00:00 | I166: 252.95 | J166: 210 | K166: 160 | L166: 690.2 | M166: 252.9742857 | N166: 370 | P166: 395.5 | Q166: 156.1666667 | R166: 298.3333333 | S166: 260.5675 | T166: 202.9272727 | U166: 200 | V166: 280.772 | W166: 290.075 | X166: 203 | Y166: 354.7 | Z166: 151.2 | AA166: 200 | AB166: 220 | AD166: 140 | AE166: 180 | AF166: 207 | AG166: 258 | AH166: 175 | AI166: 2612 | AJ166: 199 | AK166: 212.82 | AL166: 250.37 | AM166: 200 | AO166: 100 | AP166: 337.56 | AQ166: 406.9 | AR166: 263.17 | AS166: 520 | AT166: 220 | AW166: 594 | AY166: 197 | BA166: 114 | BB166: 143 | BC166: 148 | BD166: 158 | BE166: 165 | BF166: 209 | BG166: 200 | BH166: 500 | BI166: 190 | BJ166: 400 | BK166: 200 | BL166: 300 | BM166: 100 | BN166: 100 | BO166: 740 | BQ166: 128.1 | BR166: 158.02 | BS166: 560 | BT166: 204.47 | BV166: 93.95 | BX166: 0 | BY166: 207.6 | BZ166: 300 | CB166: 309.6 | CE166: 200 | CF166: 300 | CG166: 0 | CJ166: 120 | CK166: 355 | CL166: 340 | CN166: 100 | CQ166: 200 | CS166: 200
A167: 2015-01-07 | B167: Jan 07 | C167: 2015-01-07 | D167: 01-Jan 07 | E167: 1 | F167: 7 | G167: 2015 | H167: 11:00:00 | I167: 241.25 | J167: 184 | K167: 120 | L167: 263.4 | M167: 215.4214286 | N167: 340 | P167: 395 | Q167: 149 | R167: 298.3333333 | S167: 288.865 | T167: 193.1090909 | U167: 200 | V167: 236.7512963 | W167: 258.5655556 | X167: 200 | Y167: 312.2 | Z167: 170.3 | AA167: 193 | AB167: 175 | AD167: 120 | AF167: 208 | AG167: 201 | AH167: 167 | AI167: 543 | AJ167: 198 | AK167: 190.24 | AL167: 206.82 | AM167: 200 | AO167: 0 | AP167: 301.51 | AQ167: 325.69 | AR167: 283.69 | AS167: 480 | AT167: 200 | AW167: 607 | AY167: 183 | BA167: 101 | BB167: 142 | BC167: 134 | BD167: 156 | BE167: 156 | BF167: 205 | BG167: 200 | BH167: 500 | BI167: 190 | BJ167: 400 | BK167: 200 | BL167: 300 | BM167: 100 | BN167: 200 | BO167: 750 | BP167: 228.8 | BQ167: 135.7 | BR167: 157.33 | BS167: 550 | BT167: 189.09 | BX167: 0 | BY167: 188.3 | BZ167: 300 | CB167: 289.9 | CE167: 200 | CF167: 300 | CG167: 0 | CJ167: 100 | CK167: 336 | CL167: 310 | CN167: 100 | CQ167: 200 | CS167: 200
A168: 2015-01-07 | B168: Jan 07 | C168: 2015-01-07 | D168: 01-Jan 07 | E168: 1 | F168: 7 | G168: 2015 | H168: 12:00:00 | I168: 230.1 | J168: 187 | K168: 100 | L168: 192.8 | M168: 203.5514286 | N168: 345 | P168: 384 | Q168: 151.6666667 | R168: 301.6666667 | S168: 271.1466667 | T168: 212.4272727 | U168: 200 | V168: 230.5105455 | W168: 268.7466667 | X168: 226 | Y168: 300.6 | Z168: 159.6 | AA168: 194 | AB168: 180 | AD168: 100 | AF168: 216 | AG168: 241 | AH168: 170 | AI168: 143 | AJ168: 194 | AK168: 182 | AL168: 217.66 | AM168: 200 | AO168: 0 | AP168: 264.88 | AQ168: 308.62 | AR168: 251.7 | AS168: 500 | AT168: 190 | AW168: 582 | AY168: 186 | BA168: 111 | BB168: 147 | BC168: 137 | BD168: 158 | BE168: 155 | BF168: 202 | BG168: 200 | BH168: 500 | BI168: 210 | BJ168: 400 | BK168: 200 | BL168: 300 | BM168: 100 | BN168: 200 | BO168: 750 | BP168: 246.2 | BQ168: 137.9 | BR168: 168.42 | BS168: 560 | BT168: 193.34 | BV168: 84.46 | BX168: 100 | BY168: 188.7 | BZ168: 300 | CB168: 317 | CE168: 200 | CF168: 400 | CG168: 0 | CJ168: 90 | CK168: 331 | CL168: 310 | CN168: 100 | CQ168: 200 | CS168: 200
A169: 2015-01-07 | B169: Jan 07 | C169: 2015-01-07 | D169: 01-Jan 07 | E169: 1 | F169: 7 | G169: 2015 | H169: 13:00:00 | I169: 231 | J169: 185 | K169: 90 | L169: 179.4 | M169: 199.6371429 | N169: 335 | P169: 407.5 | Q169: 163.1666667 | R169: 296.6666667 | S169: 271.0488889 | T169: 202.9454545 | U169: 200 | V169: 227.86 | W169: 264.91 | X169: 214 | Y169: 294.6 | Z169: 167.4 | AA169: 192 | AB169: 178 | AD169: 90 | AF169: 202 | AG169: 189 | AH169: 167 | AI169: 148 | AJ169: 191 | AK169: 174.92 | AL169: 197.56 | AM169: 200 | AO169: 0 | AP169: 274.08 | AQ169: 320.99 | AR169: 229.91 | AS169: 480 | AT169: 190 | AW169: 628 | AY169: 187 | BA169: 112 | BB169: 148 | BC169: 178 | BD169: 164 | BE169: 168 | BF169: 209 | BG169: 200 | BH169: 500 | BI169: 180 | BJ169: 400 | BK169: 200 | BL169: 300 | BM169: 100 | BN169: 200 | BO169: 750 | BP169: 253.8 | BQ169: 145.3 | BR169: 171.63 | BS169: 540 | BT169: 189.6 | BV169: 89.11 | BX169: 0 | BY169: 175.3 | BZ169: 300 | CB169: 311.1 | CE169: 200 | CF169: 400 | CG169: 0 | CJ169: 90 | CK169: 336 | CL169: 320 | CN169: 100 | CQ169: 200 | CS169: 200
A170: 2015-01-07 | B170: Jan 07 | C170: 2015-01-07 | D170: 01-Jan 07 | E170: 1 | F170: 7 | G170: 2015 | H170: 14:00:00 | I170: 234.3 | J170: 175.5 | K170: 155 | L170: 181 | M170: 203.35 | N170: 190 | P170: 407.5 | Q170: 169.6666667 | R170: 298.3333333 | S170: 289.7833333 | T170: 206.4090909 | U170: 200 | V170: 228.1745455 | W170: 248.975 | X170: 214 | Y170: 304.5 | Z170: 164.1 | AA170: 182 | AB170: 169 | AD170: 110 | AE170: 200 | AF170: 223 | AG170: 200 | AH170: 146 | AI170: 147 | AJ170: 189 | AK170: 173.9 | AL170: 196.33 | AM170: 100 | AO170: 0 | AP170: 333.25 | AQ170: 323.7 | AR170: 296.27 | AT170: 190 | AW170: 607 | AY170: 208 | BA170: 129 | BB170: 150 | BC170: 165 | BD170: 172 | BE170: 172 | BF170: 230 | BG170: 200 | BH170: 500 | BI170: 190 | BJ170: 400 | BK170: 200 | BL170: 300 | BM170: 100 | BN170: 300 | BO170: 760 | BP170: 272.6 | BQ170: 180.7 | BR170: 171.37 | BS170: 550 | BT170: 211.79 | BV170: 61.59 | BX170: 0 | BY170: 173.7 | BZ170: 300 | CB170: 322.8 | CE170: 200 | CF170: 400 | CG170: 0 | CJ170: 110 | CK170: 344 | CL170: 320 | CN170: 100 | CQ170: 200 | CS170: 200
A171: 2015-01-07 | B171: Jan 07 | C171: 2015-01-07 | D171: 01-Jan 07 | E171: 1 | F171: 7 | G171: 2015 | H171: 15:00:00 | I171: 242 | J171: 171.5 | K171: 160 | L171: 179.2 | M171: 221.4228571 | N171: 415 | P171: 434.5 | Q171: 177.1666667 | R171: 281.6666667 | S171: 283.3888889 | T171: 209.8272727 | U171: 200 | V171: 237.5635714 | W171: 308.8511111 | X171: 210 | Y171: 311.4 | Z171: 172.6 | AA171: 179 | AB171: 164 | AD171: 110 | AE171: 210 | AF171: 198 | AG171: 207 | AH171: 170 | AI171: 131 | AJ171: 190 | AK171: 174.92 | AL171: 194.3 | AM171: 200 | AO171: 0 | AP171: 350.11 | AQ171: 334.86 | AR171: 295.77 | AS171: 630 | AT171: 200 | AW171: 656 | AY171: 213 | BA171: 124 | BB171: 159 | BC171: 167 | BD171: 182 | BE171: 178 | BF171: 253 | BG171: 300 | BH171: 400 | BI171: 190 | BJ171: 300 | BK171: 200 | BL171: 300 | BM171: 100 | BN171: 200 | BO171: 740 | BP171: 290 | BQ171: 159 | BR171: 201.6 | BS171: 610 | BT171: 205.37 | BV171: 44.53 | BX171: 0 | BY171: 179.3 | BZ171: 300 | CB171: 336.8 | CE171: 200 | CF171: 400 | CG171: 0 | CJ171: 100 | CK171: 352 | CL171: 340 | CN171: 100 | CQ171: 200 | CS171: 200
A172: 2015-01-07 | B172: Jan 07 | C172: 2015-01-07 | D172: 01-Jan 07 | E172: 1 | F172: 7 | G172: 2015 | H172: 16:00:00 | I172: 235.7 | J172: 163 | K172: 170 | L172: 181.2 | M172: 219 | N172: 355 | P172: 449 | Q172: 185.1666667 | R172: 296.6666667 | S172: 287.8955556 | T172: 215.4181818 | U172: 200 | V172: 240.3101818 | W172: 287.8244444 | X172: 307 | Y172: 305.1 | Z172: 166.3 | AA172: 168 | AB172: 158 | AD172: 120 | AE172: 220 | AF172: 212 | AG172: 187 | AH172: 180 | AI172: 129 | AJ172: 198 | AK172: 176.08 | AL172: 191.56 | AM172: 200 | AO172: 100 | AQ172: 321.02 | AR172: 325.34 | AS172: 520 | AT172: 190 | AW172: 653 | AY172: 245 | BA172: 145 | BB172: 168 | BC172: 165 | BD172: 190 | BE172: 183 | BF172: 260 | BG172: 200 | BH172: 500 | BI172: 180 | BJ172: 300 | BK172: 300 | BL172: 300 | BM172: 100 | BN172: 300 | BO172: 730 | BP172: 283.7 | BQ172: 161.9 | BR172: 201.42 | BS172: 580 | BT172: 178.46 | BV172: 55.58 | BX172: 0 | BY172: 176.8 | BZ172: 300 | CB172: 366.8 | CE172: 200 | CF172: 400 | CG172: 0 | CJ172: 130 | CK172: 336 | CL172: 360 | CN172: 100 | CQ172: 200 | CS172: 200
A173: 2015-01-07 | B173: Jan 07 | C173: 2015-01-07 | D173: 01-Jan 07 | E173: 1 | F173: 7 | G173: 2015 | H173: 17:00:00 | I173: 248.1 | J173: 159.5 | K173: 150 | L173: 166 | M173: 173.2783333 | N173: 335 | P173: 472 | Q173: 189.6666667 | R173: 278.3333333 | S173: 279.31 | T173: 204.1909091 | U173: 200 | V173: 228.4865455 | W173: 270.0422222 | X173: 236 | Y173: 313.6 | Z173: 182.6 | AA173: 168 | AB173: 151 | AD173: 140 | AE173: 160 | AF173: 198 | AG173: 170 | AH173: 151 | AI173: 128 | AJ173: 183 | AK173: 158.97 | AL173: 185.7 | AM173: 100 | AO173: 0 | AQ173: 298.88 | AR173: 296.12 | AS173: 490 | AT173: 180 | AW173: 711 | AY173: 233 | BA173: 138 | BB173: 170 | BC173: 162 | BD173: 184 | BE173: 183 | BF173: 301 | BG173: 200 | BH173: 500 | BI173: 170 | BJ173: 300 | BK173: 200 | BL173: 300 | BM173: 100 | BN173: 200 | BO173: 740 | BP173: 284.3 | BQ173: 182.5 | BR173: 192.07 | BS173: 570 | BT173: 180.63 | BV173: 64.29 | BX173: 0 | BY173: 176.4 | BZ173: 300 | CB173: 300.7 | CE173: 200 | CF173: 400 | CG173: 0 | CJ173: 80 | CK173: 369 | CL173: 320 | CN173: 100 | CQ173: 200 | CS173: 200
A174: 2015-01-07 | B174: Jan 07 | C174: 2015-01-07 | D174: 01-Jan 07 | E174: 1 | F174: 7 | G174: 2015 | H174: 18:00:00 | I174: 251.2 | J174: 161.5 | K174: 125 | L174: 156.2 | M174: 169.3714286 | N174: 275 | P174: 445.5 | Q174: 165.5 | R174: 278.3333333 | S174: 268.9722222 | T174: 283.27 | U174: 200 | V174: 232.7172727 | W174: 241.31375 | X174: 176 | Y174: 315.9 | Z174: 186.5 | AA174: 172 | AB174: 151 | AD174: 100 | AE174: 150 | AF174: 183 | AG174: 174 | AH174: 136 | AI174: 134 | AJ174: 154 | AK174: 150.74 | AL174: 173.3 | AM174: 100 | AO174: 0 | AP174: 258.41 | AQ174: 263.11 | AR174: 240.04 | AS174: 370 | AT174: 180 | AW174: 686 | AY174: 205 | BA174: 122 | BB174: 168 | BC174: 172 | BD174: 160 | BE174: 164 | BF174: 207 | BG174: 200 | BH174: 500 | BI174: 170 | BJ174: 300 | BK174: 200 | BL174: 300 | BM174: 100 | BN174: 200 | BO174: 740 | BP174: 273 | BQ174: 141.8 | BR174: 157.35 | BS174: 570 | BT174: 167.94 | BV174: 70.66 | BX174: 0 | BY174: 181.1 | BZ174: 300 | CB174: 348.6 | CE174: 200 | CF174: 400 | CG174: 0 | CJ174: 50 | CK174: 1253 | CN174: 100 | CQ174: 200 | CS174: 200
A175: 2015-01-07 | B175: Jan 07 | C175: 2015-01-07 | D175: 01-Jan 07 | E175: 1 | F175: 7 | G175: 2015 | H175: 19:00:00 | I175: 255.25 | J175: 163 | K175: 120 | L175: 152.8 | M175: 167.9333333 | N175: 235 | P175: 416 | Q175: 164.1666667 | R175: 260 | S175: 266.7411111 | T175: 198.35 | U175: 200 | V175: 212.5790741 | W175: 214.81 | X175: 167 | Y175: 311.9 | Z175: 198.6 | AA175: 169 | AB175: 157 | AD175: 90 | AE175: 150 | AF175: 172 | AG175: 170 | AH175: 127 | AI175: 138 | AJ175: 157 | AL175: 179.76 | AM175: 100 | AO175: 0 | AP175: 245.89 | AQ175: 256.98 | AR175: 224.97 | AS175: 300 | AT175: 170 | AW175: 648 | AY175: 184 | BA175: 159 | BB175: 158 | BC175: 140 | BD175: 161 | BE175: 152 | BF175: 215 | BG175: 100 | BH175: 500 | BI175: 160 | BJ175: 300 | BK175: 200 | BL175: 300 | BM175: 100 | BN175: 200 | BO175: 750 | BP175: 249 | BQ175: 145.7 | BR175: 150.56 | BS175: 580 | BT175: 158.94 | BV175: 66.47 | BX175: 0 | BY175: 200.7 | BZ175: 300 | CB175: 335.8 | CE175: 200 | CF175: 400 | CG175: 0 | CJ175: 60 | CK175: 387 | CN175: 100 | CQ175: 200 | CS175: 200
A176: 2015-01-07 | B176: Jan 07 | C176: 2015-01-07 | D176: 01-Jan 07 | E176: 1 | F176: 7 | G176: 2015 | H176: 20:00:00 | I176: 251.4 | J176: 166 | K176: 115 | L176: 153.2 | M176: 163.7316667 | N176: 230 | P176: 398 | Q176: 152.6666667 | R176: 260 | S176: 273.4533333 | T176: 189.8727273 | U176: 100 | V176: 205.3612727 | W176: 215.0633333 | X176: 172 | Y176: 303.6 | Z176: 199.2 | AA176: 172 | AB176: 160 | AD176: 90 | AE176: 140 | AF176: 173 | AG176: 161 | AH176: 126 | AI176: 143 | AJ176: 163 | AK176: 153.36 | AM176: 100 | AO176: 0 | AP176: 255.53 | AQ176: 273.37 | AR176: 200.13 | AS176: 280 | AT176: 180 | AW176: 625 | AY176: 171 | BA176: 118 | BB176: 154 | BC176: 149 | BD176: 151 | BE176: 146 | BF176: 198 | BG176: 100 | BH176: 500 | BI176: 160 | BJ176: 300 | BK176: 200 | BL176: 300 | BM176: 100 | BN176: 200 | BO176: 740 | BP176: 234.3 | BQ176: 165.1 | BR176: 175.92 | BS176: 610 | BT176: 164 | BV176: 71.76 | BX176: 0 | BY176: 196.8 | BZ176: 300 | CB176: 300.8 | CE176: 200 | CF176: 300 | CG176: 0 | CJ176: 40 | CK176: 381 | CL176: 270 | CN176: 100 | CQ176: 100 | CS176: 100
A177: 2015-01-07 | B177: Jan 07 | C177: 2015-01-07 | D177: 01-Jan 07 | E177: 1 | F177: 7 | G177: 2015 | H177: 21:00:00 | I177: 224.35 | J177: 164 | K177: 125 | L177: 149.8 | M177: 142.8357143 | N177: 275 | P177: 399 | Q177: 148.5 | R177: 260 | S177: 278.0833333 | T177: 184.2090909 | U177: 100 | V177: 201.85 | W177: 227.5033333 | X177: 188 | Y177: 273.4 | Z177: 175.3 | AA177: 169 | AB177: 159 | AD177: 110 | AE177: 140 | AF177: 185 | AG177: 161 | AH177: 118 | AI177: 128 | AJ177: 157 | AK177: 158.13 | AL177: 171.54 | AM177: 100 | AO177: -100 | AP177: 230.84 | AQ177: 244.83 | AR177: 194.51 | AS177: 370 | AT177: 180 | AW177: 639 | AY177: 159 | BA177: 116 | BB177: 151 | BC177: 147 | BD177: 152 | BE177: 144 | BF177: 181 | BG177: 100 | BH177: 500 | BI177: 160 | BJ177: 300 | BK177: 200 | BL177: 300 | BM177: 100 | BN177: 200 | BO177: 740 | BP177: 233.8 | BQ177: 214.1 | BR177: 176.75 | BS177: 600 | BT177: 162.77 | BV177: 75.33 | BX177: 0 | BY177: 192.5 | BZ177: 300 | CB177: 311.8 | CE177: 200 | CF177: 300 | CG177: 0 | CJ177: 30 | CK177: 332 | CL177: 260 | CN177: 100 | CQ177: 100 | CS177: 100
A178: 2015-01-07 | B178: Jan 07 | C178: 2015-01-07 | D178: 01-Jan 07 | E178: 1 | F178: 7 | G178: 2015 | H178: 22:00:00 | I178: 215 | J178: 163.5 | K178: 105 | L178: 150.4 | M178: 190.6 | N178: 245 | P178: 381 | Q178: 148.1666667 | R178: 263.3333333 | S178: 276.2922222 | T178: 183.0636364 | U178: 150 | V178: 207.9255769 | W178: 212.4 | X178: 170 | Y178: 261.2 | Z178: 168.8 | AA178: 169 | AB178: 158 | AD178: 80 | AE178: 130 | AF178: 184 | AG178: 164 | AH178: 117 | AI178: 133 | AJ178: 154 | AK178: 158.29 | AL178: 168.47 | AP178: 245.04 | AS178: 320 | AT178: 170 | AW178: 595 | AY178: 167 | BA178: 112 | BB178: 150 | BC178: 149 | BD178: 152 | BE178: 147 | BF178: 179 | BG178: 100 | BH178: 500 | BI178: 180 | BJ178: 300 | BK178: 200 | BL178: 300 | BM178: 100 | BN178: 200 | BO178: 730 | BP178: 246.1 | BQ178: 170.3 | BR178: 179.25 | BS178: 620 | BT178: 166.25 | BV178: 74.73 | BX178: 0 | BY178: 205.9 | BZ178: 300 | CB178: 296.8 | CE178: 200 | CF178: 300 | CG178: 0 | CJ178: 30 | CK178: 331 | CL178: 250 | CN178: 100 | CQ178: 200 | CS178: 100
A179: 2015-01-07 | B179: Jan 07 | C179: 2015-01-07 | D179: 01-Jan 07 | E179: 1 | F179: 7 | G179: 2015 | H179: 23:00:00 | I179: 217.7 | J179: 166.5 | K179: 100 | L179: 144 | M179: 155.7214286 | N179: 165 | P179: 374 | Q179: 151.6 | R179: 261.6666667 | S179: 289.3977778 | T179: 200.9818182 | U179: 150 | V179: 205.4514545 | W179: 233.305 | X179: 178 | Y179: 257.6 | Z179: 177.8 | AA179: 170 | AB179: 163 | AD179: 60 | AE179: 140 | AF179: 172 | AG179: 155 | AH179: 115 | AI179: 127 | AJ179: 151 | AK179: 153.95 | AL179: 168.04 | AM179: 100 | AO179: -100 | AP179: 249.21 | AQ179: 238.04 | AR179: 280.81 | AS179: 200 | AT179: 130 | AW179: 594 | AY179: 154 | BA179: 109 | BB179: 143 | BC179: 157 | BE179: 153 | BF179: 196 | BG179: 100 | BH179: 500 | BI179: 170 | BJ179: 300 | BK179: 200 | BL179: 300 | BM179: 100 | BN179: 300 | BO179: 740 | BP179: 251.9 | BQ179: 173.6 | BR179: 192.71 | BS179: 610 | BT179: 165.36 | BV179: 71.01 | BX179: 0 | BY179: 205.9 | BZ179: 300 | CB179: 507.9 | CE179: 200 | CF179: 300 | CG179: 0 | CJ179: 30 | CK179: 327 | CL179: 240 | CN179: 100 | CQ179: 200 | CS179: 100
A180: 2015-01-08 | B180: Jan 08 | C180: 2015-01-08 | D180: 01-Jan 08 | E180: 1 | F180: 8 | G180: 2015 | H180: 00:00:00 | I180: 194.9 | J180: 167 | L180: 147.4 | M180: 135.83 | N180: 180 | P180: 370 | Q180: 154 | R180: 260 | S180: 267.9444444 | T180: 156.7777778 | U180: 150 | V180: 194.5790385 | W180: 181.19125 | X180: 169 | Y180: 253.5 | Z180: 136.3 | AA180: 174 | AB180: 160 | AF180: 172 | AG180: 159 | AH180: 116 | AI180: 131 | AJ180: 159 | AK180: 158.53 | AL180: 163.08 | AM180: 100 | AO180: -100 | AP180: 240.04 | AQ180: 200.33 | AR180: 188.83 | AS180: 210 | AT180: 150 | AW180: 563 | AY180: 177 | BA180: 114 | BB180: 141 | BC180: 161 | BD180: 166 | BE180: 157 | BF180: 185 | BG180: 100 | BH180: 500 | BI180: 160 | BJ180: 300 | BK180: 200 | BL180: 300 | BM180: 100 | BN180: 200 | BO180: 710 | BP180: 243 | BQ180: 151.2 | BR180: 180.49 | BS180: 610 | BT180: 145.91 | BV180: 70.9 | BX180: 0 | BZ180: 300 | CE180: 200 | CF180: 300 | CG180: 0 | CJ180: 0 | CK180: 291 | CL180: 220 | CN180: 100 | CQ180: 200 | CS180: 100
A181: 2015-01-08 | B181: Jan 08 | C181: 2015-01-08 | D181: 01-Jan 08 | E181: 1 | F181: 8 | G181: 2015 | H181: 01:00:00 | I181: 210.2 | J181: 162 | K181: 70 | M181: 129.5571429 | N181: 175 | P181: 379.5 | Q181: 150.6666667 | R181: 245 | S181: 264.3033333 | T181: 163.6090909 | U181: 150 | V181: 191.23 | W181: 177.11125 | X181: 170 | Y181: 280.1 | Z181: 140.3 | AA181: 170 | AB181: 154 | AD181: 40 | AE181: 100 | AK181: 156.55 | AL181: 157.89 | AM181: 100 | AO181: -100 | AP181: 228.41 | AQ181: 187.49 | AR181: 176.56 | AS181: 200 | AT181: 150 | AW181: 563 | AY181: 196 | BA181: 118 | BB181: 146 | BC181: 137 | BD181: 162 | BE181: 154 | BF181: 187 | BG181: 100 | BH181: 500 | BI181: 170 | BJ181: 300 | BK181: 100 | BL181: 300 | BM181: 100 | BN181: 200 | BO181: 700 | BP181: 217.6 | BQ181: 136.8 | BR181: 172.31 | BS181: 620 | BT181: 153.16 | BV181: 78.86 | BX181: 0 | BY181: 205.7 | BZ181: 300 | CB181: 203 | CE181: 200 | CF181: 300 | CG181: 0 | CJ181: 0 | CK181: 281 | CL181: 210 | CN181: 100 | CQ181: 200 | CS181: 100
A182: 2015-01-08 | B182: Jan 08 | C182: 2015-01-08 | D182: 01-Jan 08 | E182: 1 | F182: 8 | G182: 2015 | H182: 02:00:00 | I182: 216.05 | J182: 165 | K182: 75 | L182: 152 | M182: 128.8028571 | N182: 175 | P182: 372 | Q182: 153 | R182: 261.6666667 | S182: 260.0677778 | T182: 153.3636364 | U182: 200 | V182: 188.9880357 | W182: 171.3822222 | X182: 188 | Y182: 284.4 | Z182: 147.7 | AA182: 176 | AB182: 154 | AD182: 50 | AE182: 100 | AF182: 161 | AG182: 156 | AH182: 141 | AI182: 149 | AJ182: 153 | AK182: 154.03 | AL182: 151.97 | AM182: 100 | AO182: -100 | AP182: 233.79 | AQ182: 190.44 | AR182: 171.39 | AS182: 190 | AT182: 160 | AW182: 558 | AY182: 186 | BA182: 122 | BB182: 162 | BC182: 134 | BD182: 162 | BE182: 157 | BF182: 181 | BG182: 100 | BH182: 500 | BI182: 170 | BJ182: 300 | BK182: 200 | BL182: 300 | BM182: 100 | BN182: 200 | BO182: 680 | BP182: 207.6 | BQ182: 131.3 | BR182: 168.11 | BS182: 620 | BT182: 153.27 | BV182: 80.33 | BX182: 0 | BY182: 196.9 | BZ182: 200 | CB182: 185.1 | CE182: 200 | CF182: 300 | CG182: 0 | CJ182: 0 | CK182: 285 | CL182: 220 | CN182: 100 | CQ182: 200 | CS182: 200
A183: 2015-01-08 | B183: Jan 08 | C183: 2015-01-08 | D183: 01-Jan 08 | E183: 1 | F183: 8 | G183: 2015 | H183: 03:00:00 | I183: 154.1 | J183: 162.5 | K183: 75 | L183: 145 | M183: 130.1685714 | N183: 165 | P183: 369.5 | Q183: 156.6666667 | R183: 263.3333333 | S183: 261.9288889 | T183: 157.1181818 | U183: 200 | V183: 187.9989091 | W183: 172.4211111 | X183: 170 | Z183: 154.1 | AA183: 172 | AB183: 153 | AD183: 50 | AE183: 100 | AF183: 168 | AG183: 154 | AH183: 129 | AI183: 124 | AJ183: 150 | AK183: 153.71 | AL183: 153.59 | AM183: 100 | AO183: -100 | AP183: 233.09 | AQ183: 193.99 | AR183: 176.8 | AS183: 180 | AT183: 150 | AW183: 560 | AY183: 179 | BA183: 136 | BB183: 161 | BC183: 129 | BD183: 165 | BE183: 164 | BF183: 185 | BG183: 100 | BH183: 500 | BI183: 180 | BJ183: 300 | BK183: 200 | BL183: 300 | BM183: 100 | BN183: 200 | BO183: 680 | BP183: 201.5 | BQ183: 131.1 | BR183: 168.11 | BS183: 630 | BT183: 160.69 | BV183: 85.96 | BX183: 0 | BY183: 192.1 | BZ183: 200 | CB183: 186.2 | CE183: 200 | CF183: 300 | CG183: 0 | CJ183: 0 | CK183: 310 | CL183: 240 | CN183: 100 | CQ183: 200 | CS183: 200
A184: 2015-01-08 | B184: Jan 08 | C184: 2015-01-08 | D184: 01-Jan 08 | E184: 1 | F184: 8 | G184: 2015 | H184: 04:00:00 | I184: 145.3 | J184: 160.5 | K184: 70 | L184: 151.6 | M184: 133.5742857 | N184: 200 | P184: 374.5 | Q184: 156.8333333 | R184: 304 | S184: 267.0655556 | T184: 180.51 | U184: 200 | V184: 198.4530189 | W184: 197.68625 | X184: 160 | Z184: 145.3 | AA184: 166 | AB184: 155 | AD184: 40 | AE184: 100 | AF184: 172 | AG184: 169 | AH184: 137 | AI184: 124 | AJ184: 156 | AK184: 159.84 | AL184: 158.23 | AM184: 100 | AO184: -100 | AP184: 231.58 | AQ184: 214.49 | AR184: 170.88 | AS184: 250 | AT184: 150 | AW184: 569 | AY184: 180 | BA184: 140 | BB184: 163 | BC184: 123 | BD184: 162 | BE184: 167 | BF184: 186 | BH184: 500 | BI184: 220 | BJ184: 300 | BK184: 200 | BL184: 300 | BM184: 100 | BN184: 200 | BO184: 680 | BP184: 200.1 | BQ184: 129.9 | BR184: 164.94 | BS184: 670 | BT184: 169.19 | BV184: 89.46 | BX184: 0 | BY184: 192.1 | BZ184: 200 | CB184: 196 | CE184: 200 | CF184: 300 | CG184: 0 | CK184: 357 | CL184: 260 | CN184: 100 | CQ184: 300 | CS184: 100
A185: 2015-01-08 | B185: Jan 08 | C185: 2015-01-08 | D185: 01-Jan 08 | E185: 1 | F185: 8 | G185: 2015 | H185: 05:00:00 | I185: 155.6 | J185: 160.5 | K185: 85 | L185: 166.8 | M185: 148.3485714 | N185: 295 | P185: 388.5 | Q185: 169.5 | R185: 323.3333333 | S185: 267.5166667 | T185: 188.5727273 | U185: 200 | V185: 213.1816364 | W185: 241.7755556 | X185: 149 | Z185: 155.6 | AA185: 163 | AB185: 158 | AD185: 40 | AE185: 130 | AF185: 190 | AG185: 181 | AH185: 147 | AI185: 135 | AJ185: 181 | AK185: 160.68 | AL185: 163.73 | AM185: 100 | AO185: -100 | AP185: 258.21 | AQ185: 269.48 | AR185: 186.34 | AS185: 430 | AT185: 160 | AW185: 575 | AY185: 202 | BA185: 190 | BB185: 160 | BC185: 103 | BD185: 162 | BE185: 184 | BF185: 218 | BG185: 200 | BH185: 500 | BI185: 340 | BJ185: 400 | BK185: 200 | BL185: 300 | BM185: 100 | BN185: 200 | BO185: 680 | BP185: 207.7 | BQ185: 140.8 | BR185: 161.11 | BS185: 650 | BT185: 184.41 | BV185: 83.63 | BX185: 0 | BY185: 203.3 | BZ185: 300 | CB185: 205 | CE185: 200 | CF185: 300 | CG185: 0 | CJ185: 30 | CK185: 356 | CL185: 380 | CN185: 100 | CQ185: 300 | CS185: 100
A186: 2015-01-08 | B186: Jan 08 | C186: 2015-01-08 | D186: 01-Jan 08 | E186: 1 | F186: 8 | G186: 2015 | H186: 06:00:00 | I186: 143 | J186: 161 | K186: 145 | L186: 202.8 | M186: 169.0114286 | N186: 360 | P186: 427.5 | Q186: 198.5 | R186: 393.3333333 | S186: 308.4788889 | T186: 216.2909091 | U186: 250 | V186: 249.7016364 | W186: 305.7022222 | X186: 195 | Z186: 143 | AA186: 163 | AB186: 159 | AD186: 70 | AE186: 220 | AF186: 248 | AG186: 231 | AH186: 182 | AI186: 136 | AJ186: 217 | AK186: 171.74 | AL186: 172.87 | AM186: 100 | AO186: -100 | AP186: 278.59 | AQ186: 322.52 | AR186: 237.36 | AS186: 540 | AT186: 180 | AW186: 645 | AY186: 210 | BA186: 175 | BB186: 157 | BC186: 94 | BD186: 209 | BE186: 226 | BF186: 330 | BG186: 300 | BH186: 500 | BI186: 360 | BJ186: 500 | BK186: 300 | BL186: 400 | BM186: 200 | BN186: 300 | BO186: 690 | BP186: 238.8 | BQ186: 180.3 | BR186: 174.76 | BS186: 680 | BT186: 229.68 | BV186: 82.77 | BX186: 0 | BY186: 219.5 | BZ186: 300 | CB186: 249.7 | CE186: 100 | CF186: 400 | CG186: 0 | CJ186: 110 | CK186: 420 | CL186: 480 | CN186: 100 | CQ186: 300 | CS186: 200
A187: 2015-01-08 | B187: Jan 08 | C187: 2015-01-08 | D187: 01-Jan 08 | E187: 1 | F187: 8 | G187: 2015 | H187: 07:00:00 | I187: 154.8 | J187: 161.5 | K187: 190 | L187: 221.4 | M187: 234.7066667 | N187: 450 | P187: 466.5 | Q187: 228 | R187: 468.3333333 | S187: 335.1777778 | T187: 242.3727273 | U187: 300 | V187: 290.1248148 | W187: 344.1211111 | X187: 231 | Z187: 154.8 | AA187: 163 | AB187: 160 | AD187: 120 | AE187: 260 | AF187: 299 | AG187: 208 | AH187: 207 | AI187: 136 | AJ187: 257 | AL187: 179.37 | AM187: 200 | AO187: 0 | AP187: 315.86 | AQ187: 382.19 | AR187: 330.82 | AS187: 700 | AT187: 200 | AW187: 684 | AY187: 249 | BA187: 274 | BB187: 156 | BC187: 127 | BD187: 257 | BE187: 210 | BF187: 344 | BG187: 300 | BH187: 600 | BI187: 410 | BJ187: 700 | BK187: 400 | BL187: 400 | BM187: 200 | BN187: 400 | BO187: 710 | BP187: 286 | BQ187: 189.4 | BR187: 167.86 | BS187: 730 | BT187: 251.28 | BV187: 82.06 | BX187: 0 | BY187: 261.6 | BZ187: 300 | CB187: 274.5 | CE187: 100 | CF187: 400 | CG187: 0 | CJ187: 260 | CK187: 470 | CL187: 500 | CN187: 100 | CQ187: 300 | CS187: 300
A188: 2015-01-08 | B188: Jan 08 | C188: 2015-01-08 | D188: 01-Jan 08 | E188: 1 | F188: 8 | G188: 2015 | H188: 08:00:00 | I188: 141.9 | J188: 162.5 | K188: 150 | L188: 285 | M188: 231.4371429 | N188: 410 | P188: 481.5 | Q188: 203.1666667 | R188: 425 | S188: 339.5222222 | T188: 235.6909091 | U188: 250 | V188: 282.0410909 | W188: 340.0933333 | X188: 151 | Z188: 141.9 | AA188: 164 | AB188: 161 | AD188: 130 | AE188: 170 | AF188: 305 | AG188: 447 | AH188: 205 | AI188: 145 | AJ188: 323 | AK188: 177.08 | AL188: 214.23 | AM188: 200 | AO188: 0 | AP188: 313.46 | AQ188: 387.54 | AR188: 327.75 | AS188: 620 | AT188: 200 | AW188: 706 | AY188: 257 | BA188: 192 | BB188: 163 | BC188: 136 | BD188: 231 | BE188: 202 | BF188: 295 | BG188: 200 | BH188: 600 | BI188: 350 | BJ188: 700 | BK188: 300 | BL188: 400 | BM188: 200 | BN188: 300 | BO188: 730 | BP188: 289.1 | BQ188: 206.5 | BR188: 183.26 | BS188: 750 | BT188: 307.97 | BV188: 88.87 | BX188: 0 | BY188: 288.9 | BZ188: 400 | CB188: 249.7 | CE188: 100 | CF188: 400 | CG188: 0 | CJ188: 160 | CK188: 464 | CL188: 430 | CN188: 100 | CQ188: 300 | CS188: 200
A189: 2015-01-08 | B189: Jan 08 | C189: 2015-01-08 | D189: 01-Jan 08 | E189: 1 | F189: 8 | G189: 2015 | H189: 09:00:00 | I189: 227 | J189: 162 | K189: 280 | L189: 288.5 | M189: 217.9814286 | N189: 355 | P189: 444.5 | Q189: 178.3333333 | R189: 348.3333333 | S189: 340.4733333 | T189: 210.1727273 | U189: 200 | V189: 264.6005455 | W189: 328.6077778 | X189: 142 | Y189: 303.4 | Z189: 150.6 | AA189: 165 | AB189: 159 | AD189: 80 | AE189: 480 | AF189: 228 | AG189: 532 | AH189: 246 | AI189: 148 | AK189: 175.94 | AL189: 200.77 | AM189: 200 | AO189: 0 | AP189: 294.72 | AQ189: 349.47 | AR189: 304.97 | AS189: 530 | AT189: 180 | AW189: 653 | AY189: 236 | BA189: 162 | BB189: 161 | BC189: 147 | BD189: 193 | BE189: 171 | BF189: 236 | BG189: 200 | BH189: 500 | BI189: 290 | BJ189: 500 | BK189: 200 | BL189: 400 | BM189: 200 | BN189: 300 | BO189: 760 | BP189: 298.8 | BQ189: 232.3 | BR189: 193.33 | BS189: 710 | BT189: 284.97 | BV189: 84.86 | BX189: 0 | BY189: 261 | BZ189: 300 | CB189: 251.9 | CE189: 200 | CF189: 400 | CG189: 0 | CJ189: 50 | CK189: 379 | CL189: 370 | CN189: 100 | CQ189: 300 | CS189: 100
A190: 2015-01-08 | B190: Jan 08 | C190: 2015-01-08 | D190: 01-Jan 08 | E190: 1 | F190: 8 | G190: 2015 | H190: 10:00:00 | I190: 212.85 | J190: 162.5 | K190: 395 | L190: 258 | M190: 207.1857143 | N190: 520 | P190: 438.5 | Q190: 180.2 | R190: 308.3333333 | S190: 314.9344444 | T190: 194.4636364 | U190: 200 | V190: 255.5567925 | W190: 306.6877778 | X190: 118 | Y190: 289.7 | Z190: 136 | AA190: 166 | AB190: 159 | AD190: 90 | AE190: 700 | AF190: 238 | AG190: 406 | AH190: 231 | AI190: 157 | AK190: 177.31 | AL190: 203.11 | AM190: 200 | AO190: 0 | AP190: 284.13 | AQ190: 345.59 | AR190: 240.16 | AS190: 520 | AW190: 636 | AY190: 241 | BA190: 187 | BB190: 165 | BD190: 168 | BE190: 159 | BF190: 222 | BG190: 200 | BH190: 500 | BI190: 250 | BJ190: 400 | BK190: 200 | BL190: 300 | BM190: 100 | BN190: 300 | BO190: 740 | BP190: 296 | BQ190: 222.7 | BR190: 192.76 | BS190: 650 | BT190: 255.08 | BV190: 77.87 | BX190: 0 | BY190: 252.2 | BZ190: 300 | CB190: 241.9 | CE190: 100 | CF190: 400 | CG190: 0 | CJ190: 30 | CK190: 355 | CL190: 360 | CN190: 100 | CQ190: 300 | CS190: 100
A191: 2015-01-08 | B191: Jan 08 | C191: 2015-01-08 | D191: 01-Jan 08 | E191: 1 | F191: 8 | G191: 2015 | H191: 11:00:00 | I191: 224.05 | J191: 161.5 | K191: 175 | L191: 255.6666667 | M191: 206.7828571 | N191: 335 | P191: 453.5 | Q191: 170 | R191: 388.3333333 | S191: 316.7033333 | T191: 165.62 | U191: 150 | V191: 246.5869811 | W191: 291.98875 | X191: 132 | Y191: 308.7 | Z191: 139.4 | AA191: 164 | AB191: 159 | AD191: 100 | AE191: 250 | AF191: 225 | AG191: 393 | AI191: 149 | AK191: 180.9 | AL191: 213.32 | AM191: 200 | AO191: 0 | AP191: 273.52 | AQ191: 338.61 | AR191: 241.13 | AS191: 500 | AT191: 170 | AW191: 641 | AY191: 266 | BA191: 150 | BB191: 173 | BC191: 143 | BD191: 172 | BE191: 159 | BF191: 223 | BG191: 200 | BH191: 500 | BI191: 230 | BJ191: 800 | BK191: 200 | BL191: 400 | BM191: 200 | BN191: 300 | BO191: 730 | BP191: 264.9 | BQ191: 226.2 | BR191: 195.56 | BS191: 620 | BT191: 235.12 | BV191: 78.55 | BX191: 0 | BY191: 218 | BZ191: 300 | CB191: 241.2 | CE191: 100 | CF191: 300 | CG191: 0 | CJ191: 50 | CK191: 347 | CN191: 100 | CQ191: 200 | CS191: 100
A192: 2015-01-08 | B192: Jan 08 | C192: 2015-01-08 | D192: 01-Jan 08 | E192: 1 | F192: 8 | G192: 2015 | H192: 12:00:00 | I192: 219.6 | J192: 161 | K192: 116.6666667 | L192: 256.5 | M192: 200.75 | N192: 345 | P192: 449.5 | Q192: 165.4 | R192: 390 | S192: 265.5325 | T192: 184.51 | U192: 200 | V192: 239.015283 | W192: 288.86625 | X192: 172 | Y192: 302.1 | Z192: 137.1 | AA192: 165 | AB192: 157 | AC192: 60 | AD192: 130 | AE192: 160 | AF192: 282 | AG192: 417 | AH192: 175 | AI192: 152 | AK192: 171.44 | AL192: 223.87 | AM192: 200 | AO192: 0 | AP192: 256.8 | AQ192: 312.23 | AR192: 240.91 | AS192: 520 | AT192: 170 | AW192: 627 | AY192: 272 | BA192: 143 | BC192: 152 | BD192: 165 | BE192: 158 | BF192: 209 | BG192: 200 | BH192: 500 | BI192: 240 | BJ192: 800 | BK192: 200 | BL192: 400 | BM192: 100 | BN192: 300 | BO192: 730 | BP192: 262.2 | BQ192: 229.7 | BR192: 203.14 | BT192: 216.43 | BV192: 82.79 | BX192: 0 | BY192: 211.3 | BZ192: 300 | CB192: 204.8 | CE192: 200 | CF192: 300 | CG192: 0 | CJ192: 80 | CK192: 349 | CN192: 200 | CQ192: 300 | CS192: 100
A193: 2015-01-08 | B193: Jan 08 | C193: 2015-01-08 | D193: 01-Jan 08 | E193: 1 | F193: 8 | G193: 2015 | H193: 13:00:00 | I193: 233.6 | J193: 162 | K193: 103.3333333 | L193: 253.25 | M193: 202.8114286 | N193: 370 | P193: 437 | Q193: 162.8 | R193: 351.6666667 | S193: 235.5777778 | T193: 196.0833333 | U193: 150 | V193: 229.3764286 | W193: 300.9988889 | X193: 176 | Y193: 321.1 | Z193: 146.1 | AA193: 166 | AB193: 158 | AC193: 50 | AD193: 100 | AE193: 160 | AF193: 323 | AG193: 365 | AH193: 178 | AI193: 147 | AK193: 166.37 | AL193: 236.15 | AM193: 200 | AO193: 0 | AP193: 257.01 | AQ193: 317.99 | AR193: 242.16 | AS193: 570 | AT193: 170 | AW193: 605 | AY193: 269 | BA193: 134 | BC193: 144 | BD193: 166 | BE193: 158 | BF193: 212 | BG193: 200 | BH193: 500 | BI193: 210 | BJ193: 600 | BK193: 200 | BL193: 400 | BM193: 100 | BN193: 200 | BO193: 720 | BP193: 264 | BQ193: 254.4 | BR193: 202.31 | BS193: 90 | BT193: 213.8 | BV193: 75.69 | BX193: 0 | BY193: 207.4 | BZ193: 300 | CB193: 211.6 | CE193: 200 | CF193: 400 | CG193: 0 | CJ193: 110 | CK193: 364 | CL193: 360 | CN193: 200 | CP193: 0 | CQ193: 200 | CS193: 100
A194: 2015-01-08 | B194: Jan 08 | C194: 2015-01-08 | D194: 01-Jan 08 | E194: 1 | F194: 8 | G194: 2015 | H194: 14:00:00 | I194: 220.3 | J194: 164 | K194: 120 | L194: 254.4 | M194: 226.8485714 | N194: 390 | P194: 433.5 | Q194: 174.3333333 | R194: 375 | S194: 229.0955556 | T194: 187.2166667 | U194: 150 | V194: 233.4482759 | W194: 308.8844444 | X194: 150 | Y194: 281.5 | Z194: 159.1 | AA194: 172 | AB194: 156 | AC194: 50 | AD194: 150 | AE194: 160 | AF194: 345 | AG194: 378 | AH194: 184 | AI194: 155 | AJ194: 210 | AK194: 170.37 | AL194: 219.58 | AM194: 200 | AO194: 100 | AP194: 265.31 | AQ194: 338.26 | AR194: 294.42 | AS194: 600 | AT194: 180 | AW194: 609 | AY194: 258 | BA194: 148 | BB194: 168 | BC194: 148 | BD194: 192 | BE194: 159 | BF194: 231 | BG194: 200 | BH194: 500 | BI194: 250 | BJ194: 600 | BK194: 300 | BL194: 400 | BM194: 100 | BN194: 200 | BO194: 750 | BP194: 263.1 | BQ194: 260.1 | BR194: 193.13 | BS194: 0 | BT194: 222.87 | BV194: 72.66 | BX194: 0 | BY194: 214.1 | BZ194: 300 | CB194: 168.5 | CE194: 200 | CF194: 400 | CG194: 0 | CJ194: 130 | CK194: 354 | CL194: 380 | CN194: 100 | CP194: 0 | CQ194: 200 | CS194: 100
A195: 2015-01-08 | B195: Jan 08 | C195: 2015-01-08 | D195: 01-Jan 08 | E195: 1 | F195: 8 | G195: 2015 | H195: 15:00:00 | I195: 238.7 | J195: 166.5 | K195: 120 | L195: 306.6 | M195: 228.8583333 | N195: 440 | P195: 431 | Q195: 187.5 | R195: 375 | S195: 240.53 | T195: 193.5083333 | U195: 150 | V195: 245.2705263 | W195: 352.2377778 | X195: 155 | Y195: 311.4 | Z195: 166 | AA195: 171 | AB195: 162 | AC195: 50 | AD195: 140 | AE195: 170 | AF195: 351 | AG195: 574 | AH195: 209 | AI195: 140 | AJ195: 259 | AK195: 179.21 | AL195: 214.04 | AM195: 200 | AO195: 0 | AQ195: 375.34 | AR195: 404.56 | AS195: 680 | AT195: 200 | AW195: 593 | AY195: 269 | BA195: 148 | BB195: 158 | BC195: 151 | BD195: 218 | BE195: 167 | BF195: 283 | BG195: 200 | BH195: 500 | BI195: 250 | BJ195: 600 | BK195: 300 | BL195: 400 | BM195: 100 | BN195: 300 | BO195: 730 | BP195: 268.3 | BQ195: 284.9 | BR195: 186.79 | BS195: 10 | BT195: 211.65 | BV195: 73.13 | BX195: 0 | BY195: 228.5 | BZ195: 300 | CB195: 169.6 | CE195: 200 | CF195: 400 | CG195: 0 | CJ195: 140 | CK195: 384 | CL195: 400 | CN195: 100 | CP195: 0 | CQ195: 200 | CS195: 100
A196: 2015-01-08 | B196: Jan 08 | C196: 2015-01-08 | D196: 01-Jan 08 | E196: 1 | F196: 8 | G196: 2015 | H196: 16:00:00 | I196: 274.7 | J196: 171.5 | K196: 176.6666667 | L196: 310 | M196: 264.4066667 | N196: 465 | P196: 473 | Q196: 216.5 | R196: 448.3333333 | S196: 266.6255556 | T196: 203.6916667 | U196: 150 | V196: 273.1187719 | W196: 383.2244444 | X196: 194 | Y196: 390.4 | Z196: 159 | AA196: 175 | AB196: 168 | AC196: 50 | AD196: 200 | AE196: 280 | AF196: 344 | AG196: 546 | AH196: 246 | AI196: 142 | AJ196: 272 | AK196: 201.12 | AL196: 227.46 | AM196: 200 | AO196: 100 | AQ196: 391.42 | AR196: 466.44 | AS196: 710 | AT196: 220 | AW196: 629 | AY196: 317 | BA196: 185 | BB196: 168 | BC196: 152 | BD196: 301 | BE196: 186 | BF196: 307 | BG196: 200 | BH196: 600 | BI196: 290 | BJ196: 800 | BK196: 300 | BL196: 500 | BM196: 200 | BN196: 300 | BO196: 740 | BP196: 279 | BQ196: 365.4 | BR196: 195.94 | BS196: 0 | BT196: 241.13 | BV196: 78.16 | BX196: 0 | BY196: 213.1 | BZ196: 300 | CB196: 176.2 | CE196: 200 | CF196: 400 | CG196: 0 | CJ196: 210 | CK196: 365 | CL196: 480 | CN196: 100 | CP196: 0 | CQ196: 200 | CS196: 100
A197: 2015-01-08 | B197: Jan 08 | C197: 2015-01-08 | D197: 01-Jan 08 | E197: 1 | F197: 8 | G197: 2015 | H197: 17:00:00 | I197: 330.55 | J197: 181.5 | K197: 153.3333333 | L197: 382.8 | M197: 311.3283333 | N197: 600 | P197: 495 | Q197: 274.3333333 | R197: 448.3333333 | S197: 266.5644444 | T197: 229.6583333 | U197: 150 | V197: 302.5798246 | W197: 439.1755556 | X197: 188 | Y197: 493.5 | Z197: 167.6 | AA197: 174 | AB197: 189 | AC197: 50 | AD197: 160 | AE197: 250 | AF197: 574 | AG197: 648 | AH197: 282 | AI197: 168 | AJ197: 242 | AK197: 238.21 | AL197: 257.04 | AM197: 300 | AO197: 100 | AQ197: 416.58 | AR197: 556.14 | AS197: 870 | AT197: 330 | AW197: 697 | AY197: 293 | BA197: 239 | BB197: 162 | BC197: 156 | BD197: 465 | BE197: 207 | BF197: 417 | BG197: 200 | BH197: 600 | BI197: 290 | BJ197: 800 | BK197: 300 | BL197: 500 | BM197: 200 | BN197: 300 | BO197: 730 | BP197: 263.5 | BQ197: 343.8 | BR197: 237.45 | BS197: 10 | BT197: 238.28 | BV197: 76.05 | BX197: 0 | BY197: 222.2 | BZ197: 400 | CB197: 205.7 | CE197: 200 | CF197: 400 | CG197: 0 | CJ197: 260 | CK197: 428 | CL197: 540 | CN197: 100 | CP197: 0 | CQ197: 200 | CS197: 100
A198: 2015-01-08 | B198: Jan 08 | C198: 2015-01-08 | D198: 01-Jan 08 | E198: 1 | F198: 8 | G198: 2015 | H198: 18:00:00 | I198: 278.4 | J198: 190 | K198: 126.6666667 | L198: 331.2 | M198: 307.9328571 | N198: 570 | P198: 500 | Q198: 295.1666667 | R198: 435 | S198: 256.4322222 | T198: 224.0166667 | U198: 250 | V198: 295.6106897 | W198: 431.6377778 | X198: 160 | Y198: 399.1 | Z198: 157.7 | AA198: 183 | AB198: 197 | AC198: 50 | AD198: 110 | AE198: 220 | AF198: 369 | AG198: 534 | AH198: 269 | AI198: 176 | AJ198: 308 | AK198: 252.82 | AL198: 273.83 | AM198: 200 | AO198: 100 | AP198: 384.66 | AQ198: 452.64 | AR198: 491.58 | AS198: 820 | AT198: 320 | AW198: 757 | AY198: 243 | BA198: 238 | BB198: 162 | BC198: 169 | BD198: 595 | BE198: 241 | BF198: 366 | BG198: 200 | BH198: 600 | BI198: 310 | BJ198: 700 | BK198: 300 | BL198: 500 | BM198: 200 | BN198: 300 | BO198: 750 | BP198: 260.4 | BQ198: 268.2 | BR198: 193.18 | BS198: 10 | BT198: 247.82 | BV198: 78.29 | BX198: 0 | BY198: 222.7 | BZ198: 300 | CB198: 224.5 | CE198: 300 | CF198: 400 | CG198: 0 | CJ198: 270 | CK198: 341 | CL198: 530 | CN198: 100 | CP198: 0 | CQ198: 300 | CS198: 200
A199: 2015-01-08 | B199: Jan 08 | C199: 2015-01-08 | D199: 01-Jan 08 | E199: 1 | F199: 8 | G199: 2015 | H199: 19:00:00 | I199: 282.7 | J199: 196 | K199: 110 | L199: 329.2 | M199: 318.29 | N199: 550 | P199: 502.5 | Q199: 276.1666667 | R199: 380 | S199: 243.2911111 | T199: 226.2416667 | U199: 150 | V199: 282.2747368 | W199: 411.7266667 | X199: 159 | Y199: 397.6 | Z199: 167.8 | AA199: 192 | AB199: 200 | AC199: 50 | AD199: 100 | AE199: 180 | AF199: 405 | AG199: 469 | AH199: 261 | AI199: 176 | AJ199: 335 | AL199: 265.37 | AM199: 200 | AO199: 200 | AP199: 419.99 | AQ199: 459.54 | AR199: 364.84 | AS199: 820 | AT199: 280 | AW199: 739 | AY199: 266 | BA199: 175 | BB199: 160 | BC199: 180 | BD199: 530 | BE199: 269 | BF199: 343 | BG199: 200 | BH199: 500 | BI199: 280 | BJ199: 600 | BK199: 200 | BL199: 500 | BM199: 200 | BN199: 300 | BO199: 730 | BP199: 250.5 | BQ199: 206.2 | BR199: 176.58 | BS199: 0 | BT199: 235.72 | BV199: 90.62 | BX199: 0 | BY199: 223.6 | BZ199: 300 | CB199: 230.3 | CE199: 300 | CF199: 400 | CG199: 0 | CJ199: 260 | CK199: 361 | CL199: 540 | CN199: 100 | CP199: 0 | CQ199: 200 | CS199: 100
A200: 2015-01-08 | B200: Jan 08 | C200: 2015-01-08 | D200: 01-Jan 08 | E200: 1 | F200: 8 | G200: 2015 | H200: 20:00:00 | I200: 249.4 | J200: 211 | K200: 116.6666667 | L200: 329.4 | M200: 309.1666667 | N200: 485 | P200: 434 | Q200: 228.5 | R200: 398.3333333 | S200: 230.2566667 | T200: 224.3 | U200: 150 | V200: 270.8019298 | W200: 390.5244444 | X200: 171 | Y200: 334.5 | Z200: 164.3 | AA200: 199 | AB200: 223 | AC200: 60 | AD200: 100 | AE200: 190 | AF200: 363 | AG200: 472 | AH200: 303 | AI200: 193 | AJ200: 316 | AK200: 283.61 | AM200: 200 | AO200: 200 | AP200: 404.3 | AQ200: 452.52 | AR200: 314.57 | AS200: 720 | AT200: 250 | AW200: 644 | AY200: 224 | BA200: 149 | BB200: 157 | BC200: 188 | BD200: 409 | BE200: 205 | BF200: 263 | BG200: 200 | BH200: 500 | BI200: 290 | BJ200: 700 | BK200: 300 | BL200: 400 | BM200: 100 | BN200: 300 | BO200: 740 | BP200: 243.2 | BQ200: 190.7 | BR200: 173 | BS200: 0 | BT200: 229.94 | BV200: 95.47 | BX200: 0 | BY200: 216.3 | BZ200: 300 | CB200: 307.3 | CE200: 300 | CF200: 400 | CG200: 0 | CJ200: 200 | CK200: 348 | CL200: 520 | CN200: 100 | CP200: 0 | CQ200: 200 | CS200: 100
... 360 more rows

Sheet Sheet1
E1: LAST DATE
A2: Code | B2: State | C2: PARSED | D2: SEQUENTIAL | E2: COMPLETE
A3: 9 | B3: Connecticut | E3: 2022-10-31
A4: 10 | B4: Delaware | E4: 2022-06-30
A5: 11 | B5: DC | E5: 2022-12-31
A6: 23 | B6: Maine | E6: 2022-12-31
A7: 24 | B7: Maryland | E7: 2022-12-31
A8: 25 | B8: Massachusetts | E8: 2022-10-31
A9: 33 | B9: New Hampshire | E9: 2022-12-31
A10: 34 | B10: New Jersey | E10: 2022-12-31
A11: 36 | B11: New York | E11: 2022-12-31
A12: 42 | B12: Pennsylvania-A | E12: 2022-11-30
A13: 44 | B13: Rhode Island | E13: 2022-12-02
A14: 50 | B14: Vermont | E14: 2022-12-31
A15: 51 | B15: Virginia OTC | E15: 2022-12-31
